Workbook

Sheet Calculos (hidden)
A1: Factores utilizados en Meses de No Pago para cálculo del valor cuota
A3: N° de Cuota | B3: Equivalente | C3: Fecha | D3: Mes | E3: Marca Cuota No Pago | F3: Factor (10) | G3: Acumulado
A4: 1 | B4: =IF(E4<>"C",IF(ISERROR(1+B3)=TRUE,1,1+B3),IF(ISNUMBER(B3),B3,1)) -> 1 | C4: =+#REF! ->  | D4: =MONTH(C4) ->  | E4: =IF(ISERROR(MATCH(D4,#REF!,0))=FALSE,"C",IF(ISERROR(MATCH(D4,#REF!,0))=FALSE,"D","")) ->  | F4: =IF(E4="C",0,IF(E4 ="D",ROUND(1/((1+#REF!)^A4),9) * 2,ROUND(1/((1+#REF!)^A4),9))) ->  | G4: =ROUND(F4,9) -> 
A5: =A4+1 -> 2 | B5: =IF(E5<>"C",IF(ISERROR(1+B4)=TRUE,1,1+B4),IF(ISNUMBER(B4),B4,1)) -> 2 | C5: =DATE(YEAR(C4) + 1/12,MONTH(C4)+1,DAY(C4)) ->  | E5: =IF(ISERROR(MATCH(D5,#REF!,0))=FALSE,"C",IF(ISERROR(MATCH(D5,#REF!,0))=FALSE,"D","")) ->  | F5: =IF(E5="C",0,IF(E5 ="D",ROUND(1/((1+#REF!)^A5),9) * 2,ROUND(1/((1+#REF!)^A5),9))) ->  | G5: =G4+ROUND(F5,9) -> 
A6: 3 | B6: 3 | E6: =IF(ISERROR(MATCH(D6,#REF!,0))=FALSE,"C",IF(ISERROR(MATCH(D6,#REF!,0))=FALSE,"D","")) ->  | F6: =IF(E6="C",0,IF(E6 ="D",ROUND(1/((1+#REF!)^A6),9) * 2,ROUND(1/((1+#REF!)^A6),9))) ->  | G6: =G5+ROUND(F6,9) -> 
A7: 4 | B7: 4 | E7: =IF(ISERROR(MATCH(D7,#REF!,0))=FALSE,"C",IF(ISERROR(MATCH(D7,#REF!,0))=FALSE,"D","")) ->  | F7: =IF(E7="C",0,IF(E7 ="D",ROUND(1/((1+#REF!)^A7),9) * 2,ROUND(1/((1+#REF!)^A7),9))) -> 
A8: 5 | B8: 5 | E8: =IF(ISERROR(MATCH(D8,#REF!,0))=FALSE,"C",IF(ISERROR(MATCH(D8,#REF!,0))=FALSE,"D","")) ->  | F8: =IF(E8="C",0,IF(E8 ="D",ROUND(1/((1+#REF!)^A8),9) * 2,ROUND(1/((1+#REF!)^A8),9))) -> 
A9: 6 | B9: 6 | E9: =IF(ISERROR(MATCH(D9,#REF!,0))=FALSE,"C",IF(ISERROR(MATCH(D9,#REF!,0))=FALSE,"D","")) ->  | F9: =IF(E9="C",0,IF(E9 ="D",ROUND(1/((1+#REF!)^A9),9) * 2,ROUND(1/((1+#REF!)^A9),9))) -> 
A10: 7 | B10: 7 | E10: =IF(ISERROR(MATCH(D10,#REF!,0))=FALSE,"C",IF(ISERROR(MATCH(D10,#REF!,0))=FALSE,"D","")) ->  | F10: =IF(E10="C",0,IF(E10 ="D",ROUND(1/((1+#REF!)^A10),9) * 2,ROUND(1/((1+#REF!)^A10),9))) -> 
A11: 8 | B11: 8 | E11: =IF(ISERROR(MATCH(D11,#REF!,0))=FALSE,"C",IF(ISERROR(MATCH(D11,#REF!,0))=FALSE,"D","")) ->  | F11: =IF(E11="C",0,IF(E11 ="D",ROUND(1/((1+#REF!)^A11),9) * 2,ROUND(1/((1+#REF!)^A11),9))) -> 
A12: 9 | B12: 9 | E12: =IF(ISERROR(MATCH(D12,#REF!,0))=FALSE,"C",IF(ISERROR(MATCH(D12,#REF!,0))=FALSE,"D","")) ->  | F12: =IF(E12="C",0,IF(E12 ="D",ROUND(1/((1+#REF!)^A12),9) * 2,ROUND(1/((1+#REF!)^A12),9))) -> 
A13: 10 | B13: 10 | E13: =IF(ISERROR(MATCH(D13,#REF!,0))=FALSE,"C",IF(ISERROR(MATCH(D13,#REF!,0))=FALSE,"D","")) ->  | F13: =IF(E13="C",0,IF(E13 ="D",ROUND(1/((1+#REF!)^A13),9) * 2,ROUND(1/((1+#REF!)^A13),9))) -> 
A14: 11 | B14: 11 | E14: =IF(ISERROR(MATCH(D14,#REF!,0))=FALSE,"C",IF(ISERROR(MATCH(D14,#REF!,0))=FALSE,"D","")) ->  | F14: =IF(E14="C",0,IF(E14 ="D",ROUND(1/((1+#REF!)^A14),9) * 2,ROUND(1/((1+#REF!)^A14),9))) -> 
A15: 12 | B15: 12 | E15: =IF(ISERROR(MATCH(D15,#REF!,0))=FALSE,"C",IF(ISERROR(MATCH(D15,#REF!,0))=FALSE,"D","")) ->  | F15: =IF(E15="C",0,IF(E15 ="D",ROUND(1/((1+#REF!)^A15),9) * 2,ROUND(1/((1+#REF!)^A15),9))) -> 
A16: 13 | B16: 13 | E16: =IF(ISERROR(MATCH(D16,#REF!,0))=FALSE,"C",IF(ISERROR(MATCH(D16,#REF!,0))=FALSE,"D","")) ->  | F16: =IF(E16="C",0,IF(E16 ="D",ROUND(1/((1+#REF!)^A16),9) * 2,ROUND(1/((1+#REF!)^A16),9))) -> 
A17: 14 | B17: 14 | E17: =IF(ISERROR(MATCH(D17,#REF!,0))=FALSE,"C",IF(ISERROR(MATCH(D17,#REF!,0))=FALSE,"D","")) ->  | F17: =IF(E17="C",0,IF(E17 ="D",ROUND(1/((1+#REF!)^A17),9) * 2,ROUND(1/((1+#REF!)^A17),9))) -> 
A18: 15 | B18: 15 | E18: =IF(ISERROR(MATCH(D18,#REF!,0))=FALSE,"C",IF(ISERROR(MATCH(D18,#REF!,0))=FALSE,"D","")) ->  | F18: =IF(E18="C",0,IF(E18 ="D",ROUND(1/((1+#REF!)^A18),9) * 2,ROUND(1/((1+#REF!)^A18),9))) -> 
A19: 16 | B19: 16 | E19: =IF(ISERROR(MATCH(D19,#REF!,0))=FALSE,"C",IF(ISERROR(MATCH(D19,#REF!,0))=FALSE,"D","")) ->  | F19: =IF(E19="C",0,IF(E19 ="D",ROUND(1/((1+#REF!)^A19),9) * 2,ROUND(1/((1+#REF!)^A19),9))) -> 
A20: 17 | B20: 17 | E20: =IF(ISERROR(MATCH(D20,#REF!,0))=FALSE,"C",IF(ISERROR(MATCH(D20,#REF!,0))=FALSE,"D","")) ->  | F20: =IF(E20="C",0,IF(E20 ="D",ROUND(1/((1+#REF!)^A20),9) * 2,ROUND(1/((1+#REF!)^A20),9))) -> 
A21: 18 | B21: 18 | E21: =IF(ISERROR(MATCH(D21,#REF!,0))=FALSE,"C",IF(ISERROR(MATCH(D21,#REF!,0))=FALSE,"D","")) ->  | F21: =IF(E21="C",0,IF(E21 ="D",ROUND(1/((1+#REF!)^A21),9) * 2,ROUND(1/((1+#REF!)^A21),9))) -> 
A22: 19 | B22: 19 | E22: =IF(ISERROR(MATCH(D22,#REF!,0))=FALSE,"C",IF(ISERROR(MATCH(D22,#REF!,0))=FALSE,"D","")) ->  | F22: =IF(E22="C",0,IF(E22 ="D",ROUND(1/((1+#REF!)^A22),9) * 2,ROUND(1/((1+#REF!)^A22),9))) -> 
A23: 20 | B23: 20 | E23: =IF(ISERROR(MATCH(D23,#REF!,0))=FALSE,"C",IF(ISERROR(MATCH(D23,#REF!,0))=FALSE,"D","")) ->  | F23: =IF(E23="C",0,IF(E23 ="D",ROUND(1/((1+#REF!)^A23),9) * 2,ROUND(1/((1+#REF!)^A23),9))) -> 
A24: 21 | B24: 21 | E24: =IF(ISERROR(MATCH(D24,#REF!,0))=FALSE,"C",IF(ISERROR(MATCH(D24,#REF!,0))=FALSE,"D","")) ->  | F24: =IF(E24="C",0,IF(E24 ="D",ROUND(1/((1+#REF!)^A24),9) * 2,ROUND(1/((1+#REF!)^A24),9))) -> 
A25: 22 | B25: 22 | E25: =IF(ISERROR(MATCH(D25,#REF!,0))=FALSE,"C",IF(ISERROR(MATCH(D25,#REF!,0))=FALSE,"D","")) ->  | F25: =IF(E25="C",0,IF(E25 ="D",ROUND(1/((1+#REF!)^A25),9) * 2,ROUND(1/((1+#REF!)^A25),9))) -> 
A26: 23 | B26: 23 | E26: =IF(ISERROR(MATCH(D26,#REF!,0))=FALSE,"C",IF(ISERROR(MATCH(D26,#REF!,0))=FALSE,"D","")) ->  | F26: =IF(E26="C",0,IF(E26 ="D",ROUND(1/((1+#REF!)^A26),9) * 2,ROUND(1/((1+#REF!)^A26),9))) -> 
A27: 24 | B27: 24 | E27: =IF(ISERROR(MATCH(D27,#REF!,0))=FALSE,"C",IF(ISERROR(MATCH(D27,#REF!,0))=FALSE,"D","")) ->  | F27: =IF(E27="C",0,IF(E27 ="D",ROUND(1/((1+#REF!)^A27),9) * 2,ROUND(1/((1+#REF!)^A27),9))) -> 
A28: 25 | B28: 25 | E28: =IF(ISERROR(MATCH(D28,#REF!,0))=FALSE,"C",IF(ISERROR(MATCH(D28,#REF!,0))=FALSE,"D","")) ->  | F28: =IF(E28="C",0,IF(E28 ="D",ROUND(1/((1+#REF!)^A28),9) * 2,ROUND(1/((1+#REF!)^A28),9))) -> 
A29: 26 | B29: 26 | E29: =IF(ISERROR(MATCH(D29,#REF!,0))=FALSE,"C",IF(ISERROR(MATCH(D29,#REF!,0))=FALSE,"D","")) ->  | F29: =IF(E29="C",0,IF(E29 ="D",ROUND(1/((1+#REF!)^A29),9) * 2,ROUND(1/((1+#REF!)^A29),9))) -> 
A30: 27 | B30: 27 | E30: =IF(ISERROR(MATCH(D30,#REF!,0))=FALSE,"C",IF(ISERROR(MATCH(D30,#REF!,0))=FALSE,"D","")) ->  | F30: =IF(E30="C",0,IF(E30 ="D",ROUND(1/((1+#REF!)^A30),9) * 2,ROUND(1/((1+#REF!)^A30),9))) -> 
A31: 28 | B31: 28 | E31: =IF(ISERROR(MATCH(D31,#REF!,0))=FALSE,"C",IF(ISERROR(MATCH(D31,#REF!,0))=FALSE,"D","")) ->  | F31: =IF(E31="C",0,IF(E31 ="D",ROUND(1/((1+#REF!)^A31),9) * 2,ROUND(1/((1+#REF!)^A31),9))) -> 
A32: 29 | B32: 29 | E32: =IF(ISERROR(MATCH(D32,#REF!,0))=FALSE,"C",IF(ISERROR(MATCH(D32,#REF!,0))=FALSE,"D","")) ->  | F32: =IF(E32="C",0,IF(E32 ="D",ROUND(1/((1+#REF!)^A32),9) * 2,ROUND(1/((1+#REF!)^A32),9))) -> 
A33: 30 | B33: 30 | E33: =IF(ISERROR(MATCH(D33,#REF!,0))=FALSE,"C",IF(ISERROR(MATCH(D33,#REF!,0))=FALSE,"D","")) ->  | F33: =IF(E33="C",0,IF(E33 ="D",ROUND(1/((1+#REF!)^A33),9) * 2,ROUND(1/((1+#REF!)^A33),9))) -> 
A34: 31 | B34: 31 | E34: =IF(ISERROR(MATCH(D34,#REF!,0))=FALSE,"C",IF(ISERROR(MATCH(D34,#REF!,0))=FALSE,"D","")) ->  | F34: =IF(E34="C",0,IF(E34 ="D",ROUND(1/((1+#REF!)^A34),9) * 2,ROUND(1/((1+#REF!)^A34),9))) -> 
A35: 32 | B35: 32 | E35: =IF(ISERROR(MATCH(D35,#REF!,0))=FALSE,"C",IF(ISERROR(MATCH(D35,#REF!,0))=FALSE,"D","")) ->  | F35: =IF(E35="C",0,IF(E35 ="D",ROUND(1/((1+#REF!)^A35),9) * 2,ROUND(1/((1+#REF!)^A35),9))) -> 
A36: 33 | B36: 33 | E36: =IF(ISERROR(MATCH(D36,#REF!,0))=FALSE,"C",IF(ISERROR(MATCH(D36,#REF!,0))=FALSE,"D","")) ->  | F36: =IF(E36="C",0,IF(E36 ="D",ROUND(1/((1+#REF!)^A36),9) * 2,ROUND(1/((1+#REF!)^A36),9))) -> 
A37: 34 | B37: 34 | E37: =IF(ISERROR(MATCH(D37,#REF!,0))=FALSE,"C",IF(ISERROR(MATCH(D37,#REF!,0))=FALSE,"D","")) ->  | F37: =IF(E37="C",0,IF(E37 ="D",ROUND(1/((1+#REF!)^A37),9) * 2,ROUND(1/((1+#REF!)^A37),9))) -> 
A38: 35 | B38: 35 | E38: =IF(ISERROR(MATCH(D38,#REF!,0))=FALSE,"C",IF(ISERROR(MATCH(D38,#REF!,0))=FALSE,"D","")) ->  | F38: =IF(E38="C",0,IF(E38 ="D",ROUND(1/((1+#REF!)^A38),9) * 2,ROUND(1/((1+#REF!)^A38),9))) -> 
A39: 36 | B39: 36 | E39: =IF(ISERROR(MATCH(D39,#REF!,0))=FALSE,"C",IF(ISERROR(MATCH(D39,#REF!,0))=FALSE,"D","")) ->  | F39: =IF(E39="C",0,IF(E39 ="D",ROUND(1/((1+#REF!)^A39),9) * 2,ROUND(1/((1+#REF!)^A39),9))) -> 
A40: 37 | B40: 37 | E40: =IF(ISERROR(MATCH(D40,#REF!,0))=FALSE,"C",IF(ISERROR(MATCH(D40,#REF!,0))=FALSE,"D","")) ->  | F40: =IF(E40="C",0,IF(E40 ="D",ROUND(1/((1+#REF!)^A40),9) * 2,ROUND(1/((1+#REF!)^A40),9))) -> 
A41: 38 | B41: 38 | E41: =IF(ISERROR(MATCH(D41,#REF!,0))=FALSE,"C",IF(ISERROR(MATCH(D41,#REF!,0))=FALSE,"D","")) ->  | F41: =IF(E41="C",0,IF(E41 ="D",ROUND(1/((1+#REF!)^A41),9) * 2,ROUND(1/((1+#REF!)^A41),9))) -> 
A42: 39 | B42: 39 | E42: =IF(ISERROR(MATCH(D42,#REF!,0))=FALSE,"C",IF(ISERROR(MATCH(D42,#REF!,0))=FALSE,"D","")) ->  | F42: =IF(E42="C",0,IF(E42 ="D",ROUND(1/((1+#REF!)^A42),9) * 2,ROUND(1/((1+#REF!)^A42),9))) -> 
A43: 40 | B43: 40 | E43: =IF(ISERROR(MATCH(D43,#REF!,0))=FALSE,"C",IF(ISERROR(MATCH(D43,#REF!,0))=FALSE,"D","")) ->  | F43: =IF(E43="C",0,IF(E43 ="D",ROUND(1/((1+#REF!)^A43),9) * 2,ROUND(1/((1+#REF!)^A43),9))) -> 
A44: 41 | B44: 41 | E44: =IF(ISERROR(MATCH(D44,#REF!,0))=FALSE,"C",IF(ISERROR(MATCH(D44,#REF!,0))=FALSE,"D","")) ->  | F44: =IF(E44="C",0,IF(E44 ="D",ROUND(1/((1+#REF!)^A44),9) * 2,ROUND(1/((1+#REF!)^A44),9))) -> 
A45: 42 | B45: 42 | E45: =IF(ISERROR(MATCH(D45,#REF!,0))=FALSE,"C",IF(ISERROR(MATCH(D45,#REF!,0))=FALSE,"D","")) ->  | F45: =IF(E45="C",0,IF(E45 ="D",ROUND(1/((1+#REF!)^A45),9) * 2,ROUND(1/((1+#REF!)^A45),9))) -> 
A46: 43 | B46: 43 | E46: =IF(ISERROR(MATCH(D46,#REF!,0))=FALSE,"C",IF(ISERROR(MATCH(D46,#REF!,0))=FALSE,"D","")) ->  | F46: =IF(E46="C",0,IF(E46 ="D",ROUND(1/((1+#REF!)^A46),9) * 2,ROUND(1/((1+#REF!)^A46),9))) -> 
A47: 44 | B47: 44 | E47: =IF(ISERROR(MATCH(D47,#REF!,0))=FALSE,"C",IF(ISERROR(MATCH(D47,#REF!,0))=FALSE,"D","")) ->  | F47: =IF(E47="C",0,IF(E47 ="D",ROUND(1/((1+#REF!)^A47),9) * 2,ROUND(1/((1+#REF!)^A47),9))) -> 
A48: 45 | B48: 45 | E48: =IF(ISERROR(MATCH(D48,#REF!,0))=FALSE,"C",IF(ISERROR(MATCH(D48,#REF!,0))=FALSE,"D","")) ->  | F48: =IF(E48="C",0,IF(E48 ="D",ROUND(1/((1+#REF!)^A48),9) * 2,ROUND(1/((1+#REF!)^A48),9))) -> 
A49: 46 | B49: 46 | E49: =IF(ISERROR(MATCH(D49,#REF!,0))=FALSE,"C",IF(ISERROR(MATCH(D49,#REF!,0))=FALSE,"D","")) ->  | F49: =IF(E49="C",0,IF(E49 ="D",ROUND(1/((1+#REF!)^A49),9) * 2,ROUND(1/((1+#REF!)^A49),9))) -> 
A50: 47 | B50: 47 | E50: =IF(ISERROR(MATCH(D50,#REF!,0))=FALSE,"C",IF(ISERROR(MATCH(D50,#REF!,0))=FALSE,"D","")) ->  | F50: =IF(E50="C",0,IF(E50 ="D",ROUND(1/((1+#REF!)^A50),9) * 2,ROUND(1/((1+#REF!)^A50),9))) -> 
A51: 48 | B51: 48 | E51: =IF(ISERROR(MATCH(D51,#REF!,0))=FALSE,"C",IF(ISERROR(MATCH(D51,#REF!,0))=FALSE,"D","")) ->  | F51: =IF(E51="C",0,IF(E51 ="D",ROUND(1/((1+#REF!)^A51),9) * 2,ROUND(1/((1+#REF!)^A51),9))) -> 
A52: 49 | B52: 49 | E52: =IF(ISERROR(MATCH(D52,#REF!,0))=FALSE,"C",IF(ISERROR(MATCH(D52,#REF!,0))=FALSE,"D","")) ->  | F52: =IF(E52="C",0,IF(E52 ="D",ROUND(1/((1+#REF!)^A52),9) * 2,ROUND(1/((1+#REF!)^A52),9))) -> 
A53: 50 | B53: 50 | E53: =IF(ISERROR(MATCH(D53,#REF!,0))=FALSE,"C",IF(ISERROR(MATCH(D53,#REF!,0))=FALSE,"D","")) ->  | F53: =IF(E53="C",0,IF(E53 ="D",ROUND(1/((1+#REF!)^A53),9) * 2,ROUND(1/((1+#REF!)^A53),9))) -> 
A54: 51 | B54: 51 | E54: =IF(ISERROR(MATCH(D54,#REF!,0))=FALSE,"C",IF(ISERROR(MATCH(D54,#REF!,0))=FALSE,"D","")) ->  | F54: =IF(E54="C",0,IF(E54 ="D",ROUND(1/((1+#REF!)^A54),9) * 2,ROUND(1/((1+#REF!)^A54),9))) -> 
A55: 52 | B55: 52 | E55: =IF(ISERROR(MATCH(D55,#REF!,0))=FALSE,"C",IF(ISERROR(MATCH(D55,#REF!,0))=FALSE,"D","")) ->  | F55: =IF(E55="C",0,IF(E55 ="D",ROUND(1/((1+#REF!)^A55),9) * 2,ROUND(1/((1+#REF!)^A55),9))) -> 
A56: 53 | B56: 53 | E56: =IF(ISERROR(MATCH(D56,#REF!,0))=FALSE,"C",IF(ISERROR(MATCH(D56,#REF!,0))=FALSE,"D","")) ->  | F56: =IF(E56="C",0,IF(E56 ="D",ROUND(1/((1+#REF!)^A56),9) * 2,ROUND(1/((1+#REF!)^A56),9))) -> 
A57: 54 | B57: 54 | E57: =IF(ISERROR(MATCH(D57,#REF!,0))=FALSE,"C",IF(ISERROR(MATCH(D57,#REF!,0))=FALSE,"D","")) ->  | F57: =IF(E57="C",0,IF(E57 ="D",ROUND(1/((1+#REF!)^A57),9) * 2,ROUND(1/((1+#REF!)^A57),9))) -> 
A58: 55 | B58: 55 | E58: =IF(ISERROR(MATCH(D58,#REF!,0))=FALSE,"C",IF(ISERROR(MATCH(D58,#REF!,0))=FALSE,"D","")) ->  | F58: =IF(E58="C",0,IF(E58 ="D",ROUND(1/((1+#REF!)^A58),9) * 2,ROUND(1/((1+#REF!)^A58),9))) -> 
A59: 56 | B59: 56 | E59: =IF(ISERROR(MATCH(D59,#REF!,0))=FALSE,"C",IF(ISERROR(MATCH(D59,#REF!,0))=FALSE,"D","")) ->  | F59: =IF(E59="C",0,IF(E59 ="D",ROUND(1/((1+#REF!)^A59),9) * 2,ROUND(1/((1+#REF!)^A59),9))) -> 
A60: 57 | B60: 57 | E60: =IF(ISERROR(MATCH(D60,#REF!,0))=FALSE,"C",IF(ISERROR(MATCH(D60,#REF!,0))=FALSE,"D","")) ->  | F60: =IF(E60="C",0,IF(E60 ="D",ROUND(1/((1+#REF!)^A60),9) * 2,ROUND(1/((1+#REF!)^A60),9))) -> 
A61: 58 | B61: 58 | E61: =IF(ISERROR(MATCH(D61,#REF!,0))=FALSE,"C",IF(ISERROR(MATCH(D61,#REF!,0))=FALSE,"D","")) ->  | F61: =IF(E61="C",0,IF(E61 ="D",ROUND(1/((1+#REF!)^A61),9) * 2,ROUND(1/((1+#REF!)^A61),9))) -> 
A62: 59 | B62: 59 | E62: =IF(ISERROR(MATCH(D62,#REF!,0))=FALSE,"C",IF(ISERROR(MATCH(D62,#REF!,0))=FALSE,"D","")) ->  | F62: =IF(E62="C",0,IF(E62 ="D",ROUND(1/((1+#REF!)^A62),9) * 2,ROUND(1/((1+#REF!)^A62),9))) -> 
A63: 60 | B63: 60 | E63: =IF(ISERROR(MATCH(D63,#REF!,0))=FALSE,"C",IF(ISERROR(MATCH(D63,#REF!,0))=FALSE,"D","")) ->  | F63: =IF(E63="C",0,IF(E63 ="D",ROUND(1/((1+#REF!)^A63),9) * 2,ROUND(1/((1+#REF!)^A63),9))) -> 
A64: 61 | B64: 61 | E64: =IF(ISERROR(MATCH(D64,#REF!,0))=FALSE,"C",IF(ISERROR(MATCH(D64,#REF!,0))=FALSE,"D","")) ->  | F64: =IF(E64="C",0,IF(E64 ="D",ROUND(1/((1+#REF!)^A64),9) * 2,ROUND(1/((1+#REF!)^A64),9))) -> 
A65: 62 | B65: 62 | E65: =IF(ISERROR(MATCH(D65,#REF!,0))=FALSE,"C",IF(ISERROR(MATCH(D65,#REF!,0))=FALSE,"D","")) ->  | F65: =IF(E65="C",0,IF(E65 ="D",ROUND(1/((1+#REF!)^A65),9) * 2,ROUND(1/((1+#REF!)^A65),9))) -> 
A66: 63 | B66: 63 | E66: =IF(ISERROR(MATCH(D66,#REF!,0))=FALSE,"C",IF(ISERROR(MATCH(D66,#REF!,0))=FALSE,"D","")) ->  | F66: =IF(E66="C",0,IF(E66 ="D",ROUND(1/((1+#REF!)^A66),9) * 2,ROUND(1/((1+#REF!)^A66),9))) -> 
A67: 64 | B67: 64 | E67: =IF(ISERROR(MATCH(D67,#REF!,0))=FALSE,"C",IF(ISERROR(MATCH(D67,#REF!,0))=FALSE,"D","")) ->  | F67: =IF(E67="C",0,IF(E67 ="D",ROUND(1/((1+#REF!)^A67),9) * 2,ROUND(1/((1+#REF!)^A67),9))) -> 
A68: 65 | B68: 65 | D68: =MONTH(C68) ->  | E68: =IF(ISERROR(MATCH(D68,#REF!,0))=FALSE,"C",IF(ISERROR(MATCH(D68,#REF!,0))=FALSE,"D","")) ->  | F68: =IF(E68="C",0,IF(E68 ="D",ROUND(1/((1+#REF!)^A68),9) * 2,ROUND(1/((1+#REF!)^A68),9))) -> 
A69: =A68+1 -> 66 | B69: =IF(E69<>"C",IF(ISERROR(1+B68)=TRUE,1,1+B68),IF(ISNUMBER(B68),B68,1)) -> 66 | C69: =DATE(YEAR(C68) + 1/12,MONTH(C68)+1,DAY(C68)) ->  | E69: =IF(ISERROR(MATCH(D69,#REF!,0))=FALSE,"C",IF(ISERROR(MATCH(D69,#REF!,0))=FALSE,"D","")) ->  | F69: =IF(E69="C",0,IF(E69 ="D",ROUND(1/((1+#REF!)^A69),9) * 2,ROUND(1/((1+#REF!)^A69),9))) -> 
A70: 67 | B70: 67 | E70: =IF(ISERROR(MATCH(D70,#REF!,0))=FALSE,"C",IF(ISERROR(MATCH(D70,#REF!,0))=FALSE,"D","")) ->  | F70: =IF(E70="C",0,IF(E70 ="D",ROUND(1/((1+#REF!)^A70),9) * 2,ROUND(1/((1+#REF!)^A70),9))) ->  | G70: =G69+ROUND(F70,9) -> 
A71: 68 | B71: 68 | E71: =IF(ISERROR(MATCH(D71,#REF!,0))=FALSE,"C",IF(ISERROR(MATCH(D71,#REF!,0))=FALSE,"D","")) ->  | F71: =IF(E71="C",0,IF(E71 ="D",ROUND(1/((1+#REF!)^A71),9) * 2,ROUND(1/((1+#REF!)^A71),9))) -> 
A72: 69 | B72: 69 | E72: =IF(ISERROR(MATCH(D72,#REF!,0))=FALSE,"C",IF(ISERROR(MATCH(D72,#REF!,0))=FALSE,"D","")) ->  | F72: =IF(E72="C",0,IF(E72 ="D",ROUND(1/((1+#REF!)^A72),9) * 2,ROUND(1/((1+#REF!)^A72),9))) -> 
A73: 70 | B73: 70 | E73: =IF(ISERROR(MATCH(D73,#REF!,0))=FALSE,"C",IF(ISERROR(MATCH(D73,#REF!,0))=FALSE,"D","")) ->  | F73: =IF(E73="C",0,IF(E73 ="D",ROUND(1/((1+#REF!)^A73),9) * 2,ROUND(1/((1+#REF!)^A73),9))) -> 
A74: 71 | B74: 71 | E74: =IF(ISERROR(MATCH(D74,#REF!,0))=FALSE,"C",IF(ISERROR(MATCH(D74,#REF!,0))=FALSE,"D","")) ->  | F74: =IF(E74="C",0,IF(E74 ="D",ROUND(1/((1+#REF!)^A74),9) * 2,ROUND(1/((1+#REF!)^A74),9))) -> 
A75: 72 | B75: 72 | E75: =IF(ISERROR(MATCH(D75,#REF!,0))=FALSE,"C",IF(ISERROR(MATCH(D75,#REF!,0))=FALSE,"D","")) ->  | F75: =IF(E75="C",0,IF(E75 ="D",ROUND(1/((1+#REF!)^A75),9) * 2,ROUND(1/((1+#REF!)^A75),9))) -> 
A76: 73 | B76: 73 | E76: =IF(ISERROR(MATCH(D76,#REF!,0))=FALSE,"C",IF(ISERROR(MATCH(D76,#REF!,0))=FALSE,"D","")) ->  | F76: =IF(E76="C",0,IF(E76 ="D",ROUND(1/((1+#REF!)^A76),9) * 2,ROUND(1/((1+#REF!)^A76),9))) -> 
A77: 74 | B77: 74 | E77: =IF(ISERROR(MATCH(D77,#REF!,0))=FALSE,"C",IF(ISERROR(MATCH(D77,#REF!,0))=FALSE,"D","")) ->  | F77: =IF(E77="C",0,IF(E77 ="D",ROUND(1/((1+#REF!)^A77),9) * 2,ROUND(1/((1+#REF!)^A77),9))) -> 
A78: 75 | B78: 75 | E78: =IF(ISERROR(MATCH(D78,#REF!,0))=FALSE,"C",IF(ISERROR(MATCH(D78,#REF!,0))=FALSE,"D","")) ->  | F78: =IF(E78="C",0,IF(E78 ="D",ROUND(1/((1+#REF!)^A78),9) * 2,ROUND(1/((1+#REF!)^A78),9))) -> 
A79: 76 | B79: 76 | E79: =IF(ISERROR(MATCH(D79,#REF!,0))=FALSE,"C",IF(ISERROR(MATCH(D79,#REF!,0))=FALSE,"D","")) ->  | F79: =IF(E79="C",0,IF(E79 ="D",ROUND(1/((1+#REF!)^A79),9) * 2,ROUND(1/((1+#REF!)^A79),9))) -> 
A80: 77 | B80: 77 | E80: =IF(ISERROR(MATCH(D80,#REF!,0))=FALSE,"C",IF(ISERROR(MATCH(D80,#REF!,0))=FALSE,"D","")) ->  | F80: =IF(E80="C",0,IF(E80 ="D",ROUND(1/((1+#REF!)^A80),9) * 2,ROUND(1/((1+#REF!)^A80),9))) -> 
A81: 78 | B81: 78 | E81: =IF(ISERROR(MATCH(D81,#REF!,0))=FALSE,"C",IF(ISERROR(MATCH(D81,#REF!,0))=FALSE,"D","")) ->  | F81: =IF(E81="C",0,IF(E81 ="D",ROUND(1/((1+#REF!)^A81),9) * 2,ROUND(1/((1+#REF!)^A81),9))) -> 
A82: 79 | B82: 79 | E82: =IF(ISERROR(MATCH(D82,#REF!,0))=FALSE,"C",IF(ISERROR(MATCH(D82,#REF!,0))=FALSE,"D","")) ->  | F82: =IF(E82="C",0,IF(E82 ="D",ROUND(1/((1+#REF!)^A82),9) * 2,ROUND(1/((1+#REF!)^A82),9))) -> 
A83: 80 | B83: 80 | E83: =IF(ISERROR(MATCH(D83,#REF!,0))=FALSE,"C",IF(ISERROR(MATCH(D83,#REF!,0))=FALSE,"D","")) ->  | F83: =IF(E83="C",0,IF(E83 ="D",ROUND(1/((1+#REF!)^A83),9) * 2,ROUND(1/((1+#REF!)^A83),9))) -> 
A84: 81 | B84: 81 | E84: =IF(ISERROR(MATCH(D84,#REF!,0))=FALSE,"C",IF(ISERROR(MATCH(D84,#REF!,0))=FALSE,"D","")) ->  | F84: =IF(E84="C",0,IF(E84 ="D",ROUND(1/((1+#REF!)^A84),9) * 2,ROUND(1/((1+#REF!)^A84),9))) -> 
A85: 82 | B85: 82 | E85: =IF(ISERROR(MATCH(D85,#REF!,0))=FALSE,"C",IF(ISERROR(MATCH(D85,#REF!,0))=FALSE,"D","")) ->  | F85: =IF(E85="C",0,IF(E85 ="D",ROUND(1/((1+#REF!)^A85),9) * 2,ROUND(1/((1+#REF!)^A85),9))) -> 
A86: 83 | B86: 83 | E86: =IF(ISERROR(MATCH(D86,#REF!,0))=FALSE,"C",IF(ISERROR(MATCH(D86,#REF!,0))=FALSE,"D","")) ->  | F86: =IF(E86="C",0,IF(E86 ="D",ROUND(1/((1+#REF!)^A86),9) * 2,ROUND(1/((1+#REF!)^A86),9))) -> 
A87: 84 | B87: 84 | E87: =IF(ISERROR(MATCH(D87,#REF!,0))=FALSE,"C",IF(ISERROR(MATCH(D87,#REF!,0))=FALSE,"D","")) ->  | F87: =IF(E87="C",0,IF(E87 ="D",ROUND(1/((1+#REF!)^A87),9) * 2,ROUND(1/((1+#REF!)^A87),9))) -> 
A88: 85 | B88: 85 | E88: =IF(ISERROR(MATCH(D88,#REF!,0))=FALSE,"C",IF(ISERROR(MATCH(D88,#REF!,0))=FALSE,"D","")) ->  | F88: =IF(E88="C",0,IF(E88 ="D",ROUND(1/((1+#REF!)^A88),9) * 2,ROUND(1/((1+#REF!)^A88),9))) -> 
A89: 86 | B89: 86 | E89: =IF(ISERROR(MATCH(D89,#REF!,0))=FALSE,"C",IF(ISERROR(MATCH(D89,#REF!,0))=FALSE,"D","")) ->  | F89: =IF(E89="C",0,IF(E89 ="D",ROUND(1/((1+#REF!)^A89),9) * 2,ROUND(1/((1+#REF!)^A89),9))) -> 
A90: 87 | B90: 87 | E90: =IF(ISERROR(MATCH(D90,#REF!,0))=FALSE,"C",IF(ISERROR(MATCH(D90,#REF!,0))=FALSE,"D","")) ->  | F90: =IF(E90="C",0,IF(E90 ="D",ROUND(1/((1+#REF!)^A90),9) * 2,ROUND(1/((1+#REF!)^A90),9))) -> 
A91: 88 | B91: 88 | E91: =IF(ISERROR(MATCH(D91,#REF!,0))=FALSE,"C",IF(ISERROR(MATCH(D91,#REF!,0))=FALSE,"D","")) ->  | F91: =IF(E91="C",0,IF(E91 ="D",ROUND(1/((1+#REF!)^A91),9) * 2,ROUND(1/((1+#REF!)^A91),9))) -> 
A92: 89 | B92: 89 | E92: =IF(ISERROR(MATCH(D92,#REF!,0))=FALSE,"C",IF(ISERROR(MATCH(D92,#REF!,0))=FALSE,"D","")) ->  | F92: =IF(E92="C",0,IF(E92 ="D",ROUND(1/((1+#REF!)^A92),9) * 2,ROUND(1/((1+#REF!)^A92),9))) -> 
A93: 90 | B93: 90 | E93: =IF(ISERROR(MATCH(D93,#REF!,0))=FALSE,"C",IF(ISERROR(MATCH(D93,#REF!,0))=FALSE,"D","")) ->  | F93: =IF(E93="C",0,IF(E93 ="D",ROUND(1/((1+#REF!)^A93),9) * 2,ROUND(1/((1+#REF!)^A93),9))) -> 
A94: 91 | B94: 91 | E94: =IF(ISERROR(MATCH(D94,#REF!,0))=FALSE,"C",IF(ISERROR(MATCH(D94,#REF!,0))=FALSE,"D","")) ->  | F94: =IF(E94="C",0,IF(E94 ="D",ROUND(1/((1+#REF!)^A94),9) * 2,ROUND(1/((1+#REF!)^A94),9))) -> 
A95: 92 | B95: 92 | E95: =IF(ISERROR(MATCH(D95,#REF!,0))=FALSE,"C",IF(ISERROR(MATCH(D95,#REF!,0))=FALSE,"D","")) ->  | F95: =IF(E95="C",0,IF(E95 ="D",ROUND(1/((1+#REF!)^A95),9) * 2,ROUND(1/((1+#REF!)^A95),9))) -> 
A96: 93 | B96: 93 | E96: =IF(ISERROR(MATCH(D96,#REF!,0))=FALSE,"C",IF(ISERROR(MATCH(D96,#REF!,0))=FALSE,"D","")) ->  | F96: =IF(E96="C",0,IF(E96 ="D",ROUND(1/((1+#REF!)^A96),9) * 2,ROUND(1/((1+#REF!)^A96),9))) -> 
A97: 94 | B97: 94 | E97: =IF(ISERROR(MATCH(D97,#REF!,0))=FALSE,"C",IF(ISERROR(MATCH(D97,#REF!,0))=FALSE,"D","")) ->  | F97: =IF(E97="C",0,IF(E97 ="D",ROUND(1/((1+#REF!)^A97),9) * 2,ROUND(1/((1+#REF!)^A97),9))) -> 
A98: 95 | B98: 95 | E98: =IF(ISERROR(MATCH(D98,#REF!,0))=FALSE,"C",IF(ISERROR(MATCH(D98,#REF!,0))=FALSE,"D","")) ->  | F98: =IF(E98="C",0,IF(E98 ="D",ROUND(1/((1+#REF!)^A98),9) * 2,ROUND(1/((1+#REF!)^A98),9))) -> 
A99: 96 | B99: 96 | E99: =IF(ISERROR(MATCH(D99,#REF!,0))=FALSE,"C",IF(ISERROR(MATCH(D99,#REF!,0))=FALSE,"D","")) ->  | F99: =IF(E99="C",0,IF(E99 ="D",ROUND(1/((1+#REF!)^A99),9) * 2,ROUND(1/((1+#REF!)^A99),9))) -> 
A100: 97 | B100: =IF(E100<>"C",IF(ISERROR(1+B99)=TRUE,1,1+B99),IF(ISNUMBER(B99),B99,1)) -> 97 | D100: =MONTH(C100) ->  | E100: =IF(ISERROR(MATCH(D100,#REF!,0))=FALSE,"C",IF(ISERROR(MATCH(D100,#REF!,0))=FALSE,"D","")) ->  | F100: =IF(E100="C",0,IF(E100 ="D",ROUND(1/((1+#REF!)^A100),9) * 2,ROUND(1/((1+#REF!)^A100),9))) ->  | G100: =G99+ROUND(F100,9) -> 
A101: 98 | B101: 98 | E101: =IF(ISERROR(MATCH(D101,#REF!,0))=FALSE,"C",IF(ISERROR(MATCH(D101,#REF!,0))=FALSE,"D","")) ->  | F101: =IF(E101="C",0,IF(E101 ="D",ROUND(1/((1+#REF!)^A101),9) * 2,ROUND(1/((1+#REF!)^A101),9))) -> 
A102: 99 | B102: 99 | E102: =IF(ISERROR(MATCH(D102,#REF!,0))=FALSE,"C",IF(ISERROR(MATCH(D102,#REF!,0))=FALSE,"D","")) ->  | F102: =IF(E102="C",0,IF(E102 ="D",ROUND(1/((1+#REF!)^A102),9) * 2,ROUND(1/((1+#REF!)^A102),9))) -> 
A103: 100 | B103: 100 | E103: =IF(ISERROR(MATCH(D103,#REF!,0))=FALSE,"C",IF(ISERROR(MATCH(D103,#REF!,0))=FALSE,"D","")) ->  | F103: =IF(E103="C",0,IF(E103 ="D",ROUND(1/((1+#REF!)^A103),9) * 2,ROUND(1/((1+#REF!)^A103),9))) -> 
A104: 101 | B104: 101 | E104: =IF(ISERROR(MATCH(D104,#REF!,0))=FALSE,"C",IF(ISERROR(MATCH(D104,#REF!,0))=FALSE,"D","")) ->  | F104: =IF(E104="C",0,IF(E104 ="D",ROUND(1/((1+#REF!)^A104),9) * 2,ROUND(1/((1+#REF!)^A104),9))) -> 
A105: 102 | B105: 102 | E105: =IF(ISERROR(MATCH(D105,#REF!,0))=FALSE,"C",IF(ISERROR(MATCH(D105,#REF!,0))=FALSE,"D","")) ->  | F105: =IF(E105="C",0,IF(E105 ="D",ROUND(1/((1+#REF!)^A105),9) * 2,ROUND(1/((1+#REF!)^A105),9))) -> 
A106: 103 | B106: 103 | E106: =IF(ISERROR(MATCH(D106,#REF!,0))=FALSE,"C",IF(ISERROR(MATCH(D106,#REF!,0))=FALSE,"D","")) ->  | F106: =IF(E106="C",0,IF(E106 ="D",ROUND(1/((1+#REF!)^A106),9) * 2,ROUND(1/((1+#REF!)^A106),9))) -> 
A107: 104 | B107: 104 | E107: =IF(ISERROR(MATCH(D107,#REF!,0))=FALSE,"C",IF(ISERROR(MATCH(D107,#REF!,0))=FALSE,"D","")) ->  | F107: =IF(E107="C",0,IF(E107 ="D",ROUND(1/((1+#REF!)^A107),9) * 2,ROUND(1/((1+#REF!)^A107),9))) -> 
A108: 105 | B108: 105 | E108: =IF(ISERROR(MATCH(D108,#REF!,0))=FALSE,"C",IF(ISERROR(MATCH(D108,#REF!,0))=FALSE,"D","")) ->  | F108: =IF(E108="C",0,IF(E108 ="D",ROUND(1/((1+#REF!)^A108),9) * 2,ROUND(1/((1+#REF!)^A108),9))) -> 
A109: 106 | B109: 106 | E109: =IF(ISERROR(MATCH(D109,#REF!,0))=FALSE,"C",IF(ISERROR(MATCH(D109,#REF!,0))=FALSE,"D","")) ->  | F109: =IF(E109="C",0,IF(E109 ="D",ROUND(1/((1+#REF!)^A109),9) * 2,ROUND(1/((1+#REF!)^A109),9))) -> 
A110: 107 | B110: 107 | E110: =IF(ISERROR(MATCH(D110,#REF!,0))=FALSE,"C",IF(ISERROR(MATCH(D110,#REF!,0))=FALSE,"D","")) ->  | F110: =IF(E110="C",0,IF(E110 ="D",ROUND(1/((1+#REF!)^A110),9) * 2,ROUND(1/((1+#REF!)^A110),9))) -> 
A111: 108 | B111: 108 | E111: =IF(ISERROR(MATCH(D111,#REF!,0))=FALSE,"C",IF(ISERROR(MATCH(D111,#REF!,0))=FALSE,"D","")) ->  | F111: =IF(E111="C",0,IF(E111 ="D",ROUND(1/((1+#REF!)^A111),9) * 2,ROUND(1/((1+#REF!)^A111),9))) -> 
A112: 109 | B112: 109 | E112: =IF(ISERROR(MATCH(D112,#REF!,0))=FALSE,"C",IF(ISERROR(MATCH(D112,#REF!,0))=FALSE,"D","")) ->  | F112: =IF(E112="C",0,IF(E112 ="D",ROUND(1/((1+#REF!)^A112),9) * 2,ROUND(1/((1+#REF!)^A112),9))) -> 
A113: 110 | B113: 110 | E113: =IF(ISERROR(MATCH(D113,#REF!,0))=FALSE,"C",IF(ISERROR(MATCH(D113,#REF!,0))=FALSE,"D","")) ->  | F113: =IF(E113="C",0,IF(E113 ="D",ROUND(1/((1+#REF!)^A113),9) * 2,ROUND(1/((1+#REF!)^A113),9))) -> 
A114: 111 | B114: 111 | E114: =IF(ISERROR(MATCH(D114,#REF!,0))=FALSE,"C",IF(ISERROR(MATCH(D114,#REF!,0))=FALSE,"D","")) ->  | F114: =IF(E114="C",0,IF(E114 ="D",ROUND(1/((1+#REF!)^A114),9) * 2,ROUND(1/((1+#REF!)^A114),9))) -> 
A115: 112 | B115: 112 | E115: =IF(ISERROR(MATCH(D115,#REF!,0))=FALSE,"C",IF(ISERROR(MATCH(D115,#REF!,0))=FALSE,"D","")) ->  | F115: =IF(E115="C",0,IF(E115 ="D",ROUND(1/((1+#REF!)^A115),9) * 2,ROUND(1/((1+#REF!)^A115),9))) -> 
A116: 113 | B116: 113 | E116: =IF(ISERROR(MATCH(D116,#REF!,0))=FALSE,"C",IF(ISERROR(MATCH(D116,#REF!,0))=FALSE,"D","")) ->  | F116: =IF(E116="C",0,IF(E116 ="D",ROUND(1/((1+#REF!)^A116),9) * 2,ROUND(1/((1+#REF!)^A116),9))) -> 
A117: 114 | B117: 114 | E117: =IF(ISERROR(MATCH(D117,#REF!,0))=FALSE,"C",IF(ISERROR(MATCH(D117,#REF!,0))=FALSE,"D","")) ->  | F117: =IF(E117="C",0,IF(E117 ="D",ROUND(1/((1+#REF!)^A117),9) * 2,ROUND(1/((1+#REF!)^A117),9))) -> 
A118: 115 | B118: 115 | E118: =IF(ISERROR(MATCH(D118,#REF!,0))=FALSE,"C",IF(ISERROR(MATCH(D118,#REF!,0))=FALSE,"D","")) ->  | F118: =IF(E118="C",0,IF(E118 ="D",ROUND(1/((1+#REF!)^A118),9) * 2,ROUND(1/((1+#REF!)^A118),9))) -> 
A119: 116 | B119: 116 | E119: =IF(ISERROR(MATCH(D119,#REF!,0))=FALSE,"C",IF(ISERROR(MATCH(D119,#REF!,0))=FALSE,"D","")) ->  | F119: =IF(E119="C",0,IF(E119 ="D",ROUND(1/((1+#REF!)^A119),9) * 2,ROUND(1/((1+#REF!)^A119),9))) -> 
A120: 117 | B120: 117 | E120: =IF(ISERROR(MATCH(D120,#REF!,0))=FALSE,"C",IF(ISERROR(MATCH(D120,#REF!,0))=FALSE,"D","")) ->  | F120: =IF(E120="C",0,IF(E120 ="D",ROUND(1/((1+#REF!)^A120),9) * 2,ROUND(1/((1+#REF!)^A120),9))) -> 
A121: 118 | B121: 118 | E121: =IF(ISERROR(MATCH(D121,#REF!,0))=FALSE,"C",IF(ISERROR(MATCH(D121,#REF!,0))=FALSE,"D","")) ->  | F121: =IF(E121="C",0,IF(E121 ="D",ROUND(1/((1+#REF!)^A121),9) * 2,ROUND(1/((1+#REF!)^A121),9))) -> 
A122: 119 | B122: 119 | E122: =IF(ISERROR(MATCH(D122,#REF!,0))=FALSE,"C",IF(ISERROR(MATCH(D122,#REF!,0))=FALSE,"D","")) ->  | F122: =IF(E122="C",0,IF(E122 ="D",ROUND(1/((1+#REF!)^A122),9) * 2,ROUND(1/((1+#REF!)^A122),9))) -> 
A123: 120 | B123: 120 | E123: =IF(ISERROR(MATCH(D123,#REF!,0))=FALSE,"C",IF(ISERROR(MATCH(D123,#REF!,0))=FALSE,"D","")) ->  | F123: =IF(E123="C",0,IF(E123 ="D",ROUND(1/((1+#REF!)^A123),9) * 2,ROUND(1/((1+#REF!)^A123),9))) -> 
A124: 121 | B124: 121 | E124: =IF(ISERROR(MATCH(D124,#REF!,0))=FALSE,"C",IF(ISERROR(MATCH(D124,#REF!,0))=FALSE,"D","")) ->  | F124: =IF(E124="C",0,IF(E124 ="D",ROUND(1/((1+#REF!)^A124),9) * 2,ROUND(1/((1+#REF!)^A124),9))) -> 
A125: 122 | B125: 122 | E125: =IF(ISERROR(MATCH(D125,#REF!,0))=FALSE,"C",IF(ISERROR(MATCH(D125,#REF!,0))=FALSE,"D","")) ->  | F125: =IF(E125="C",0,IF(E125 ="D",ROUND(1/((1+#REF!)^A125),9) * 2,ROUND(1/((1+#REF!)^A125),9))) -> 
A126: 123 | B126: 123 | E126: =IF(ISERROR(MATCH(D126,#REF!,0))=FALSE,"C",IF(ISERROR(MATCH(D126,#REF!,0))=FALSE,"D","")) ->  | F126: =IF(E126="C",0,IF(E126 ="D",ROUND(1/((1+#REF!)^A126),9) * 2,ROUND(1/((1+#REF!)^A126),9))) -> 
A127: 124 | B127: 124 | E127: =IF(ISERROR(MATCH(D127,#REF!,0))=FALSE,"C",IF(ISERROR(MATCH(D127,#REF!,0))=FALSE,"D","")) ->  | F127: =IF(E127="C",0,IF(E127 ="D",ROUND(1/((1+#REF!)^A127),9) * 2,ROUND(1/((1+#REF!)^A127),9))) -> 
A128: 125 | B128: 125 | E128: =IF(ISERROR(MATCH(D128,#REF!,0))=FALSE,"C",IF(ISERROR(MATCH(D128,#REF!,0))=FALSE,"D","")) ->  | F128: =IF(E128="C",0,IF(E128 ="D",ROUND(1/((1+#REF!)^A128),9) * 2,ROUND(1/((1+#REF!)^A128),9))) -> 
A129: 126 | B129: 126 | E129: =IF(ISERROR(MATCH(D129,#REF!,0))=FALSE,"C",IF(ISERROR(MATCH(D129,#REF!,0))=FALSE,"D","")) ->  | F129: =IF(E129="C",0,IF(E129 ="D",ROUND(1/((1+#REF!)^A129),9) * 2,ROUND(1/((1+#REF!)^A129),9))) -> 
A130: 127 | B130: 127 | E130: =IF(ISERROR(MATCH(D130,#REF!,0))=FALSE,"C",IF(ISERROR(MATCH(D130,#REF!,0))=FALSE,"D","")) ->  | F130: =IF(E130="C",0,IF(E130 ="D",ROUND(1/((1+#REF!)^A130),9) * 2,ROUND(1/((1+#REF!)^A130),9))) -> 
A131: 128 | B131: 128 | E131: =IF(ISERROR(MATCH(D131,#REF!,0))=FALSE,"C",IF(ISERROR(MATCH(D131,#REF!,0))=FALSE,"D","")) ->  | F131: =IF(E131="C",0,IF(E131 ="D",ROUND(1/((1+#REF!)^A131),9) * 2,ROUND(1/((1+#REF!)^A131),9))) -> 
A132: 129 | B132: 129 | E132: =IF(ISERROR(MATCH(D132,#REF!,0))=FALSE,"C",IF(ISERROR(MATCH(D132,#REF!,0))=FALSE,"D","")) ->  | F132: =IF(E132="C",0,IF(E132 ="D",ROUND(1/((1+#REF!)^A132),9) * 2,ROUND(1/((1+#REF!)^A132),9))) -> 
A133: =A132+1 -> 130 | B133: 130 | C133: =DATE(YEAR(C132) + 1/12,MONTH(C132)+1,DAY(C132)) ->  | E133: =IF(ISERROR(MATCH(D133,#REF!,0))=FALSE,"C",IF(ISERROR(MATCH(D133,#REF!,0))=FALSE,"D","")) ->  | F133: =IF(E133="C",0,IF(E133 ="D",ROUND(1/((1+#REF!)^A133),9) * 2,ROUND(1/((1+#REF!)^A133),9))) -> 
A134: 131 | B134: 131 | E134: =IF(ISERROR(MATCH(D134,#REF!,0))=FALSE,"C",IF(ISERROR(MATCH(D134,#REF!,0))=FALSE,"D","")) ->  | F134: =IF(E134="C",0,IF(E134 ="D",ROUND(1/((1+#REF!)^A134),9) * 2,ROUND(1/((1+#REF!)^A134),9))) -> 
A135: 132 | B135: 132 | E135: =IF(ISERROR(MATCH(D135,#REF!,0))=FALSE,"C",IF(ISERROR(MATCH(D135,#REF!,0))=FALSE,"D","")) ->  | F135: =IF(E135="C",0,IF(E135 ="D",ROUND(1/((1+#REF!)^A135),9) * 2,ROUND(1/((1+#REF!)^A135),9))) -> 
A136: 133 | B136: 133 | E136: =IF(ISERROR(MATCH(D136,#REF!,0))=FALSE,"C",IF(ISERROR(MATCH(D136,#REF!,0))=FALSE,"D","")) ->  | F136: =IF(E136="C",0,IF(E136 ="D",ROUND(1/((1+#REF!)^A136),9) * 2,ROUND(1/((1+#REF!)^A136),9))) -> 
A137: 134 | B137: 134 | E137: =IF(ISERROR(MATCH(D137,#REF!,0))=FALSE,"C",IF(ISERROR(MATCH(D137,#REF!,0))=FALSE,"D","")) ->  | F137: =IF(E137="C",0,IF(E137 ="D",ROUND(1/((1+#REF!)^A137),9) * 2,ROUND(1/((1+#REF!)^A137),9))) -> 
A138: 135 | B138: 135 | E138: =IF(ISERROR(MATCH(D138,#REF!,0))=FALSE,"C",IF(ISERROR(MATCH(D138,#REF!,0))=FALSE,"D","")) ->  | F138: =IF(E138="C",0,IF(E138 ="D",ROUND(1/((1+#REF!)^A138),9) * 2,ROUND(1/((1+#REF!)^A138),9))) -> 
A139: 136 | B139: 136 | E139: =IF(ISERROR(MATCH(D139,#REF!,0))=FALSE,"C",IF(ISERROR(MATCH(D139,#REF!,0))=FALSE,"D","")) ->  | F139: =IF(E139="C",0,IF(E139 ="D",ROUND(1/((1+#REF!)^A139),9) * 2,ROUND(1/((1+#REF!)^A139),9))) -> 
A140: 137 | B140: 137 | E140: =IF(ISERROR(MATCH(D140,#REF!,0))=FALSE,"C",IF(ISERROR(MATCH(D140,#REF!,0))=FALSE,"D","")) ->  | F140: =IF(E140="C",0,IF(E140 ="D",ROUND(1/((1+#REF!)^A140),9) * 2,ROUND(1/((1+#REF!)^A140),9))) -> 
A141: 138 | B141: 138 | E141: =IF(ISERROR(MATCH(D141,#REF!,0))=FALSE,"C",IF(ISERROR(MATCH(D141,#REF!,0))=FALSE,"D","")) ->  | F141: =IF(E141="C",0,IF(E141 ="D",ROUND(1/((1+#REF!)^A141),9) * 2,ROUND(1/((1+#REF!)^A141),9))) -> 
A142: 139 | B142: 139 | E142: =IF(ISERROR(MATCH(D142,#REF!,0))=FALSE,"C",IF(ISERROR(MATCH(D142,#REF!,0))=FALSE,"D","")) ->  | F142: =IF(E142="C",0,IF(E142 ="D",ROUND(1/((1+#REF!)^A142),9) * 2,ROUND(1/((1+#REF!)^A142),9))) -> 
A143: 140 | B143: 140 | E143: =IF(ISERROR(MATCH(D143,#REF!,0))=FALSE,"C",IF(ISERROR(MATCH(D143,#REF!,0))=FALSE,"D","")) ->  | F143: =IF(E143="C",0,IF(E143 ="D",ROUND(1/((1+#REF!)^A143),9) * 2,ROUND(1/((1+#REF!)^A143),9))) -> 
A144: 141 | B144: 141 | E144: =IF(ISERROR(MATCH(D144,#REF!,0))=FALSE,"C",IF(ISERROR(MATCH(D144,#REF!,0))=FALSE,"D","")) ->  | F144: =IF(E144="C",0,IF(E144 ="D",ROUND(1/((1+#REF!)^A144),9) * 2,ROUND(1/((1+#REF!)^A144),9))) -> 
A145: 142 | B145: 142 | E145: =IF(ISERROR(MATCH(D145,#REF!,0))=FALSE,"C",IF(ISERROR(MATCH(D145,#REF!,0))=FALSE,"D","")) ->  | F145: =IF(E145="C",0,IF(E145 ="D",ROUND(1/((1+#REF!)^A145),9) * 2,ROUND(1/((1+#REF!)^A145),9))) -> 
A146: 143 | B146: 143 | E146: =IF(ISERROR(MATCH(D146,#REF!,0))=FALSE,"C",IF(ISERROR(MATCH(D146,#REF!,0))=FALSE,"D","")) ->  | F146: =IF(E146="C",0,IF(E146 ="D",ROUND(1/((1+#REF!)^A146),9) * 2,ROUND(1/((1+#REF!)^A146),9))) -> 
A147: 144 | B147: 144 | E147: =IF(ISERROR(MATCH(D147,#REF!,0))=FALSE,"C",IF(ISERROR(MATCH(D147,#REF!,0))=FALSE,"D","")) ->  | F147: =IF(E147="C",0,IF(E147 ="D",ROUND(1/((1+#REF!)^A147),9) * 2,ROUND(1/((1+#REF!)^A147),9))) -> 
A148: 145 | B148: 145 | E148: =IF(ISERROR(MATCH(D148,#REF!,0))=FALSE,"C",IF(ISERROR(MATCH(D148,#REF!,0))=FALSE,"D","")) ->  | F148: =IF(E148="C",0,IF(E148 ="D",ROUND(1/((1+#REF!)^A148),9) * 2,ROUND(1/((1+#REF!)^A148),9))) -> 
A149: 146 | B149: 146 | E149: =IF(ISERROR(MATCH(D149,#REF!,0))=FALSE,"C",IF(ISERROR(MATCH(D149,#REF!,0))=FALSE,"D","")) ->  | F149: =IF(E149="C",0,IF(E149 ="D",ROUND(1/((1+#REF!)^A149),9) * 2,ROUND(1/((1+#REF!)^A149),9))) -> 
A150: 147 | B150: 147 | E150: =IF(ISERROR(MATCH(D150,#REF!,0))=FALSE,"C",IF(ISERROR(MATCH(D150,#REF!,0))=FALSE,"D","")) ->  | F150: =IF(E150="C",0,IF(E150 ="D",ROUND(1/((1+#REF!)^A150),9) * 2,ROUND(1/((1+#REF!)^A150),9))) -> 
A151: 148 | B151: 148 | E151: =IF(ISERROR(MATCH(D151,#REF!,0))=FALSE,"C",IF(ISERROR(MATCH(D151,#REF!,0))=FALSE,"D","")) ->  | F151: =IF(E151="C",0,IF(E151 ="D",ROUND(1/((1+#REF!)^A151),9) * 2,ROUND(1/((1+#REF!)^A151),9))) -> 
A152: 149 | B152: 149 | E152: =IF(ISERROR(MATCH(D152,#REF!,0))=FALSE,"C",IF(ISERROR(MATCH(D152,#REF!,0))=FALSE,"D","")) ->  | F152: =IF(E152="C",0,IF(E152 ="D",ROUND(1/((1+#REF!)^A152),9) * 2,ROUND(1/((1+#REF!)^A152),9))) -> 
A153: 150 | B153: 150 | E153: =IF(ISERROR(MATCH(D153,#REF!,0))=FALSE,"C",IF(ISERROR(MATCH(D153,#REF!,0))=FALSE,"D","")) ->  | F153: =IF(E153="C",0,IF(E153 ="D",ROUND(1/((1+#REF!)^A153),9) * 2,ROUND(1/((1+#REF!)^A153),9))) -> 
A154: 151 | B154: 151 | E154: =IF(ISERROR(MATCH(D154,#REF!,0))=FALSE,"C",IF(ISERROR(MATCH(D154,#REF!,0))=FALSE,"D","")) ->  | F154: =IF(E154="C",0,IF(E154 ="D",ROUND(1/((1+#REF!)^A154),9) * 2,ROUND(1/((1+#REF!)^A154),9))) -> 
A155: 152 | B155: 152 | E155: =IF(ISERROR(MATCH(D155,#REF!,0))=FALSE,"C",IF(ISERROR(MATCH(D155,#REF!,0))=FALSE,"D","")) ->  | F155: =IF(E155="C",0,IF(E155 ="D",ROUND(1/((1+#REF!)^A155),9) * 2,ROUND(1/((1+#REF!)^A155),9))) -> 
A156: 153 | B156: 153 | E156: =IF(ISERROR(MATCH(D156,#REF!,0))=FALSE,"C",IF(ISERROR(MATCH(D156,#REF!,0))=FALSE,"D","")) ->  | F156: =IF(E156="C",0,IF(E156 ="D",ROUND(1/((1+#REF!)^A156),9) * 2,ROUND(1/((1+#REF!)^A156),9))) -> 
A157: 154 | B157: 154 | E157: =IF(ISERROR(MATCH(D157,#REF!,0))=FALSE,"C",IF(ISERROR(MATCH(D157,#REF!,0))=FALSE,"D","")) ->  | F157: =IF(E157="C",0,IF(E157 ="D",ROUND(1/((1+#REF!)^A157),9) * 2,ROUND(1/((1+#REF!)^A157),9))) -> 
A158: 155 | B158: 155 | E158: =IF(ISERROR(MATCH(D158,#REF!,0))=FALSE,"C",IF(ISERROR(MATCH(D158,#REF!,0))=FALSE,"D","")) ->  | F158: =IF(E158="C",0,IF(E158 ="D",ROUND(1/((1+#REF!)^A158),9) * 2,ROUND(1/((1+#REF!)^A158),9))) -> 
A159: 156 | B159: 156 | E159: =IF(ISERROR(MATCH(D159,#REF!,0))=FALSE,"C",IF(ISERROR(MATCH(D159,#REF!,0))=FALSE,"D","")) ->  | F159: =IF(E159="C",0,IF(E159 ="D",ROUND(1/((1+#REF!)^A159),9) * 2,ROUND(1/((1+#REF!)^A159),9))) -> 
A160: 157 | B160: 157 | E160: =IF(ISERROR(MATCH(D160,#REF!,0))=FALSE,"C",IF(ISERROR(MATCH(D160,#REF!,0))=FALSE,"D","")) ->  | F160: =IF(E160="C",0,IF(E160 ="D",ROUND(1/((1+#REF!)^A160),9) * 2,ROUND(1/((1+#REF!)^A160),9))) -> 
A161: 158 | B161: 158 | E161: =IF(ISERROR(MATCH(D161,#REF!,0))=FALSE,"C",IF(ISERROR(MATCH(D161,#REF!,0))=FALSE,"D","")) ->  | F161: =IF(E161="C",0,IF(E161 ="D",ROUND(1/((1+#REF!)^A161),9) * 2,ROUND(1/((1+#REF!)^A161),9))) -> 
A162: 159 | B162: 159 | E162: =IF(ISERROR(MATCH(D162,#REF!,0))=FALSE,"C",IF(ISERROR(MATCH(D162,#REF!,0))=FALSE,"D","")) ->  | F162: =IF(E162="C",0,IF(E162 ="D",ROUND(1/((1+#REF!)^A162),9) * 2,ROUND(1/((1+#REF!)^A162),9))) -> 
A163: 160 | B163: 160 | E163: =IF(ISERROR(MATCH(D163,#REF!,0))=FALSE,"C",IF(ISERROR(MATCH(D163,#REF!,0))=FALSE,"D","")) ->  | F163: =IF(E163="C",0,IF(E163 ="D",ROUND(1/((1+#REF!)^A163),9) * 2,ROUND(1/((1+#REF!)^A163),9))) -> 
A164: 161 | B164: =IF(E164<>"C",IF(ISERROR(1+B163)=TRUE,1,1+B163),IF(ISNUMBER(B163),B163,1)) -> 161 | D164: =MONTH(C164) ->  | E164: =IF(ISERROR(MATCH(D164,#REF!,0))=FALSE,"C",IF(ISERROR(MATCH(D164,#REF!,0))=FALSE,"D","")) ->  | F164: =IF(E164="C",0,IF(E164 ="D",ROUND(1/((1+#REF!)^A164),9) * 2,ROUND(1/((1+#REF!)^A164),9))) ->  | G164: =G163+ROUND(F164,9) -> 
A165: 162 | B165: 162 | E165: =IF(ISERROR(MATCH(D165,#REF!,0))=FALSE,"C",IF(ISERROR(MATCH(D165,#REF!,0))=FALSE,"D","")) ->  | F165: =IF(E165="C",0,IF(E165 ="D",ROUND(1/((1+#REF!)^A165),9) * 2,ROUND(1/((1+#REF!)^A165),9))) -> 
A166: 163 | B166: 163 | E166: =IF(ISERROR(MATCH(D166,#REF!,0))=FALSE,"C",IF(ISERROR(MATCH(D166,#REF!,0))=FALSE,"D","")) ->  | F166: =IF(E166="C",0,IF(E166 ="D",ROUND(1/((1+#REF!)^A166),9) * 2,ROUND(1/((1+#REF!)^A166),9))) -> 
A167: 164 | B167: 164 | E167: =IF(ISERROR(MATCH(D167,#REF!,0))=FALSE,"C",IF(ISERROR(MATCH(D167,#REF!,0))=FALSE,"D","")) ->  | F167: =IF(E167="C",0,IF(E167 ="D",ROUND(1/((1+#REF!)^A167),9) * 2,ROUND(1/((1+#REF!)^A167),9))) -> 
A168: 165 | B168: 165 | E168: =IF(ISERROR(MATCH(D168,#REF!,0))=FALSE,"C",IF(ISERROR(MATCH(D168,#REF!,0))=FALSE,"D","")) ->  | F168: =IF(E168="C",0,IF(E168 ="D",ROUND(1/((1+#REF!)^A168),9) * 2,ROUND(1/((1+#REF!)^A168),9))) -> 
A169: 166 | B169: 166 | E169: =IF(ISERROR(MATCH(D169,#REF!,0))=FALSE,"C",IF(ISERROR(MATCH(D169,#REF!,0))=FALSE,"D","")) ->  | F169: =IF(E169="C",0,IF(E169 ="D",ROUND(1/((1+#REF!)^A169),9) * 2,ROUND(1/((1+#REF!)^A169),9))) -> 
A170: 167 | B170: 167 | E170: =IF(ISERROR(MATCH(D170,#REF!,0))=FALSE,"C",IF(ISERROR(MATCH(D170,#REF!,0))=FALSE,"D","")) ->  | F170: =IF(E170="C",0,IF(E170 ="D",ROUND(1/((1+#REF!)^A170),9) * 2,ROUND(1/((1+#REF!)^A170),9))) -> 
A171: 168 | B171: 168 | E171: =IF(ISERROR(MATCH(D171,#REF!,0))=FALSE,"C",IF(ISERROR(MATCH(D171,#REF!,0))=FALSE,"D","")) ->  | F171: =IF(E171="C",0,IF(E171 ="D",ROUND(1/((1+#REF!)^A171),9) * 2,ROUND(1/((1+#REF!)^A171),9))) -> 
A172: 169 | B172: 169 | E172: =IF(ISERROR(MATCH(D172,#REF!,0))=FALSE,"C",IF(ISERROR(MATCH(D172,#REF!,0))=FALSE,"D","")) ->  | F172: =IF(E172="C",0,IF(E172 ="D",ROUND(1/((1+#REF!)^A172),9) * 2,ROUND(1/((1+#REF!)^A172),9))) -> 
A173: 170 | B173: 170 | E173: =IF(ISERROR(MATCH(D173,#REF!,0))=FALSE,"C",IF(ISERROR(MATCH(D173,#REF!,0))=FALSE,"D","")) ->  | F173: =IF(E173="C",0,IF(E173 ="D",ROUND(1/((1+#REF!)^A173),9) * 2,ROUND(1/((1+#REF!)^A173),9))) -> 
A174: 171 | B174: 171 | E174: =IF(ISERROR(MATCH(D174,#REF!,0))=FALSE,"C",IF(ISERROR(MATCH(D174,#REF!,0))=FALSE,"D","")) ->  | F174: =IF(E174="C",0,IF(E174 ="D",ROUND(1/((1+#REF!)^A174),9) * 2,ROUND(1/((1+#REF!)^A174),9))) -> 
A175: 172 | B175: 172 | E175: =IF(ISERROR(MATCH(D175,#REF!,0))=FALSE,"C",IF(ISERROR(MATCH(D175,#REF!,0))=FALSE,"D","")) ->  | F175: =IF(E175="C",0,IF(E175 ="D",ROUND(1/((1+#REF!)^A175),9) * 2,ROUND(1/((1+#REF!)^A175),9))) -> 
A176: 173 | B176: 173 | E176: =IF(ISERROR(MATCH(D176,#REF!,0))=FALSE,"C",IF(ISERROR(MATCH(D176,#REF!,0))=FALSE,"D","")) ->  | F176: =IF(E176="C",0,IF(E176 ="D",ROUND(1/((1+#REF!)^A176),9) * 2,ROUND(1/((1+#REF!)^A176),9))) -> 
A177: 174 | B177: 174 | E177: =IF(ISERROR(MATCH(D177,#REF!,0))=FALSE,"C",IF(ISERROR(MATCH(D177,#REF!,0))=FALSE,"D","")) ->  | F177: =IF(E177="C",0,IF(E177 ="D",ROUND(1/((1+#REF!)^A177),9) * 2,ROUND(1/((1+#REF!)^A177),9))) -> 
A178: 175 | B178: 175 | E178: =IF(ISERROR(MATCH(D178,#REF!,0))=FALSE,"C",IF(ISERROR(MATCH(D178,#REF!,0))=FALSE,"D","")) ->  | F178: =IF(E178="C",0,IF(E178 ="D",ROUND(1/((1+#REF!)^A178),9) * 2,ROUND(1/((1+#REF!)^A178),9))) -> 
A179: 176 | B179: 176 | E179: =IF(ISERROR(MATCH(D179,#REF!,0))=FALSE,"C",IF(ISERROR(MATCH(D179,#REF!,0))=FALSE,"D","")) ->  | F179: =IF(E179="C",0,IF(E179 ="D",ROUND(1/((1+#REF!)^A179),9) * 2,ROUND(1/((1+#REF!)^A179),9))) -> 
A180: 177 | B180: 177 | E180: =IF(ISERROR(MATCH(D180,#REF!,0))=FALSE,"C",IF(ISERROR(MATCH(D180,#REF!,0))=FALSE,"D","")) ->  | F180: =IF(E180="C",0,IF(E180 ="D",ROUND(1/((1+#REF!)^A180),9) * 2,ROUND(1/((1+#REF!)^A180),9))) -> 
A181: 178 | B181: 178 | E181: =IF(ISERROR(MATCH(D181,#REF!,0))=FALSE,"C",IF(ISERROR(MATCH(D181,#REF!,0))=FALSE,"D","")) ->  | F181: =IF(E181="C",0,IF(E181 ="D",ROUND(1/((1+#REF!)^A181),9) * 2,ROUND(1/((1+#REF!)^A181),9))) -> 
A182: 179 | B182: 179 | E182: =IF(ISERROR(MATCH(D182,#REF!,0))=FALSE,"C",IF(ISERROR(MATCH(D182,#REF!,0))=FALSE,"D","")) ->  | F182: =IF(E182="C",0,IF(E182 ="D",ROUND(1/((1+#REF!)^A182),9) * 2,ROUND(1/((1+#REF!)^A182),9))) -> 
A183: 180 | B183: 180 | E183: =IF(ISERROR(MATCH(D183,#REF!,0))=FALSE,"C",IF(ISERROR(MATCH(D183,#REF!,0))=FALSE,"D","")) ->  | F183: =IF(E183="C",0,IF(E183 ="D",ROUND(1/((1+#REF!)^A183),9) * 2,ROUND(1/((1+#REF!)^A183),9))) -> 
A184: 181 | B184: 181 | E184: =IF(ISERROR(MATCH(D184,#REF!,0))=FALSE,"C",IF(ISERROR(MATCH(D184,#REF!,0))=FALSE,"D","")) ->  | F184: =IF(E184="C",0,IF(E184 ="D",ROUND(1/((1+#REF!)^A184),9) * 2,ROUND(1/((1+#REF!)^A184),9))) -> 
A185: 182 | B185: 182 | E185: =IF(ISERROR(MATCH(D185,#REF!,0))=FALSE,"C",IF(ISERROR(MATCH(D185,#REF!,0))=FALSE,"D","")) ->  | F185: =IF(E185="C",0,IF(E185 ="D",ROUND(1/((1+#REF!)^A185),9) * 2,ROUND(1/((1+#REF!)^A185),9))) -> 
A186: 183 | B186: 183 | E186: =IF(ISERROR(MATCH(D186,#REF!,0))=FALSE,"C",IF(ISERROR(MATCH(D186,#REF!,0))=FALSE,"D","")) ->  | F186: =IF(E186="C",0,IF(E186 ="D",ROUND(1/((1+#REF!)^A186),9) * 2,ROUND(1/((1+#REF!)^A186),9))) -> 
A187: 184 | B187: 184 | E187: =IF(ISERROR(MATCH(D187,#REF!,0))=FALSE,"C",IF(ISERROR(MATCH(D187,#REF!,0))=FALSE,"D","")) ->  | F187: =IF(E187="C",0,IF(E187 ="D",ROUND(1/((1+#REF!)^A187),9) * 2,ROUND(1/((1+#REF!)^A187),9))) -> 
A188: 185 | B188: 185 | E188: =IF(ISERROR(MATCH(D188,#REF!,0))=FALSE,"C",IF(ISERROR(MATCH(D188,#REF!,0))=FALSE,"D","")) ->  | F188: =IF(E188="C",0,IF(E188 ="D",ROUND(1/((1+#REF!)^A188),9) * 2,ROUND(1/((1+#REF!)^A188),9))) -> 
A189: 186 | B189: 186 | E189: =IF(ISERROR(MATCH(D189,#REF!,0))=FALSE,"C",IF(ISERROR(MATCH(D189,#REF!,0))=FALSE,"D","")) ->  | F189: =IF(E189="C",0,IF(E189 ="D",ROUND(1/((1+#REF!)^A189),9) * 2,ROUND(1/((1+#REF!)^A189),9))) -> 
A190: 187 | B190: 187 | E190: =IF(ISERROR(MATCH(D190,#REF!,0))=FALSE,"C",IF(ISERROR(MATCH(D190,#REF!,0))=FALSE,"D","")) ->  | F190: =IF(E190="C",0,IF(E190 ="D",ROUND(1/((1+#REF!)^A190),9) * 2,ROUND(1/((1+#REF!)^A190),9))) -> 
A191: 188 | B191: 188 | E191: =IF(ISERROR(MATCH(D191,#REF!,0))=FALSE,"C",IF(ISERROR(MATCH(D191,#REF!,0))=FALSE,"D","")) ->  | F191: =IF(E191="C",0,IF(E191 ="D",ROUND(1/((1+#REF!)^A191),9) * 2,ROUND(1/((1+#REF!)^A191),9))) -> 
A192: 189 | B192: 189 | E192: =IF(ISERROR(MATCH(D192,#REF!,0))=FALSE,"C",IF(ISERROR(MATCH(D192,#REF!,0))=FALSE,"D","")) ->  | F192: =IF(E192="C",0,IF(E192 ="D",ROUND(1/((1+#REF!)^A192),9) * 2,ROUND(1/((1+#REF!)^A192),9))) -> 
A193: 190 | B193: 190 | E193: =IF(ISERROR(MATCH(D193,#REF!,0))=FALSE,"C",IF(ISERROR(MATCH(D193,#REF!,0))=FALSE,"D","")) ->  | F193: =IF(E193="C",0,IF(E193 ="D",ROUND(1/((1+#REF!)^A193),9) * 2,ROUND(1/((1+#REF!)^A193),9))) -> 
A194: 191 | B194: 191 | E194: =IF(ISERROR(MATCH(D194,#REF!,0))=FALSE,"C",IF(ISERROR(MATCH(D194,#REF!,0))=FALSE,"D","")) ->  | F194: =IF(E194="C",0,IF(E194 ="D",ROUND(1/((1+#REF!)^A194),9) * 2,ROUND(1/((1+#REF!)^A194),9))) -> 
A195: 192 | B195: 192 | E195: =IF(ISERROR(MATCH(D195,#REF!,0))=FALSE,"C",IF(ISERROR(MATCH(D195,#REF!,0))=FALSE,"D","")) ->  | F195: =IF(E195="C",0,IF(E195 ="D",ROUND(1/((1+#REF!)^A195),9) * 2,ROUND(1/((1+#REF!)^A195),9))) -> 
A196: 193 | B196: 193 | E196: =IF(ISERROR(MATCH(D196,#REF!,0))=FALSE,"C",IF(ISERROR(MATCH(D196,#REF!,0))=FALSE,"D","")) ->  | F196: =IF(E196="C",0,IF(E196 ="D",ROUND(1/((1+#REF!)^A196),9) * 2,ROUND(1/((1+#REF!)^A196),9))) -> 
A197: =A196+1 -> 194 | B197: 194 | C197: =DATE(YEAR(C196) + 1/12,MONTH(C196)+1,DAY(C196)) ->  | E197: =IF(ISERROR(MATCH(D197,#REF!,0))=FALSE,"C",IF(ISERROR(MATCH(D197,#REF!,0))=FALSE,"D","")) ->  | F197: =IF(E197="C",0,IF(E197 ="D",ROUND(1/((1+#REF!)^A197),9) * 2,ROUND(1/((1+#REF!)^A197),9))) -> 
A198: 195 | B198: 195 | E198: =IF(ISERROR(MATCH(D198,#REF!,0))=FALSE,"C",IF(ISERROR(MATCH(D198,#REF!,0))=FALSE,"D","")) ->  | F198: =IF(E198="C",0,IF(E198 ="D",ROUND(1/((1+#REF!)^A198),9) * 2,ROUND(1/((1+#REF!)^A198),9))) -> 
A199: 196 | B199: 196 | E199: =IF(ISERROR(MATCH(D199,#REF!,0))=FALSE,"C",IF(ISERROR(MATCH(D199,#REF!,0))=FALSE,"D","")) ->  | F199: =IF(E199="C",0,IF(E199 ="D",ROUND(1/((1+#REF!)^A199),9) * 2,ROUND(1/((1+#REF!)^A199),9))) -> 
A200: 197 | B200: 197 | E200: =IF(ISERROR(MATCH(D200,#REF!,0))=FALSE,"C",IF(ISERROR(MATCH(D200,#REF!,0))=FALSE,"D","")) ->  | F200: =IF(E200="C",0,IF(E200 ="D",ROUND(1/((1+#REF!)^A200),9) * 2,ROUND(1/((1+#REF!)^A200),9))) -> 
A201: 198 | B201: 198 | E201: =IF(ISERROR(MATCH(D201,#REF!,0))=FALSE,"C",IF(ISERROR(MATCH(D201,#REF!,0))=FALSE,"D","")) ->  | F201: =IF(E201="C",0,IF(E201 ="D",ROUND(1/((1+#REF!)^A201),9) * 2,ROUND(1/((1+#REF!)^A201),9))) -> 
... 185 more rows

Sheet Hoja1
C3: SIMULADOR PRÉSTAMO PERSONAL SIN GARANTÍA | G3: Soles
G4: Dólares
G6: No
B7: Moneda | C7: Soles | G7: Julio
B8: Monto del Préstamo | C8: 30000 | G8: Diciembre
B9: Fecha de Desembolso | C9: 2024-04-01 | M9: 0
B10: Plazo | C10: 36 | G10: Seguro sin retorno | M10: 30
B11: TEA* | C11: 20 | G11: Seguro con retorno | M11: 60
B12: Días de Gracia | C12: 30 | G12: Endoso | M12: 90
B13: Seguro Desgravamen** | C13: Endoso
B14: Cuota Doble 1 | C14: No | H14: =+Simulador!Q29 -> 0.5194444444 | I14: =+Simulador!W28 -> 0
B15: Cuota Doble 2 | C15: No | I15: =+IF(AND(I14>-1,I14<1),"CORRECTO","INCORRECTO") -> CORRECTO
A19: Nota: Para hacer uso del simulador, debe tener habilitado la opción de macros.

Sheet Hoja1 (2)
B5: (SIMULACIÓN)
B6: CRONOGRAMA DE PAGOS
B9: Moneda : | D9: =+Hoja1!C7 -> Soles | F9: Monto del Préstamo : | H9: =+Hoja1!C8 -> 30000
B10: Producto : | D10: Préstamo Personal Sin Garantía | F10: Tasa Efectiva Anual (fija) : | H10: =+Hoja1!C11&"%" -> 20%
B11: Fecha de desembolso : | D11: =+Hoja1!C9 -> 2024-04-01 | F11: Plazo (en meses) : | H11: =+Hoja1!C10 -> 36
B12: Mes de Cuota Doble 1 : | D12: =+Hoja1!C14 -> No | F12: Tasa de Costo Efectiva Anual : | H12: =+Simulador!Q18 -> 0.1999948688 | I12: =+RATE(H11,H18,-H9-I13) -> 0.01555013125
B13: Mes de Cuota Doble 2 : | D13: =+Hoja1!C15 -> No | F13: Tasa Seguro de Desgravamen Mensual : | H13: =+IF(Hoja1!C13="Endoso",0,IF(Hoja1!C13="Seguro con retorno",0.346%,0.18%)) -> 0 | I13: =Simulador!Q16 -> 459.2841
B14: Periodo de gracia : | D14: =+Hoja1!C12&" "& "días" -> 30 días
B15: Frecuencia de pago : | D15: Mensual
B16: =+IF(AND(Simulador!W28<1,Simulador!W28>-1),"","No ha presionado el botón de calcular, por favor volver a simular") -> 
B17: N° | C17: Fecha Vencimiento | D17: Capital | E17: Interes | F17: Interes de Gracia | G17: Seguro Desgravamen | H17: Total Cuota
B18: 1 | C18: =IFERROR(+IF(B18>0,VLOOKUP(B18,Simulador!$A$32:$T$550,3,0)," ")," ") -> 2024-06-01 | D18: =IFERROR(+IF(B18>0,VLOOKUP(B18,Simulador!$A$32:$T$550,11,0)," ")," ") -> 619.8294444 | E18: =IFERROR(+IF(B18>0,VLOOKUP(B18,Simulador!$A$32:$T$550,12,0)," ")," ") -> 474.71 | F18: =IFERROR(+IF(B18>0,VLOOKUP(B18,Simulador!$A$32:$T$550,13,0)," ")," ") -> 16.75 | G18: =IFERROR(+IF(B18>0,VLOOKUP(B18,Simulador!$A$32:$T$550,20,0)," ")," ") -> 0 | H18: =IFERROR(+IF(B18>0,VLOOKUP(B18,Simulador!$A$32:$Z$550,22,0)," ")," ") -> 1111.289444
B19: =IF(B18=0," ",IF(B18>=$H$11,"",B18+1)) -> 2 | C19: =IF($H$11=0," ",IF(B18=$H$11,"TOTALES",+IF(B19>0,VLOOKUP(B19,Simulador!$A$32:$T$550,3,0)," "))) -> 2024-07-01 | D19: =IF($H$11=0," ",IF(B18=$H$11,Simulador!$J$33,+IF(B19>0,VLOOKUP(B19,Simulador!$A$32:$T$550,11,0)," "))) -> 644.7494444 | E19: =IF($H$11=0," ",IF(B18=$H$11,Simulador!$L$31,+IF(B19>0,VLOOKUP(B19,Simulador!$A$32:$T$550,12,0)," "))) -> 449.79 | F19: =IF($H$11=0," ",IF(B18=$H$11,Simulador!$M$31,+IF(B19>0,VLOOKUP(B19,Simulador!$A$32:$T$550,13,0)," "))) -> 16.75 | G19: =IF($H$11=0," ",IF(B18=$H$11,Simulador!$T$31,+IF(B19>0,VLOOKUP(B19,Simulador!$A$32:$T$550,20,0)," "))) -> 0 | H19: =IF($H$11=0," ",IF(B18=$H$11,Simulador!$V$31,+IF(B19>0,VLOOKUP(B19,Simulador!$A$32:$Z$550,22,0)," "))) -> 1111.289444
B20: =IF(B19=0," ",IF(B19>=$H$11,"",B19+1)) -> 3 | C20: =IF($H$11=0," ",IF(B19=$H$11,"TOTALES",+IF(B20>0,VLOOKUP(B20,Simulador!$A$32:$T$550,3,0)," "))) -> 2024-08-01 | D20: =IF($H$11=0," ",IF(B19=$H$11,Simulador!$J$33,+IF(B20>0,VLOOKUP(B20,Simulador!$A$32:$T$550,11,0)," "))) -> 639.8394444 | E20: =IF($H$11=0," ",IF(B19=$H$11,Simulador!$L$31,+IF(B20>0,VLOOKUP(B20,Simulador!$A$32:$T$550,12,0)," "))) -> 454.7 | F20: =IF($H$11=0," ",IF(B19=$H$11,Simulador!$M$31,+IF(B20>0,VLOOKUP(B20,Simulador!$A$32:$T$550,13,0)," "))) -> 16.75 | G20: =IF($H$11=0," ",IF(B19=$H$11,Simulador!$T$31,+IF(B20>0,VLOOKUP(B20,Simulador!$A$32:$T$550,20,0)," "))) -> 0 | H20: =IF($H$11=0," ",IF(B19=$H$11,Simulador!$V$31,+IF(B20>0,VLOOKUP(B20,Simulador!$A$32:$Z$550,22,0)," "))) -> 1111.289444
B21: 4 | C21: =IF($H$11=0," ",IF(B20=$H$11,"TOTALES",+IF(B21>0,VLOOKUP(B21,Simulador!$A$32:$T$550,3,0)," "))) -> 2024-09-01 | D21: =IF($H$11=0," ",IF(B20=$H$11,Simulador!$J$33,+IF(B21>0,VLOOKUP(B21,Simulador!$A$32:$T$550,11,0)," "))) -> 649.9594444 | E21: =IF($H$11=0," ",IF(B20=$H$11,Simulador!$L$31,+IF(B21>0,VLOOKUP(B21,Simulador!$A$32:$T$550,12,0)," "))) -> 444.58 | F21: =IF($H$11=0," ",IF(B20=$H$11,Simulador!$M$31,+IF(B21>0,VLOOKUP(B21,Simulador!$A$32:$T$550,13,0)," "))) -> 16.75 | G21: =IF($H$11=0," ",IF(B20=$H$11,Simulador!$T$31,+IF(B21>0,VLOOKUP(B21,Simulador!$A$32:$T$550,20,0)," "))) -> 0 | H21: =IF($H$11=0," ",IF(B20=$H$11,Simulador!$V$31,+IF(B21>0,VLOOKUP(B21,Simulador!$A$32:$Z$550,22,0)," "))) -> 1111.289444
B22: 5 | C22: =IF($H$11=0," ",IF(B21=$H$11,"TOTALES",+IF(B22>0,VLOOKUP(B22,Simulador!$A$32:$T$550,3,0)," "))) -> 2024-10-01 | D22: =IF($H$11=0," ",IF(B21=$H$11,Simulador!$J$33,+IF(B22>0,VLOOKUP(B22,Simulador!$A$32:$T$550,11,0)," "))) -> 674.3594444 | E22: =IF($H$11=0," ",IF(B21=$H$11,Simulador!$L$31,+IF(B22>0,VLOOKUP(B22,Simulador!$A$32:$T$550,12,0)," "))) -> 420.18 | F22: =IF($H$11=0," ",IF(B21=$H$11,Simulador!$M$31,+IF(B22>0,VLOOKUP(B22,Simulador!$A$32:$T$550,13,0)," "))) -> 16.75 | G22: =IF($H$11=0," ",IF(B21=$H$11,Simulador!$T$31,+IF(B22>0,VLOOKUP(B22,Simulador!$A$32:$T$550,20,0)," "))) -> 0 | H22: =IF($H$11=0," ",IF(B21=$H$11,Simulador!$V$31,+IF(B22>0,VLOOKUP(B22,Simulador!$A$32:$Z$550,22,0)," "))) -> 1111.289444
B23: 6 | C23: =IF($H$11=0," ",IF(B22=$H$11,"TOTALES",+IF(B23>0,VLOOKUP(B23,Simulador!$A$32:$T$550,3,0)," "))) -> 2024-11-01 | D23: =IF($H$11=0," ",IF(B22=$H$11,Simulador!$J$33,+IF(B23>0,VLOOKUP(B23,Simulador!$A$32:$T$550,11,0)," "))) -> 670.9194444 | E23: =IF($H$11=0," ",IF(B22=$H$11,Simulador!$L$31,+IF(B23>0,VLOOKUP(B23,Simulador!$A$32:$T$550,12,0)," "))) -> 423.62 | F23: =IF($H$11=0," ",IF(B22=$H$11,Simulador!$M$31,+IF(B23>0,VLOOKUP(B23,Simulador!$A$32:$T$550,13,0)," "))) -> 16.75 | G23: =IF($H$11=0," ",IF(B22=$H$11,Simulador!$T$31,+IF(B23>0,VLOOKUP(B23,Simulador!$A$32:$T$550,20,0)," "))) -> 0 | H23: =IF($H$11=0," ",IF(B22=$H$11,Simulador!$V$31,+IF(B23>0,VLOOKUP(B23,Simulador!$A$32:$Z$550,22,0)," "))) -> 1111.289444
B24: 7 | C24: =IF($H$11=0," ",IF(B23=$H$11,"TOTALES",+IF(B24>0,VLOOKUP(B24,Simulador!$A$32:$T$550,3,0)," "))) -> 2024-12-01 | D24: =IF($H$11=0," ",IF(B23=$H$11,Simulador!$J$33,+IF(B24>0,VLOOKUP(B24,Simulador!$A$32:$T$550,11,0)," "))) -> 694.9594444 | E24: =IF($H$11=0," ",IF(B23=$H$11,Simulador!$L$31,+IF(B24>0,VLOOKUP(B24,Simulador!$A$32:$T$550,12,0)," "))) -> 399.58 | F24: =IF($H$11=0," ",IF(B23=$H$11,Simulador!$M$31,+IF(B24>0,VLOOKUP(B24,Simulador!$A$32:$T$550,13,0)," "))) -> 16.75 | G24: =IF($H$11=0," ",IF(B23=$H$11,Simulador!$T$31,+IF(B24>0,VLOOKUP(B24,Simulador!$A$32:$T$550,20,0)," "))) -> 0 | H24: =IF($H$11=0," ",IF(B23=$H$11,Simulador!$V$31,+IF(B24>0,VLOOKUP(B24,Simulador!$A$32:$Z$550,22,0)," "))) -> 1111.289444
B25: 8 | C25: =IF($H$11=0," ",IF(B24=$H$11,"TOTALES",+IF(B25>0,VLOOKUP(B25,Simulador!$A$32:$T$550,3,0)," "))) -> 2025-01-01 | D25: =IF($H$11=0," ",IF(B24=$H$11,Simulador!$J$33,+IF(B25>0,VLOOKUP(B25,Simulador!$A$32:$T$550,11,0)," "))) -> 692.5294444 | E25: =IF($H$11=0," ",IF(B24=$H$11,Simulador!$L$31,+IF(B25>0,VLOOKUP(B25,Simulador!$A$32:$T$550,12,0)," "))) -> 402.01 | F25: =IF($H$11=0," ",IF(B24=$H$11,Simulador!$M$31,+IF(B25>0,VLOOKUP(B25,Simulador!$A$32:$T$550,13,0)," "))) -> 16.75 | G25: =IF($H$11=0," ",IF(B24=$H$11,Simulador!$T$31,+IF(B25>0,VLOOKUP(B25,Simulador!$A$32:$T$550,20,0)," "))) -> 0 | H25: =IF($H$11=0," ",IF(B24=$H$11,Simulador!$V$31,+IF(B25>0,VLOOKUP(B25,Simulador!$A$32:$Z$550,22,0)," "))) -> 1111.289444
B26: 9 | C26: =IF($H$11=0," ",IF(B25=$H$11,"TOTALES",+IF(B26>0,VLOOKUP(B26,Simulador!$A$32:$T$550,3,0)," "))) -> 2025-02-01 | D26: =IF($H$11=0," ",IF(B25=$H$11,Simulador!$J$33,+IF(B26>0,VLOOKUP(B26,Simulador!$A$32:$T$550,11,0)," "))) -> 703.4894444 | E26: =IF($H$11=0," ",IF(B25=$H$11,Simulador!$L$31,+IF(B26>0,VLOOKUP(B26,Simulador!$A$32:$T$550,12,0)," "))) -> 391.05 | F26: =IF($H$11=0," ",IF(B25=$H$11,Simulador!$M$31,+IF(B26>0,VLOOKUP(B26,Simulador!$A$32:$T$550,13,0)," "))) -> 16.75 | G26: =IF($H$11=0," ",IF(B25=$H$11,Simulador!$T$31,+IF(B26>0,VLOOKUP(B26,Simulador!$A$32:$T$550,20,0)," "))) -> 0 | H26: =IF($H$11=0," ",IF(B25=$H$11,Simulador!$V$31,+IF(B26>0,VLOOKUP(B26,Simulador!$A$32:$Z$550,22,0)," "))) -> 1111.289444
B27: 10 | C27: =IF($H$11=0," ",IF(B26=$H$11,"TOTALES",+IF(B27>0,VLOOKUP(B27,Simulador!$A$32:$T$550,3,0)," "))) -> 2025-03-01 | D27: =IF($H$11=0," ",IF(B26=$H$11,Simulador!$J$33,+IF(B27>0,VLOOKUP(B27,Simulador!$A$32:$T$550,11,0)," "))) -> 751.6494444 | E27: =IF($H$11=0," ",IF(B26=$H$11,Simulador!$L$31,+IF(B27>0,VLOOKUP(B27,Simulador!$A$32:$T$550,12,0)," "))) -> 342.89 | F27: =IF($H$11=0," ",IF(B26=$H$11,Simulador!$M$31,+IF(B27>0,VLOOKUP(B27,Simulador!$A$32:$T$550,13,0)," "))) -> 16.75 | G27: =IF($H$11=0," ",IF(B26=$H$11,Simulador!$T$31,+IF(B27>0,VLOOKUP(B27,Simulador!$A$32:$T$550,20,0)," "))) -> 0 | H27: =IF($H$11=0," ",IF(B26=$H$11,Simulador!$V$31,+IF(B27>0,VLOOKUP(B27,Simulador!$A$32:$Z$550,22,0)," "))) -> 1111.289444
B28: 11 | C28: =IF($H$11=0," ",IF(B27=$H$11,"TOTALES",+IF(B28>0,VLOOKUP(B28,Simulador!$A$32:$T$550,3,0)," "))) -> 2025-04-01 | D28: =IF($H$11=0," ",IF(B27=$H$11,Simulador!$J$33,+IF(B28>0,VLOOKUP(B28,Simulador!$A$32:$T$550,11,0)," "))) -> 726.5094444 | E28: =IF($H$11=0," ",IF(B27=$H$11,Simulador!$L$31,+IF(B28>0,VLOOKUP(B28,Simulador!$A$32:$T$550,12,0)," "))) -> 368.03 | F28: =IF($H$11=0," ",IF(B27=$H$11,Simulador!$M$31,+IF(B28>0,VLOOKUP(B28,Simulador!$A$32:$T$550,13,0)," "))) -> 16.75 | G28: =IF($H$11=0," ",IF(B27=$H$11,Simulador!$T$31,+IF(B28>0,VLOOKUP(B28,Simulador!$A$32:$T$550,20,0)," "))) -> 0 | H28: =IF($H$11=0," ",IF(B27=$H$11,Simulador!$V$31,+IF(B28>0,VLOOKUP(B28,Simulador!$A$32:$Z$550,22,0)," "))) -> 1111.289444
B29: 12 | C29: =IF($H$11=0," ",IF(B28=$H$11,"TOTALES",+IF(B29>0,VLOOKUP(B29,Simulador!$A$32:$T$550,3,0)," "))) -> 2025-05-01 | D29: =IF($H$11=0," ",IF(B28=$H$11,Simulador!$J$33,+IF(B29>0,VLOOKUP(B29,Simulador!$A$32:$T$550,11,0)," "))) -> 749.5994444 | E29: =IF($H$11=0," ",IF(B28=$H$11,Simulador!$L$31,+IF(B29>0,VLOOKUP(B29,Simulador!$A$32:$T$550,12,0)," "))) -> 344.94 | F29: =IF($H$11=0," ",IF(B28=$H$11,Simulador!$M$31,+IF(B29>0,VLOOKUP(B29,Simulador!$A$32:$T$550,13,0)," "))) -> 16.75 | G29: =IF($H$11=0," ",IF(B28=$H$11,Simulador!$T$31,+IF(B29>0,VLOOKUP(B29,Simulador!$A$32:$T$550,20,0)," "))) -> 0 | H29: =IF($H$11=0," ",IF(B28=$H$11,Simulador!$V$31,+IF(B29>0,VLOOKUP(B29,Simulador!$A$32:$Z$550,22,0)," "))) -> 1111.289444
B30: 13 | C30: =IF($H$11=0," ",IF(B29=$H$11,"TOTALES",+IF(B30>0,VLOOKUP(B30,Simulador!$A$32:$T$550,3,0)," "))) -> 2025-06-01 | D30: =IF($H$11=0," ",IF(B29=$H$11,Simulador!$J$33,+IF(B30>0,VLOOKUP(B30,Simulador!$A$32:$T$550,11,0)," "))) -> 749.8694444 | E30: =IF($H$11=0," ",IF(B29=$H$11,Simulador!$L$31,+IF(B30>0,VLOOKUP(B30,Simulador!$A$32:$T$550,12,0)," "))) -> 344.67 | F30: =IF($H$11=0," ",IF(B29=$H$11,Simulador!$M$31,+IF(B30>0,VLOOKUP(B30,Simulador!$A$32:$T$550,13,0)," "))) -> 16.75 | G30: =IF($H$11=0," ",IF(B29=$H$11,Simulador!$T$31,+IF(B30>0,VLOOKUP(B30,Simulador!$A$32:$T$550,20,0)," "))) -> 0 | H30: =IF($H$11=0," ",IF(B29=$H$11,Simulador!$V$31,+IF(B30>0,VLOOKUP(B30,Simulador!$A$32:$Z$550,22,0)," "))) -> 1111.289444
B31: 14 | C31: =IF($H$11=0," ",IF(B30=$H$11,"TOTALES",+IF(B31>0,VLOOKUP(B31,Simulador!$A$32:$T$550,3,0)," "))) -> 2025-07-01 | D31: =IF($H$11=0," ",IF(B30=$H$11,Simulador!$J$33,+IF(B31>0,VLOOKUP(B31,Simulador!$A$32:$T$550,11,0)," "))) -> 772.5594444 | E31: =IF($H$11=0," ",IF(B30=$H$11,Simulador!$L$31,+IF(B31>0,VLOOKUP(B31,Simulador!$A$32:$T$550,12,0)," "))) -> 321.98 | F31: =IF($H$11=0," ",IF(B30=$H$11,Simulador!$M$31,+IF(B31>0,VLOOKUP(B31,Simulador!$A$32:$T$550,13,0)," "))) -> 16.75 | G31: =IF($H$11=0," ",IF(B30=$H$11,Simulador!$T$31,+IF(B31>0,VLOOKUP(B31,Simulador!$A$32:$T$550,20,0)," "))) -> 0 | H31: =IF($H$11=0," ",IF(B30=$H$11,Simulador!$V$31,+IF(B31>0,VLOOKUP(B31,Simulador!$A$32:$Z$550,22,0)," "))) -> 1111.289444
B32: 15 | C32: =IF($H$11=0," ",IF(B31=$H$11,"TOTALES",+IF(B32>0,VLOOKUP(B32,Simulador!$A$32:$T$550,3,0)," "))) -> 2025-08-01 | D32: =IF($H$11=0," ",IF(B31=$H$11,Simulador!$J$33,+IF(B32>0,VLOOKUP(B32,Simulador!$A$32:$T$550,11,0)," "))) -> 773.9594444 | E32: =IF($H$11=0," ",IF(B31=$H$11,Simulador!$L$31,+IF(B32>0,VLOOKUP(B32,Simulador!$A$32:$T$550,12,0)," "))) -> 320.58 | F32: =IF($H$11=0," ",IF(B31=$H$11,Simulador!$M$31,+IF(B32>0,VLOOKUP(B32,Simulador!$A$32:$T$550,13,0)," "))) -> 16.75 | G32: =IF($H$11=0," ",IF(B31=$H$11,Simulador!$T$31,+IF(B32>0,VLOOKUP(B32,Simulador!$A$32:$T$550,20,0)," "))) -> 0 | H32: =IF($H$11=0," ",IF(B31=$H$11,Simulador!$V$31,+IF(B32>0,VLOOKUP(B32,Simulador!$A$32:$Z$550,22,0)," "))) -> 1111.289444
B33: 16 | C33: =IF($H$11=0," ",IF(B32=$H$11,"TOTALES",+IF(B33>0,VLOOKUP(B33,Simulador!$A$32:$T$550,3,0)," "))) -> 2025-09-01 | D33: =IF($H$11=0," ",IF(B32=$H$11,Simulador!$J$33,+IF(B33>0,VLOOKUP(B33,Simulador!$A$32:$T$550,11,0)," "))) -> 786.2094444 | E33: =IF($H$11=0," ",IF(B32=$H$11,Simulador!$L$31,+IF(B33>0,VLOOKUP(B33,Simulador!$A$32:$T$550,12,0)," "))) -> 308.33 | F33: =IF($H$11=0," ",IF(B32=$H$11,Simulador!$M$31,+IF(B33>0,VLOOKUP(B33,Simulador!$A$32:$T$550,13,0)," "))) -> 16.75 | G33: =IF($H$11=0," ",IF(B32=$H$11,Simulador!$T$31,+IF(B33>0,VLOOKUP(B33,Simulador!$A$32:$T$550,20,0)," "))) -> 0 | H33: =IF($H$11=0," ",IF(B32=$H$11,Simulador!$V$31,+IF(B33>0,VLOOKUP(B33,Simulador!$A$32:$Z$550,22,0)," "))) -> 1111.289444
B34: 17 | C34: =IF($H$11=0," ",IF(B33=$H$11,"TOTALES",+IF(B34>0,VLOOKUP(B34,Simulador!$A$32:$T$550,3,0)," "))) -> 2025-10-01 | D34: =IF($H$11=0," ",IF(B33=$H$11,Simulador!$J$33,+IF(B34>0,VLOOKUP(B34,Simulador!$A$32:$T$550,11,0)," "))) -> 808.2694444 | E34: =IF($H$11=0," ",IF(B33=$H$11,Simulador!$L$31,+IF(B34>0,VLOOKUP(B34,Simulador!$A$32:$T$550,12,0)," "))) -> 286.27 | F34: =IF($H$11=0," ",IF(B33=$H$11,Simulador!$M$31,+IF(B34>0,VLOOKUP(B34,Simulador!$A$32:$T$550,13,0)," "))) -> 16.75 | G34: =IF($H$11=0," ",IF(B33=$H$11,Simulador!$T$31,+IF(B34>0,VLOOKUP(B34,Simulador!$A$32:$T$550,20,0)," "))) -> 0 | H34: =IF($H$11=0," ",IF(B33=$H$11,Simulador!$V$31,+IF(B34>0,VLOOKUP(B34,Simulador!$A$32:$Z$550,22,0)," "))) -> 1111.289444
B35: 18 | C35: =IF($H$11=0," ",IF(B34=$H$11,"TOTALES",+IF(B35>0,VLOOKUP(B35,Simulador!$A$32:$T$550,3,0)," "))) -> 2025-11-01 | D35: =IF($H$11=0," ",IF(B34=$H$11,Simulador!$J$33,+IF(B35>0,VLOOKUP(B35,Simulador!$A$32:$T$550,11,0)," "))) -> 811.4394444 | E35: =IF($H$11=0," ",IF(B34=$H$11,Simulador!$L$31,+IF(B35>0,VLOOKUP(B35,Simulador!$A$32:$T$550,12,0)," "))) -> 283.1 | F35: =IF($H$11=0," ",IF(B34=$H$11,Simulador!$M$31,+IF(B35>0,VLOOKUP(B35,Simulador!$A$32:$T$550,13,0)," "))) -> 16.75 | G35: =IF($H$11=0," ",IF(B34=$H$11,Simulador!$T$31,+IF(B35>0,VLOOKUP(B35,Simulador!$A$32:$T$550,20,0)," "))) -> 0 | H35: =IF($H$11=0," ",IF(B34=$H$11,Simulador!$V$31,+IF(B35>0,VLOOKUP(B35,Simulador!$A$32:$Z$550,22,0)," "))) -> 1111.289444
B36: 19 | C36: =IF($H$11=0," ",IF(B35=$H$11,"TOTALES",+IF(B36>0,VLOOKUP(B36,Simulador!$A$32:$T$550,3,0)," "))) -> 2025-12-01 | D36: =IF($H$11=0," ",IF(B35=$H$11,Simulador!$J$33,+IF(B36>0,VLOOKUP(B36,Simulador!$A$32:$T$550,11,0)," "))) -> 833.0694444 | E36: =IF($H$11=0," ",IF(B35=$H$11,Simulador!$L$31,+IF(B36>0,VLOOKUP(B36,Simulador!$A$32:$T$550,12,0)," "))) -> 261.47 | F36: =IF($H$11=0," ",IF(B35=$H$11,Simulador!$M$31,+IF(B36>0,VLOOKUP(B36,Simulador!$A$32:$T$550,13,0)," "))) -> 16.75 | G36: =IF($H$11=0," ",IF(B35=$H$11,Simulador!$T$31,+IF(B36>0,VLOOKUP(B36,Simulador!$A$32:$T$550,20,0)," "))) -> 0 | H36: =IF($H$11=0," ",IF(B35=$H$11,Simulador!$V$31,+IF(B36>0,VLOOKUP(B36,Simulador!$A$32:$Z$550,22,0)," "))) -> 1111.289444
B37: 20 | C37: =IF($H$11=0," ",IF(B36=$H$11,"TOTALES",+IF(B37>0,VLOOKUP(B37,Simulador!$A$32:$T$550,3,0)," "))) -> 2026-01-01 | D37: =IF($H$11=0," ",IF(B36=$H$11,Simulador!$J$33,+IF(B37>0,VLOOKUP(B37,Simulador!$A$32:$T$550,11,0)," "))) -> 837.4594444 | E37: =IF($H$11=0," ",IF(B36=$H$11,Simulador!$L$31,+IF(B37>0,VLOOKUP(B37,Simulador!$A$32:$T$550,12,0)," "))) -> 257.08 | F37: =IF($H$11=0," ",IF(B36=$H$11,Simulador!$M$31,+IF(B37>0,VLOOKUP(B37,Simulador!$A$32:$T$550,13,0)," "))) -> 16.75 | G37: =IF($H$11=0," ",IF(B36=$H$11,Simulador!$T$31,+IF(B37>0,VLOOKUP(B37,Simulador!$A$32:$T$550,20,0)," "))) -> 0 | H37: =IF($H$11=0," ",IF(B36=$H$11,Simulador!$V$31,+IF(B37>0,VLOOKUP(B37,Simulador!$A$32:$Z$550,22,0)," "))) -> 1111.289444
B38: 21 | C38: =IF($H$11=0," ",IF(B37=$H$11,"TOTALES",+IF(B38>0,VLOOKUP(B38,Simulador!$A$32:$T$550,3,0)," "))) -> 2026-02-01 | D38: =IF($H$11=0," ",IF(B37=$H$11,Simulador!$J$33,+IF(B38>0,VLOOKUP(B38,Simulador!$A$32:$T$550,11,0)," "))) -> 850.7094444 | E38: =IF($H$11=0," ",IF(B37=$H$11,Simulador!$L$31,+IF(B38>0,VLOOKUP(B38,Simulador!$A$32:$T$550,12,0)," "))) -> 243.83 | F38: =IF($H$11=0," ",IF(B37=$H$11,Simulador!$M$31,+IF(B38>0,VLOOKUP(B38,Simulador!$A$32:$T$550,13,0)," "))) -> 16.75 | G38: =IF($H$11=0," ",IF(B37=$H$11,Simulador!$T$31,+IF(B38>0,VLOOKUP(B38,Simulador!$A$32:$T$550,20,0)," "))) -> 0 | H38: =IF($H$11=0," ",IF(B37=$H$11,Simulador!$V$31,+IF(B38>0,VLOOKUP(B38,Simulador!$A$32:$Z$550,22,0)," "))) -> 1111.289444
B39: 22 | C39: =IF($H$11=0," ",IF(B38=$H$11,"TOTALES",+IF(B39>0,VLOOKUP(B39,Simulador!$A$32:$T$550,3,0)," "))) -> 2026-03-01 | D39: =IF($H$11=0," ",IF(B38=$H$11,Simulador!$J$33,+IF(B39>0,VLOOKUP(B39,Simulador!$A$32:$T$550,11,0)," "))) -> 886.6294444 | E39: =IF($H$11=0," ",IF(B38=$H$11,Simulador!$L$31,+IF(B39>0,VLOOKUP(B39,Simulador!$A$32:$T$550,12,0)," "))) -> 207.91 | F39: =IF($H$11=0," ",IF(B38=$H$11,Simulador!$M$31,+IF(B39>0,VLOOKUP(B39,Simulador!$A$32:$T$550,13,0)," "))) -> 16.75 | G39: =IF($H$11=0," ",IF(B38=$H$11,Simulador!$T$31,+IF(B39>0,VLOOKUP(B39,Simulador!$A$32:$T$550,20,0)," "))) -> 0 | H39: =IF($H$11=0," ",IF(B38=$H$11,Simulador!$V$31,+IF(B39>0,VLOOKUP(B39,Simulador!$A$32:$Z$550,22,0)," "))) -> 1111.289444
B40: 23 | C40: =IF($H$11=0," ",IF(B39=$H$11,"TOTALES",+IF(B40>0,VLOOKUP(B40,Simulador!$A$32:$T$550,3,0)," "))) -> 2026-04-01 | D40: =IF($H$11=0," ",IF(B39=$H$11,Simulador!$J$33,+IF(B40>0,VLOOKUP(B40,Simulador!$A$32:$T$550,11,0)," "))) -> 878.2094444 | E40: =IF($H$11=0," ",IF(B39=$H$11,Simulador!$L$31,+IF(B40>0,VLOOKUP(B40,Simulador!$A$32:$T$550,12,0)," "))) -> 216.33 | F40: =IF($H$11=0," ",IF(B39=$H$11,Simulador!$M$31,+IF(B40>0,VLOOKUP(B40,Simulador!$A$32:$T$550,13,0)," "))) -> 16.75 | G40: =IF($H$11=0," ",IF(B39=$H$11,Simulador!$T$31,+IF(B40>0,VLOOKUP(B40,Simulador!$A$32:$T$550,20,0)," "))) -> 0 | H40: =IF($H$11=0," ",IF(B39=$H$11,Simulador!$V$31,+IF(B40>0,VLOOKUP(B40,Simulador!$A$32:$Z$550,22,0)," "))) -> 1111.289444
B41: 24 | C41: =IF($H$11=0," ",IF(B40=$H$11,"TOTALES",+IF(B41>0,VLOOKUP(B41,Simulador!$A$32:$T$550,3,0)," "))) -> 2026-05-01 | D41: =IF($H$11=0," ",IF(B40=$H$11,Simulador!$J$33,+IF(B41>0,VLOOKUP(B41,Simulador!$A$32:$T$550,11,0)," "))) -> 898.6794444 | E41: =IF($H$11=0," ",IF(B40=$H$11,Simulador!$L$31,+IF(B41>0,VLOOKUP(B41,Simulador!$A$32:$T$550,12,0)," "))) -> 195.86 | F41: =IF($H$11=0," ",IF(B40=$H$11,Simulador!$M$31,+IF(B41>0,VLOOKUP(B41,Simulador!$A$32:$T$550,13,0)," "))) -> 16.75 | G41: =IF($H$11=0," ",IF(B40=$H$11,Simulador!$T$31,+IF(B41>0,VLOOKUP(B41,Simulador!$A$32:$T$550,20,0)," "))) -> 0 | H41: =IF($H$11=0," ",IF(B40=$H$11,Simulador!$V$31,+IF(B41>0,VLOOKUP(B41,Simulador!$A$32:$Z$550,22,0)," "))) -> 1111.289444
B42: 25 | C42: =IF($H$11=0," ",IF(B41=$H$11,"TOTALES",+IF(B42>0,VLOOKUP(B42,Simulador!$A$32:$T$550,3,0)," "))) -> 2026-06-01 | D42: =IF($H$11=0," ",IF(B41=$H$11,Simulador!$J$33,+IF(B42>0,VLOOKUP(B42,Simulador!$A$32:$T$550,11,0)," "))) -> 906.3194444 | E42: =IF($H$11=0," ",IF(B41=$H$11,Simulador!$L$31,+IF(B42>0,VLOOKUP(B42,Simulador!$A$32:$T$550,12,0)," "))) -> 188.22 | F42: =IF($H$11=0," ",IF(B41=$H$11,Simulador!$M$31,+IF(B42>0,VLOOKUP(B42,Simulador!$A$32:$T$550,13,0)," "))) -> 16.75 | G42: =IF($H$11=0," ",IF(B41=$H$11,Simulador!$T$31,+IF(B42>0,VLOOKUP(B42,Simulador!$A$32:$T$550,20,0)," "))) -> 0 | H42: =IF($H$11=0," ",IF(B41=$H$11,Simulador!$V$31,+IF(B42>0,VLOOKUP(B42,Simulador!$A$32:$Z$550,22,0)," "))) -> 1111.289444
B43: 26 | C43: =IF($H$11=0," ",IF(B42=$H$11,"TOTALES",+IF(B43>0,VLOOKUP(B43,Simulador!$A$32:$T$550,3,0)," "))) -> 2026-07-01 | D43: =IF($H$11=0," ",IF(B42=$H$11,Simulador!$J$33,+IF(B43>0,VLOOKUP(B43,Simulador!$A$32:$T$550,11,0)," "))) -> 926.3194444 | E43: =IF($H$11=0," ",IF(B42=$H$11,Simulador!$L$31,+IF(B43>0,VLOOKUP(B43,Simulador!$A$32:$T$550,12,0)," "))) -> 168.22 | F43: =IF($H$11=0," ",IF(B42=$H$11,Simulador!$M$31,+IF(B43>0,VLOOKUP(B43,Simulador!$A$32:$T$550,13,0)," "))) -> 16.75 | G43: =IF($H$11=0," ",IF(B42=$H$11,Simulador!$T$31,+IF(B43>0,VLOOKUP(B43,Simulador!$A$32:$T$550,20,0)," "))) -> 0 | H43: =IF($H$11=0," ",IF(B42=$H$11,Simulador!$V$31,+IF(B43>0,VLOOKUP(B43,Simulador!$A$32:$Z$550,22,0)," "))) -> 1111.289444
B44: 27 | C44: =IF($H$11=0," ",IF(B43=$H$11,"TOTALES",+IF(B44>0,VLOOKUP(B44,Simulador!$A$32:$T$550,3,0)," "))) -> 2026-08-01 | D44: =IF($H$11=0," ",IF(B43=$H$11,Simulador!$J$33,+IF(B44>0,VLOOKUP(B44,Simulador!$A$32:$T$550,11,0)," "))) -> 935.3194444 | E44: =IF($H$11=0," ",IF(B43=$H$11,Simulador!$L$31,+IF(B44>0,VLOOKUP(B44,Simulador!$A$32:$T$550,12,0)," "))) -> 159.22 | F44: =IF($H$11=0," ",IF(B43=$H$11,Simulador!$M$31,+IF(B44>0,VLOOKUP(B44,Simulador!$A$32:$T$550,13,0)," "))) -> 16.75 | G44: =IF($H$11=0," ",IF(B43=$H$11,Simulador!$T$31,+IF(B44>0,VLOOKUP(B44,Simulador!$A$32:$T$550,20,0)," "))) -> 0 | H44: =IF($H$11=0," ",IF(B43=$H$11,Simulador!$V$31,+IF(B44>0,VLOOKUP(B44,Simulador!$A$32:$Z$550,22,0)," "))) -> 1111.289444
B45: 28 | C45: =IF($H$11=0," ",IF(B44=$H$11,"TOTALES",+IF(B45>0,VLOOKUP(B45,Simulador!$A$32:$T$550,3,0)," "))) -> 2026-09-01 | D45: =IF($H$11=0," ",IF(B44=$H$11,Simulador!$J$33,+IF(B45>0,VLOOKUP(B45,Simulador!$A$32:$T$550,11,0)," "))) -> 950.1194444 | E45: =IF($H$11=0," ",IF(B44=$H$11,Simulador!$L$31,+IF(B45>0,VLOOKUP(B45,Simulador!$A$32:$T$550,12,0)," "))) -> 144.42 | F45: =IF($H$11=0," ",IF(B44=$H$11,Simulador!$M$31,+IF(B45>0,VLOOKUP(B45,Simulador!$A$32:$T$550,13,0)," "))) -> 16.75 | G45: =IF($H$11=0," ",IF(B44=$H$11,Simulador!$T$31,+IF(B45>0,VLOOKUP(B45,Simulador!$A$32:$T$550,20,0)," "))) -> 0 | H45: =IF($H$11=0," ",IF(B44=$H$11,Simulador!$V$31,+IF(B45>0,VLOOKUP(B45,Simulador!$A$32:$Z$550,22,0)," "))) -> 1111.289444
B46: 29 | C46: =IF($H$11=0," ",IF(B45=$H$11,"TOTALES",+IF(B46>0,VLOOKUP(B46,Simulador!$A$32:$T$550,3,0)," "))) -> 2026-10-01 | D46: =IF($H$11=0," ",IF(B45=$H$11,Simulador!$J$33,+IF(B46>0,VLOOKUP(B46,Simulador!$A$32:$T$550,11,0)," "))) -> 969.3594444 | E46: =IF($H$11=0," ",IF(B45=$H$11,Simulador!$L$31,+IF(B46>0,VLOOKUP(B46,Simulador!$A$32:$T$550,12,0)," "))) -> 125.18 | F46: =IF($H$11=0," ",IF(B45=$H$11,Simulador!$M$31,+IF(B46>0,VLOOKUP(B46,Simulador!$A$32:$T$550,13,0)," "))) -> 16.75 | G46: =IF($H$11=0," ",IF(B45=$H$11,Simulador!$T$31,+IF(B46>0,VLOOKUP(B46,Simulador!$A$32:$T$550,20,0)," "))) -> 0 | H46: =IF($H$11=0," ",IF(B45=$H$11,Simulador!$V$31,+IF(B46>0,VLOOKUP(B46,Simulador!$A$32:$Z$550,22,0)," "))) -> 1111.289444
B47: 30 | C47: =IF($H$11=0," ",IF(B46=$H$11,"TOTALES",+IF(B47>0,VLOOKUP(B47,Simulador!$A$32:$T$550,3,0)," "))) -> 2026-11-01 | D47: =IF($H$11=0," ",IF(B46=$H$11,Simulador!$J$33,+IF(B47>0,VLOOKUP(B47,Simulador!$A$32:$T$550,11,0)," "))) -> 980.4994444 | E47: =IF($H$11=0," ",IF(B46=$H$11,Simulador!$L$31,+IF(B47>0,VLOOKUP(B47,Simulador!$A$32:$T$550,12,0)," "))) -> 114.04 | F47: =IF($H$11=0," ",IF(B46=$H$11,Simulador!$M$31,+IF(B47>0,VLOOKUP(B47,Simulador!$A$32:$T$550,13,0)," "))) -> 16.75 | G47: =IF($H$11=0," ",IF(B46=$H$11,Simulador!$T$31,+IF(B47>0,VLOOKUP(B47,Simulador!$A$32:$T$550,20,0)," "))) -> 0 | H47: =IF($H$11=0," ",IF(B46=$H$11,Simulador!$V$31,+IF(B47>0,VLOOKUP(B47,Simulador!$A$32:$Z$550,22,0)," "))) -> 1111.289444
B48: 31 | C48: =IF($H$11=0," ",IF(B47=$H$11,"TOTALES",+IF(B48>0,VLOOKUP(B48,Simulador!$A$32:$T$550,3,0)," "))) -> 2026-12-01 | D48: =IF($H$11=0," ",IF(B47=$H$11,Simulador!$J$33,+IF(B48>0,VLOOKUP(B48,Simulador!$A$32:$T$550,11,0)," "))) -> 999.2094444 | E48: =IF($H$11=0," ",IF(B47=$H$11,Simulador!$L$31,+IF(B48>0,VLOOKUP(B48,Simulador!$A$32:$T$550,12,0)," "))) -> 95.33 | F48: =IF($H$11=0," ",IF(B47=$H$11,Simulador!$M$31,+IF(B48>0,VLOOKUP(B48,Simulador!$A$32:$T$550,13,0)," "))) -> 16.75 | G48: =IF($H$11=0," ",IF(B47=$H$11,Simulador!$T$31,+IF(B48>0,VLOOKUP(B48,Simulador!$A$32:$T$550,20,0)," "))) -> 0 | H48: =IF($H$11=0," ",IF(B47=$H$11,Simulador!$V$31,+IF(B48>0,VLOOKUP(B48,Simulador!$A$32:$Z$550,22,0)," "))) -> 1111.289444
B49: 32 | C49: =IF($H$11=0," ",IF(B48=$H$11,"TOTALES",+IF(B49>0,VLOOKUP(B49,Simulador!$A$32:$T$550,3,0)," "))) -> 2027-01-01 | D49: =IF($H$11=0," ",IF(B48=$H$11,Simulador!$J$33,+IF(B49>0,VLOOKUP(B49,Simulador!$A$32:$T$550,11,0)," "))) -> 1011.819444 | E49: =IF($H$11=0," ",IF(B48=$H$11,Simulador!$L$31,+IF(B49>0,VLOOKUP(B49,Simulador!$A$32:$T$550,12,0)," "))) -> 82.72 | F49: =IF($H$11=0," ",IF(B48=$H$11,Simulador!$M$31,+IF(B49>0,VLOOKUP(B49,Simulador!$A$32:$T$550,13,0)," "))) -> 16.75 | G49: =IF($H$11=0," ",IF(B48=$H$11,Simulador!$T$31,+IF(B49>0,VLOOKUP(B49,Simulador!$A$32:$T$550,20,0)," "))) -> 0 | H49: =IF($H$11=0," ",IF(B48=$H$11,Simulador!$V$31,+IF(B49>0,VLOOKUP(B49,Simulador!$A$32:$Z$550,22,0)," "))) -> 1111.289444
B50: 33 | C50: =IF($H$11=0," ",IF(B49=$H$11,"TOTALES",+IF(B50>0,VLOOKUP(B50,Simulador!$A$32:$T$550,3,0)," "))) -> 2027-02-01 | D50: =IF($H$11=0," ",IF(B49=$H$11,Simulador!$J$33,+IF(B50>0,VLOOKUP(B50,Simulador!$A$32:$T$550,11,0)," "))) -> 1027.829444 | E50: =IF($H$11=0," ",IF(B49=$H$11,Simulador!$L$31,+IF(B50>0,VLOOKUP(B50,Simulador!$A$32:$T$550,12,0)," "))) -> 66.71 | F50: =IF($H$11=0," ",IF(B49=$H$11,Simulador!$M$31,+IF(B50>0,VLOOKUP(B50,Simulador!$A$32:$T$550,13,0)," "))) -> 16.75 | G50: =IF($H$11=0," ",IF(B49=$H$11,Simulador!$T$31,+IF(B50>0,VLOOKUP(B50,Simulador!$A$32:$T$550,20,0)," "))) -> 0 | H50: =IF($H$11=0," ",IF(B49=$H$11,Simulador!$V$31,+IF(B50>0,VLOOKUP(B50,Simulador!$A$32:$Z$550,22,0)," "))) -> 1111.289444
B51: 34 | C51: =IF($H$11=0," ",IF(B50=$H$11,"TOTALES",+IF(B51>0,VLOOKUP(B51,Simulador!$A$32:$T$550,3,0)," "))) -> 2027-03-01 | D51: =IF($H$11=0," ",IF(B50=$H$11,Simulador!$J$33,+IF(B51>0,VLOOKUP(B51,Simulador!$A$32:$T$550,11,0)," "))) -> 1049.009444 | E51: =IF($H$11=0," ",IF(B50=$H$11,Simulador!$L$31,+IF(B51>0,VLOOKUP(B51,Simulador!$A$32:$T$550,12,0)," "))) -> 45.53 | F51: =IF($H$11=0," ",IF(B50=$H$11,Simulador!$M$31,+IF(B51>0,VLOOKUP(B51,Simulador!$A$32:$T$550,13,0)," "))) -> 16.75 | G51: =IF($H$11=0," ",IF(B50=$H$11,Simulador!$T$31,+IF(B51>0,VLOOKUP(B51,Simulador!$A$32:$T$550,20,0)," "))) -> 0 | H51: =IF($H$11=0," ",IF(B50=$H$11,Simulador!$V$31,+IF(B51>0,VLOOKUP(B51,Simulador!$A$32:$Z$550,22,0)," "))) -> 1111.289444
B52: 35 | C52: =IF($H$11=0," ",IF(B51=$H$11,"TOTALES",+IF(B52>0,VLOOKUP(B52,Simulador!$A$32:$T$550,3,0)," "))) -> 2027-04-01 | D52: =IF($H$11=0," ",IF(B51=$H$11,Simulador!$J$33,+IF(B52>0,VLOOKUP(B52,Simulador!$A$32:$T$550,11,0)," "))) -> 1060.699444 | E52: =IF($H$11=0," ",IF(B51=$H$11,Simulador!$L$31,+IF(B52>0,VLOOKUP(B52,Simulador!$A$32:$T$550,12,0)," "))) -> 33.84 | F52: =IF($H$11=0," ",IF(B51=$H$11,Simulador!$M$31,+IF(B52>0,VLOOKUP(B52,Simulador!$A$32:$T$550,13,0)," "))) -> 16.75 | G52: =IF($H$11=0," ",IF(B51=$H$11,Simulador!$T$31,+IF(B52>0,VLOOKUP(B52,Simulador!$A$32:$T$550,20,0)," "))) -> 0 | H52: =IF($H$11=0," ",IF(B51=$H$11,Simulador!$V$31,+IF(B52>0,VLOOKUP(B52,Simulador!$A$32:$Z$550,22,0)," "))) -> 1111.289444
B53: 36 | C53: =IF($H$11=0," ",IF(B52=$H$11,"TOTALES",+IF(B53>0,VLOOKUP(B53,Simulador!$A$32:$T$550,3,0)," "))) -> 2027-05-01 | D53: =IF($H$11=0," ",IF(B52=$H$11,Simulador!$J$33,+IF(B53>0,VLOOKUP(B53,Simulador!$A$32:$T$550,11,0)," "))) -> 1078.039444 | E53: =IF($H$11=0," ",IF(B52=$H$11,Simulador!$L$31,+IF(B53>0,VLOOKUP(B53,Simulador!$A$32:$T$550,12,0)," "))) -> 16.5 | F53: =IF($H$11=0," ",IF(B52=$H$11,Simulador!$M$31,+IF(B53>0,VLOOKUP(B53,Simulador!$A$32:$T$550,13,0)," "))) -> 16.75 | G53: =IF($H$11=0," ",IF(B52=$H$11,Simulador!$T$31,+IF(B53>0,VLOOKUP(B53,Simulador!$A$32:$T$550,20,0)," "))) -> 0 | H53: =IF($H$11=0," ",IF(B52=$H$11,Simulador!$V$31,+IF(B53>0,VLOOKUP(B53,Simulador!$A$32:$Z$550,22,0)," "))) -> 1111.289444
C54: =IF($H$11=0," ",IF(B53=$H$11,"TOTALES",+IF(B54>0,VLOOKUP(B54,Simulador!$A$32:$T$550,3,0)," "))) -> TOTALES | D54: =IF($H$11=0," ",IF(B53=$H$11,Simulador!$J$33,+IF(B54>0,VLOOKUP(B54,Simulador!$A$32:$T$550,11,0)," "))) -> 30000 | E54: =IF($H$11=0," ",IF(B53=$H$11,Simulador!$L$31,+IF(B54>0,VLOOKUP(B54,Simulador!$A$32:$T$550,12,0)," "))) -> 9403.42 | F54: =IF($H$11=0," ",IF(B53=$H$11,Simulador!$M$31,+IF(B54>0,VLOOKUP(B54,Simulador!$A$32:$T$550,13,0)," "))) -> 603 | G54: =IF($H$11=0," ",IF(B53=$H$11,Simulador!$T$31,+IF(B54>0,VLOOKUP(B54,Simulador!$A$32:$T$550,20,0)," "))) -> 0 | H54: =IF($H$11=0," ",IF(B53=$H$11,Simulador!$V$31,+IF(B54>0,VLOOKUP(B54,Simulador!$A$32:$Z$550,22,0)," "))) -> 40006.42
C55: =IF($H$11=0," ",IF(B54=$H$11,"TOTALES",+IF(B55>0,VLOOKUP(B55,Simulador!$A$32:$T$550,3,0)," "))) ->  | D55: =IF($H$11=0," ",IF(B54=$H$11,Simulador!$J$33,+IF(B55>0,VLOOKUP(B55,Simulador!$A$32:$T$550,11,0)," "))) ->  | E55: =IF($H$11=0," ",IF(B54=$H$11,Simulador!$L$31,+IF(B55>0,VLOOKUP(B55,Simulador!$A$32:$T$550,12,0)," "))) ->  | F55: =IF($H$11=0," ",IF(B54=$H$11,Simulador!$M$31,+IF(B55>0,VLOOKUP(B55,Simulador!$A$32:$T$550,13,0)," "))) ->  | G55: =IF($H$11=0," ",IF(B54=$H$11,Simulador!$T$31,+IF(B55>0,VLOOKUP(B55,Simulador!$A$32:$T$550,20,0)," "))) ->  | H55: =IF($H$11=0," ",IF(B54=$H$11,Simulador!$V$31,+IF(B55>0,VLOOKUP(B55,Simulador!$A$32:$Z$550,22,0)," "))) -> 
C56: =IF($H$11=0," ",IF(B55=$H$11,"TOTALES",+IF(B56>0,VLOOKUP(B56,Simulador!$A$32:$T$550,3,0)," "))) ->  | D56: =IF($H$11=0," ",IF(B55=$H$11,Simulador!$J$33,+IF(B56>0,VLOOKUP(B56,Simulador!$A$32:$T$550,11,0)," "))) ->  | E56: =IF($H$11=0," ",IF(B55=$H$11,Simulador!$L$31,+IF(B56>0,VLOOKUP(B56,Simulador!$A$32:$T$550,12,0)," "))) ->  | F56: =IF($H$11=0," ",IF(B55=$H$11,Simulador!$M$31,+IF(B56>0,VLOOKUP(B56,Simulador!$A$32:$T$550,13,0)," "))) ->  | G56: =IF($H$11=0," ",IF(B55=$H$11,Simulador!$T$31,+IF(B56>0,VLOOKUP(B56,Simulador!$A$32:$T$550,20,0)," "))) ->  | H56: =IF($H$11=0," ",IF(B55=$H$11,Simulador!$V$31,+IF(B56>0,VLOOKUP(B56,Simulador!$A$32:$Z$550,22,0)," "))) -> 
C57: =IF($H$11=0," ",IF(B56=$H$11,"TOTALES",+IF(B57>0,VLOOKUP(B57,Simulador!$A$32:$T$550,3,0)," "))) ->  | D57: =IF($H$11=0," ",IF(B56=$H$11,Simulador!$J$33,+IF(B57>0,VLOOKUP(B57,Simulador!$A$32:$T$550,11,0)," "))) ->  | E57: =IF($H$11=0," ",IF(B56=$H$11,Simulador!$L$31,+IF(B57>0,VLOOKUP(B57,Simulador!$A$32:$T$550,12,0)," "))) ->  | F57: =IF($H$11=0," ",IF(B56=$H$11,Simulador!$M$31,+IF(B57>0,VLOOKUP(B57,Simulador!$A$32:$T$550,13,0)," "))) ->  | G57: =IF($H$11=0," ",IF(B56=$H$11,Simulador!$T$31,+IF(B57>0,VLOOKUP(B57,Simulador!$A$32:$T$550,20,0)," "))) ->  | H57: =IF($H$11=0," ",IF(B56=$H$11,Simulador!$V$31,+IF(B57>0,VLOOKUP(B57,Simulador!$A$32:$Z$550,22,0)," "))) -> 
C58: =IF($H$11=0," ",IF(B57=$H$11,"TOTALES",+IF(B58>0,VLOOKUP(B58,Simulador!$A$32:$T$550,3,0)," "))) ->  | D58: =IF($H$11=0," ",IF(B57=$H$11,Simulador!$J$33,+IF(B58>0,VLOOKUP(B58,Simulador!$A$32:$T$550,11,0)," "))) ->  | E58: =IF($H$11=0," ",IF(B57=$H$11,Simulador!$L$31,+IF(B58>0,VLOOKUP(B58,Simulador!$A$32:$T$550,12,0)," "))) ->  | F58: =IF($H$11=0," ",IF(B57=$H$11,Simulador!$M$31,+IF(B58>0,VLOOKUP(B58,Simulador!$A$32:$T$550,13,0)," "))) ->  | G58: =IF($H$11=0," ",IF(B57=$H$11,Simulador!$T$31,+IF(B58>0,VLOOKUP(B58,Simulador!$A$32:$T$550,20,0)," "))) ->  | H58: =IF($H$11=0," ",IF(B57=$H$11,Simulador!$V$31,+IF(B58>0,VLOOKUP(B58,Simulador!$A$32:$Z$550,22,0)," "))) -> 
C59: =IF($H$11=0," ",IF(B58=$H$11,"TOTALES",+IF(B59>0,VLOOKUP(B59,Simulador!$A$32:$T$550,3,0)," "))) ->  | D59: =IF($H$11=0," ",IF(B58=$H$11,Simulador!$J$33,+IF(B59>0,VLOOKUP(B59,Simulador!$A$32:$T$550,11,0)," "))) ->  | E59: =IF($H$11=0," ",IF(B58=$H$11,Simulador!$L$31,+IF(B59>0,VLOOKUP(B59,Simulador!$A$32:$T$550,12,0)," "))) ->  | F59: =IF($H$11=0," ",IF(B58=$H$11,Simulador!$M$31,+IF(B59>0,VLOOKUP(B59,Simulador!$A$32:$T$550,13,0)," "))) ->  | G59: =IF($H$11=0," ",IF(B58=$H$11,Simulador!$T$31,+IF(B59>0,VLOOKUP(B59,Simulador!$A$32:$T$550,20,0)," "))) ->  | H59: =IF($H$11=0," ",IF(B58=$H$11,Simulador!$V$31,+IF(B59>0,VLOOKUP(B59,Simulador!$A$32:$Z$550,22,0)," "))) -> 
C60: =IF($H$11=0," ",IF(B59=$H$11,"TOTALES",+IF(B60>0,VLOOKUP(B60,Simulador!$A$32:$T$550,3,0)," "))) ->  | D60: =IF($H$11=0," ",IF(B59=$H$11,Simulador!$J$33,+IF(B60>0,VLOOKUP(B60,Simulador!$A$32:$T$550,11,0)," "))) ->  | E60: =IF($H$11=0," ",IF(B59=$H$11,Simulador!$L$31,+IF(B60>0,VLOOKUP(B60,Simulador!$A$32:$T$550,12,0)," "))) ->  | F60: =IF($H$11=0," ",IF(B59=$H$11,Simulador!$M$31,+IF(B60>0,VLOOKUP(B60,Simulador!$A$32:$T$550,13,0)," "))) ->  | G60: =IF($H$11=0," ",IF(B59=$H$11,Simulador!$T$31,+IF(B60>0,VLOOKUP(B60,Simulador!$A$32:$T$550,20,0)," "))) ->  | H60: =IF($H$11=0," ",IF(B59=$H$11,Simulador!$V$31,+IF(B60>0,VLOOKUP(B60,Simulador!$A$32:$Z$550,22,0)," "))) -> 
C61: =IF($H$11=0," ",IF(B60=$H$11,"TOTALES",+IF(B61>0,VLOOKUP(B61,Simulador!$A$32:$T$550,3,0)," "))) ->  | D61: =IF($H$11=0," ",IF(B60=$H$11,Simulador!$J$33,+IF(B61>0,VLOOKUP(B61,Simulador!$A$32:$T$550,11,0)," "))) ->  | E61: =IF($H$11=0," ",IF(B60=$H$11,Simulador!$L$31,+IF(B61>0,VLOOKUP(B61,Simulador!$A$32:$T$550,12,0)," "))) ->  | F61: =IF($H$11=0," ",IF(B60=$H$11,Simulador!$M$31,+IF(B61>0,VLOOKUP(B61,Simulador!$A$32:$T$550,13,0)," "))) ->  | G61: =IF($H$11=0," ",IF(B60=$H$11,Simulador!$T$31,+IF(B61>0,VLOOKUP(B61,Simulador!$A$32:$T$550,20,0)," "))) ->  | H61: =IF($H$11=0," ",IF(B60=$H$11,Simulador!$V$31,+IF(B61>0,VLOOKUP(B61,Simulador!$A$32:$Z$550,22,0)," "))) -> 
C62: =IF($H$11=0," ",IF(B61=$H$11,"TOTALES",+IF(B62>0,VLOOKUP(B62,Simulador!$A$32:$T$550,3,0)," "))) ->  | D62: =IF($H$11=0," ",IF(B61=$H$11,Simulador!$J$33,+IF(B62>0,VLOOKUP(B62,Simulador!$A$32:$T$550,11,0)," "))) ->  | E62: =IF($H$11=0," ",IF(B61=$H$11,Simulador!$L$31,+IF(B62>0,VLOOKUP(B62,Simulador!$A$32:$T$550,12,0)," "))) ->  | F62: =IF($H$11=0," ",IF(B61=$H$11,Simulador!$M$31,+IF(B62>0,VLOOKUP(B62,Simulador!$A$32:$T$550,13,0)," "))) ->  | G62: =IF($H$11=0," ",IF(B61=$H$11,Simulador!$T$31,+IF(B62>0,VLOOKUP(B62,Simulador!$A$32:$T$550,20,0)," "))) ->  | H62: =IF($H$11=0," ",IF(B61=$H$11,Simulador!$V$31,+IF(B62>0,VLOOKUP(B62,Simulador!$A$32:$Z$550,22,0)," "))) -> 
C63: =IF($H$11=0," ",IF(B62=$H$11,"TOTALES",+IF(B63>0,VLOOKUP(B63,Simulador!$A$32:$T$550,3,0)," "))) ->  | D63: =IF($H$11=0," ",IF(B62=$H$11,Simulador!$J$33,+IF(B63>0,VLOOKUP(B63,Simulador!$A$32:$T$550,11,0)," "))) ->  | E63: =IF($H$11=0," ",IF(B62=$H$11,Simulador!$L$31,+IF(B63>0,VLOOKUP(B63,Simulador!$A$32:$T$550,12,0)," "))) ->  | F63: =IF($H$11=0," ",IF(B62=$H$11,Simulador!$M$31,+IF(B63>0,VLOOKUP(B63,Simulador!$A$32:$T$550,13,0)," "))) ->  | G63: =IF($H$11=0," ",IF(B62=$H$11,Simulador!$T$31,+IF(B63>0,VLOOKUP(B63,Simulador!$A$32:$T$550,20,0)," "))) ->  | H63: =IF($H$11=0," ",IF(B62=$H$11,Simulador!$V$31,+IF(B63>0,VLOOKUP(B63,Simulador!$A$32:$Z$550,22,0)," "))) -> 
C64: =IF($H$11=0," ",IF(B63=$H$11,"TOTALES",+IF(B64>0,VLOOKUP(B64,Simulador!$A$32:$T$550,3,0)," "))) ->  | D64: =IF($H$11=0," ",IF(B63=$H$11,Simulador!$J$33,+IF(B64>0,VLOOKUP(B64,Simulador!$A$32:$T$550,11,0)," "))) ->  | E64: =IF($H$11=0," ",IF(B63=$H$11,Simulador!$L$31,+IF(B64>0,VLOOKUP(B64,Simulador!$A$32:$T$550,12,0)," "))) ->  | F64: =IF($H$11=0," ",IF(B63=$H$11,Simulador!$M$31,+IF(B64>0,VLOOKUP(B64,Simulador!$A$32:$T$550,13,0)," "))) ->  | G64: =IF($H$11=0," ",IF(B63=$H$11,Simulador!$T$31,+IF(B64>0,VLOOKUP(B64,Simulador!$A$32:$T$550,20,0)," "))) ->  | H64: =IF($H$11=0," ",IF(B63=$H$11,Simulador!$V$31,+IF(B64>0,VLOOKUP(B64,Simulador!$A$32:$Z$550,22,0)," "))) -> 
C65: =IF($H$11=0," ",IF(B64=$H$11,"TOTALES",+IF(B65>0,VLOOKUP(B65,Simulador!$A$32:$T$550,3,0)," "))) ->  | D65: =IF($H$11=0," ",IF(B64=$H$11,Simulador!$J$33,+IF(B65>0,VLOOKUP(B65,Simulador!$A$32:$T$550,11,0)," "))) ->  | E65: =IF($H$11=0," ",IF(B64=$H$11,Simulador!$L$31,+IF(B65>0,VLOOKUP(B65,Simulador!$A$32:$T$550,12,0)," "))) ->  | F65: =IF($H$11=0," ",IF(B64=$H$11,Simulador!$M$31,+IF(B65>0,VLOOKUP(B65,Simulador!$A$32:$T$550,13,0)," "))) ->  | G65: =IF($H$11=0," ",IF(B64=$H$11,Simulador!$T$31,+IF(B65>0,VLOOKUP(B65,Simulador!$A$32:$T$550,20,0)," "))) ->  | H65: =IF($H$11=0," ",IF(B64=$H$11,Simulador!$V$31,+IF(B65>0,VLOOKUP(B65,Simulador!$A$32:$Z$550,22,0)," "))) -> 
C66: =IF($H$11=0," ",IF(B65=$H$11,"TOTALES",+IF(B66>0,VLOOKUP(B66,Simulador!$A$32:$T$550,3,0)," "))) ->  | D66: =IF($H$11=0," ",IF(B65=$H$11,Simulador!$J$33,+IF(B66>0,VLOOKUP(B66,Simulador!$A$32:$T$550,11,0)," "))) ->  | E66: =IF($H$11=0," ",IF(B65=$H$11,Simulador!$L$31,+IF(B66>0,VLOOKUP(B66,Simulador!$A$32:$T$550,12,0)," "))) ->  | F66: =IF($H$11=0," ",IF(B65=$H$11,Simulador!$M$31,+IF(B66>0,VLOOKUP(B66,Simulador!$A$32:$T$550,13,0)," "))) ->  | G66: =IF($H$11=0," ",IF(B65=$H$11,Simulador!$T$31,+IF(B66>0,VLOOKUP(B66,Simulador!$A$32:$T$550,20,0)," "))) ->  | H66: =IF($H$11=0," ",IF(B65=$H$11,Simulador!$V$31,+IF(B66>0,VLOOKUP(B66,Simulador!$A$32:$Z$550,22,0)," "))) -> 
C67: =IF($H$11=0," ",IF(B66=$H$11,"TOTALES",+IF(B67>0,VLOOKUP(B67,Simulador!$A$32:$T$550,3,0)," "))) ->  | D67: =IF($H$11=0," ",IF(B66=$H$11,Simulador!$J$33,+IF(B67>0,VLOOKUP(B67,Simulador!$A$32:$T$550,11,0)," "))) ->  | E67: =IF($H$11=0," ",IF(B66=$H$11,Simulador!$L$31,+IF(B67>0,VLOOKUP(B67,Simulador!$A$32:$T$550,12,0)," "))) ->  | F67: =IF($H$11=0," ",IF(B66=$H$11,Simulador!$M$31,+IF(B67>0,VLOOKUP(B67,Simulador!$A$32:$T$550,13,0)," "))) ->  | G67: =IF($H$11=0," ",IF(B66=$H$11,Simulador!$T$31,+IF(B67>0,VLOOKUP(B67,Simulador!$A$32:$T$550,20,0)," "))) ->  | H67: =IF($H$11=0," ",IF(B66=$H$11,#REF!,+IF(B67>0,VLOOKUP(B67,Simulador!$A$32:$Z$550,22,0)," "))) -> 
C68: =IF($H$11=0," ",IF(B67=$H$11,"TOTALES",+IF(B68>0,VLOOKUP(B68,Simulador!$A$32:$T$550,3,0)," "))) ->  | D68: =IF($H$11=0," ",IF(B67=$H$11,Simulador!$J$33,+IF(B68>0,VLOOKUP(B68,Simulador!$A$32:$T$550,11,0)," "))) ->  | E68: =IF($H$11=0," ",IF(B67=$H$11,Simulador!$L$31,+IF(B68>0,VLOOKUP(B68,Simulador!$A$32:$T$550,12,0)," "))) ->  | F68: =IF($H$11=0," ",IF(B67=$H$11,Simulador!$M$31,+IF(B68>0,VLOOKUP(B68,Simulador!$A$32:$T$550,13,0)," "))) ->  | G68: =IF($H$11=0," ",IF(B67=$H$11,Simulador!$T$31,+IF(B68>0,VLOOKUP(B68,Simulador!$A$32:$T$550,20,0)," "))) ->  | H68: =IF($H$11=0," ",IF(B67=$H$11,#REF!,+IF(B68>0,VLOOKUP(B68,Simulador!$A$32:$Z$550,22,0)," "))) -> 

Sheet Simulador (hidden)
C2: SIMULADOR DE CUOTAS - CRÉDITO PLD
C5: Importe Solicitado | H5: =+Hoja1!C8 -> 30000 | L5: Fecha Desembolso | Q5: =+Hoja1!C9 -> 2024-04-01
C6: Saldo de Capital | H6: =H5 -> 30000 | L6: Fecha Final de Gracia | Q6: =+DATE(YEAR(Q5+H15),MONTH(Q5+H15),DAY(Q5+H15)) -> 2024-05-01
C7: Saldo de Interes | H7: 0 | L7: Fecha de la 1° cuota | Q7: =DATE(YEAR(EDATE(Q6,1)),MONTH(EDATE(Q6,1)),DAY(EDATE(Q6,1))) -> 2024-06-01
C8: Tasa Anual (TEA) | H8: =+Hoja1!C11 -> 20 | L8: Fecha final de vencimiento | Q8: =IF(OR($H$16>0,$H$17>0),VLOOKUP($H$14,$A$33:$C$272,3,0),DATE(YEAR(EDATE(Q6,H14)),MONTH(EDATE(Q6,H14)),DAY(EDATE(Q6,H14)))) -> 2027-05-01
C9: Tasa de Seguro de Desgravamen | H9: =+IF(Hoja1!C13="Endoso",0,IF(Hoja1!C13="Seguro con retorno",0.346%,0.18%)) -> 0 | L9: Base | Q9: 360
C10: Tasa Anual (TEA) - Ajustada | H10: =+H8 -> 20 | L10: Frecuencia pago en días | Q10: 30
C11: Comision por Env. Inf | H11: 0 | L11: Tasa Equivalente - Ajustada | Q11: =ROUND((((H10/100+1)^(1/(Q9/Q10))-1)*Q9/Q10)*100,6) -> 18.371365 | R11: tea conv. A tem luego nominal anual
C12: Valor Asegurable | H12: 0 | L12: Días entre cuotas | Q12: =(Q8-Q6)/H14 -> 30.41666667 | R12: dias promedio entre cuotas
C13: Tasa de Seguro Todo Riesgo | H13: 0 | I13: =+H13*12 -> 0 | J13: =+I13/365*30*H12 -> 0 | L13: Factor Aplicado - Ajustada | Q13: =ROUND(($Q$11/100)/($Q$9/$Q$12),8) -> 0.0155221 | R13: tem convertida de manera nominal a los dias entre cuotas
C14: Plazo y Nro. Cuotas | H14: =+Hoja1!C10 -> 36 | I14: =H14 -> 36 | L14: Factor Aplicado para la cuota - Ajustada | Q14: =1/((1-((1+$Q$13)^(-1*$H$14)))/$Q$13) -> 0.03646746456 | R14: Factor de cuota (ok)
C15: Días de Gracia | H15: =+Hoja1!C12 -> 30 | L15: Interes de Gracia (Se considera la TEA Normal) | Q15: =IF(H15>0,ROUND(H6*(((1+H8/100)^(ABS(H15)/Q9))-1),4),ROUND(H6*(((1+H8/100)^(ABS(H15)/Q9))-1),4) * -1) -> 459.2841 | R15: Ok
C16: Mes de No Pago 1 | H16: 0 | L16: Saldo Interes +/- Interes Gracia | Q16: =IF(H7 + Q15>0,H7+ Q15,0) -> 459.2841
C17: Mes de No Pago 2 | H17: 0 | L17: Seg Desg de Gracia | Q17: =IF(H15>0,ROUNDDOWN(H5*H9/30*H15,2),ROUNDDOWN(H5*H9/30*H15,2)*0) -> 0
C18: Mes Cuota Doble 1 | H18: =+IF(Hoja1!C14="No",0,IF(Hoja1!C14="Julio",7,12)) -> 0 | L18: TCEA | Q18: =+$AH$31 -> 0.1999948688
C19: Mes Cuota Doble 2 | H19: =+IF(Hoja1!C15="No",0,IF(Hoja1!C15="Julio",7,12)) -> 0
O21: Suavización | U21: Validador Cuota Doble
O22: Ultimo saldo de Principal | Q22: =VLOOKUP(I14,$F$32:$W$272,18,FALSE) -> -0.02 | U22: Cuota Simple | W22: =+VLOOKUP("",$D$33:$V$272,19,0) -> 1111.289444
F23: Valor de cuota por dias de gracia | J23: =+ROUND(IF(OR(H16+H17>0,H18+H19>0),Q16/VLOOKUP(H14,'Calculos PLD'!$A$3:$G$386,7,FALSE),Simulador!Q16*Simulador!$Q$14),2) -> 16.75 | K23: =Q16/SUM(AN33:INDIRECT(CONCATENATE("AE",32+I14-1))) -> 0.000263357172 | O23: Numero de Dias | Q23: =Q8-Q6 -> 1095 | U23: Cuota Doble | W23: =+IFERROR(VLOOKUP("D",$D$33:$V$272,19,0)," ") -> 
F24: Valor de cuota por capital | J24: =ROUND(IF(OR(H16 + H17 > 0,H18 + H19>0), ROUNDUP(H6/VLOOKUP(H14,'Calculos PLD'!$A$3:$G$386,7,FALSE),2),H6*$Q$14),2) -> 1094.02 | L24: sin desgravamen | O24: Valor de Cuota Nivelada | Q24: =ROUND(+Q22/ROUND(1*(((1+H10/100)^(Q23/Q9))-1),4),2) -> -0.03 | U24: Factor | W24: =+IFERROR(W23/W22," ") -> 
F25: Valor de Seg Desg por dia de gracia | J25: =$Q$17/(($I$14+COUNTIF(D33:INDIRECT(CONCATENATE("C",32+I14-1)),"D"))*(1/((1+0)^($Q$10/$Q$9)))) -> 0
F26: Seguro de Desgravamen (FPF) | J26: =$H$5*$H$9 -> 0 | O26: Factor Ajuste | Q26: =Q24*Q14 -> -0.001094023937 | S26: Se copia LO DEL COSTADO a partir de la primera corrida | U26: Calce de Capital
F27: Comision por Env.Inf | J27: 0 | O27: Exceso de Int + Gracia | Q27: =SUM(X33:X152) -> 0 | R27: =ROUND(IF(OR(H16+ H17> 0,H18 + H19>0),ROUNDUP($Q$27/VLOOKUP(H14,'Calculos PLD'!$A$3:$G$386,7,FALSE),2),$Q$27*$Q$14),2) -> 0 | S27: 0 | U27: Suma Capital (K) | W27: =+SUM($K$33:$K$272) -> 30000
F28: Seguro Todo Riesgo | J28: =ROUND($H$12*$H$13,2) -> 0 | O28: Factor Ajuste 2 | Q28: =+Q22/H14 -> -0.0005555555556 | U28: Validador | W28: =+$H$5-W27 -> 0 | AA28: <- El valor tiene que ser cercano a cero.
F29: Cuota | J29: =J23+J24+J26+J27+ J28+J25 -> 1110.77 | O29: Digite Factor de Ajuste Anterior mas El Actual | Q29: 0.5194444444 | R29: Se actualiza en cada simulación (Validar que la celda W28 sea cero) | T29: =$W$272 -> 
L31: =+SUM(L33:L272) -> 9403.42 | M31: 603 | N31: 10006.42 | O31: 40006.42 | P31: 0 | Q31: 0 | R31: 0 | S31: 0 | T31: =+SUM(T33:T272) -> 0 | U31: 0 | V31: =+SUM(V33:V272) -> 40006.42 | AG31: TIR | AH31: =(1+XIRR(AH32:AH272,AG32:AG272))^(360/365)-1 -> 0.1999948688 | AM31: Minicronograma de Gracia
C32: Fecha Vcto. | D32: Marca | E32: Nro. Cuota (De acuerdo a Plazo) | F32: Nro. Cuota | G32: Periodo Base | H32: Tasa | I32: Nro. Dias | J32: Principal* | K32: Capital | L32: Interes | M32: Interes de Gracia | N32: Interes Total | O32: Valor Cuota (variable) | P32: Comision por Env. Inf | Q32: Tasa de Seguro de Desgravamen* | R32: Importe de Gracia Desgravamen | S32: Importe Desgravamen por No Pago | T32: Seg. Desgravamen Total | U32: Seguro Todo Riesgo | V32: Cuota | W32: Saldo Principal | X32: Exceso | Y32: Nuevo Interes I | Z32: Nuevo Desgravamen I (no se utiliza) | AA32: Nuevo Interes (SF2INT) replica columna L | AB32: Nuevo Desgravamen (SF2GRV) replica columna Q | AC32: Desgravamen Gracia replica columna R | AD32: Desgravamen No Pago S | AE32: Total Cuota (SF2PAG) igual a columna V | AG32: =+Q5 -> 2024-04-01 | AH32: =-H5 -> -30000 | AJ32: VALIDADORES | AM32: Dias Transcurridos Acumulados | AN32: Factor Simple Actualizacion | AO32: Principal | AP32: Capital | AQ32: Interes | AR32: Cuota Gracia | AS32: Saldo Deuda
A33: 1 | B33: =IF(A33="","",IF(A33<=$H$22,0,1)) -> 1 | C33: =IF(OR(MONTH(EDATE($Q$6,E33))=$H$16,MONTH(EDATE($Q$6,E33))=$H$17),IF(ABS($H$17-$H$16)=1,EDATE($Q$6,E33+2),EDATE($Q$6,E33+1)),EDATE($Q$6,E33)) -> 2024-06-01 | D33: =IF(B33="","",IF(OR(MONTH(C33)=$H$18,MONTH(C33)=$H$19),"D","")) ->  | E33: =IF(OR(MONTH(Q7)=H16, MONTH(Q7)=H17),IF(ABS(H17-H16)=1,3,2),1) -> 1 | F33: =1 -> 1 | G33: =$Q$9 -> 360 | H33: =IF(B33="","",$H$10) -> 20 | I33: =C33-Q6 -> 31 | J33: =H6 -> 30000 | K33: =IF(B33="","",IF((IF(ISERROR(MATCH(MONTH(C33),$H$18:$H$19,0))=FALSE,$J$24 + $Q$29,0) + $J$24+$Q$29+$S$27)-L33<0,0.01,IF(ISERROR(MATCH(MONTH(C33),$H$18:$H$19,0))=FALSE,$J$24 + $Q$29,0)+ ($J$24+$Q$29+$S$27)-L33)- R33 -S33-Q33) -> 619.8294444 | L33: =IF(B33="","",IF($J$24+$Q$29<ROUND(ROUND(J33*(((1+(H33/100))^(I33/G33))-1),4),2),$J$24+$Q$29 +-0.01,IF(ROUND(ROUND(J33*(((1+(H33/100))^(I33/G33))-1),4),2)>$J$24,$J$24+ -0.01,ROUND(ROUND(J33*(((1+(H33/100))^(I33/G33))-1),4),2)))) -> 474.71 | M33: =IF(B33="","",IF(ISERROR(MATCH(MONTH(C33),$H$18:$H$19,0))=FALSE,$J$23,0) + $J$23) -> 16.75 | N33: =IF(B33="","",L33+M33) -> 491.46 | O33: =IF(B33="","",K33+N33) -> 1111.289444 | P33: =IF(B33="","",$J$27) -> 0 | Q33: =IF(B33="","",ROUND($H$9*J33,2)) -> 0 | R33: =IF(B33="","",(E33-F33)*ROUNDDOWN($H$5*$H$9/30*30,2) + ROUNDDOWN($H$5*$H$9/30*H15,2)) -> 0 | S33: =IF(B33="","",IF(E33-0>1,ROUNDDOWN($J33*$H$9/30*(DATE(YEAR($C33),MONTH($C33)-1,DAY($C33))-C32),2),0)) -> 0 | T33: =IF(B33="","",Q33+R33+S33) -> 0 | U33: =IF(B33="","",$J$28) -> 0 | V33: =IF(B33="","",O33+P33+Q33+R33+S33+U33) -> 1111.289444 | W33: =IF(B33="","",(ROUND(J33-K33,2))) -> 29380.17 | X33: =IF(B33="","",IF(ROUND(ROUND(J33*(((1+(H33/100))^(I33/G33))-1),4),2) - $J$24<0,0,ROUND(ROUND(J33*(((1+(H33/100))^(I33/G33))-1),4),2) - $J$24)) -> 0 | Z33: =SUM(K33:M33) -> 1111.289444 | AA33: =+L33 -> 474.71 | AB33: =+Q33 -> 0 | AC33: 0 | AD33: 0 | AE33: =IFERROR(AA33+K33 + P33 + U33+AB33 + M33 + AC33 + AD33,"") -> 1111.289444 | AF33: =IFERROR(IF(D33="D",$J$24*2,$J$24)+Q33,0) -> 1094.02 | AG33: =+IF(C33="",0,C33) -> 2024-06-01 | AH33: =+IF(AE33="",0,AE33) -> 1111.289444 | AJ33: =+IFERROR(AE33-V33,0) -> 0 | AK33: =+IFERROR(AA33-L33,0) -> 0 | AM33: =I33 -> 31 | AN33: =(1/((1+($J$8/100))^(AM33/$Q$9))*1) * IF(D33="D",2,1) -> 1 | AO33: =Q16 -> 459.2841 | AP33: =AR33-AQ33 -> 0.000263357172 | AQ33: =(((1+($J$8/100))^((K33)/$Q$9))-1)*AO33 -> 0 | AR33: =IF(D33="D",$K$23,0)+ $K$23 -> 0.000263357172 | AS33: =AO33-AP33 -> 459.2838366
A34: =+IF(A33>=$H$14,"",A33+1) -> 2 | B34: =IF(A34="","",IF(A34<=$H$22,0,1)) -> 1 | C34: =IF(B34="","",IF(OR(MONTH(EDATE($Q$6,E34))=$H$16,MONTH(EDATE($Q$6,E34))=$H$17),IF(ABS($H$17-$H$16)=1,EDATE($Q$6,E34+2),EDATE($Q$6,E34+1)),EDATE($Q$6,E34))) -> 2024-07-01 | E34: =+IF(B34="","",IF(OR(MONTH(DATE(YEAR(C33)+0.0833333333333333,MONTH(C33)+1,DAY(C33)))=$H$16,MONTH(DATE(YEAR(C33)+0.5,MONTH(C33)+1,DAY(C33)))=$H$17),IF(ABS($H$17-$H$16)=1,E33+1,E33+2),E33+1)) -> 2 | F34: =+IF(B34="","",F33+1) -> 2 | G34: =IF(B34="","",$Q$9) -> 360 | H34: =IF(B34="","",$H$10) -> 20 | I34: =IF(B34="","",C34-C33) -> 30 | J34: =IF(B34="","",W33) -> 29380.17 | K34: 644.7494444 | L34: 449.79 | M34: 16.75 | N34: 466.54 | O34: 1111.289444 | P34: 0 | Q34: =IF(B34="","",ROUND($H$9*J34/30*$I34,2)-S34) -> 0 | S34: =IF(B34="","",IF(E34-E33>1,ROUNDDOWN($J34*$H$9/30*(DATE(YEAR($C34),MONTH($C34)-1,DAY($C34))-C33),2),0)) -> 0 | T34: 0 | U34: 0 | V34: =IF(B34="","",O34+P34+Q34+R34+S34+U34) -> 1111.289444 | W34: 28735.42 | X34: 0 | Z34: 1111.289444 | AA34: =+L34 -> 449.79 | AB34: 0 | AC34: 0 | AD34: 0 | AE34: 1111.289444 | AF34: =IFERROR(IF(D34="D",$J$24*2,$J$24)+Q34,0) -> 1094.02 | AG34: 2024-07-01 | AH34: 1111.289444 | AJ34: =+IFERROR(AE34-V34,0) -> 0 | AK34: =+IFERROR(AA34-L34,0) -> 0 | AM34: =I34 + AM33 -> 61 | AN34: 1 | AO34: =AS33 -> 459.2838366 | AP34: =AR34-AQ34 -> 0.000263357172 | AQ34: 0 | AR34: 0.000263357172 | AS34: =AO34-AP34 -> 459.2835733
A35: =+IF(A34>=$H$14,"",A34+1) -> 3 | B35: 1 | C35: 2024-08-01 | E35: =+IF(B35="","",IF(OR(MONTH(DATE(YEAR(C34)+0.0833333333333333,MONTH(C34)+1,DAY(C34)))=$H$16,MONTH(DATE(YEAR(C34)+0.5,MONTH(C34)+1,DAY(C34)))=$H$17),IF(ABS($H$17-$H$16)=1,E34+1,E34+2),E34+1)) -> 3 | F35: =+IF(B35="","",F34+1) -> 3 | G35: =IF(B35="","",$Q$9) -> 360 | H35: 20 | I35: =IF(B35="","",C35-C34) -> 31 | J35: =IF(B35="","",W34) -> 28735.42 | K35: 639.8394444 | L35: 454.7 | M35: 16.75 | N35: 471.45 | O35: 1111.289444 | P35: 0 | Q35: =IF(B35="","",ROUND($H$9*J35/30*$I35,2)-S35) -> 0 | S35: 0 | T35: 0 | U35: 0 | V35: 1111.289444 | W35: 28095.58 | X35: 0 | Z35: 1111.289444 | AA35: 454.7 | AB35: 0 | AC35: 0 | AD35: 0 | AE35: 1111.289444 | AF35: 1094.02 | AG35: 2024-08-01 | AH35: 1111.289444 | AJ35: 0 | AK35: 0 | AM35: 92 | AN35: 1 | AO35: =AS34 -> 459.2835733 | AP35: 0.000263357172 | AQ35: 0 | AR35: 0.000263357172 | AS35: 459.2833099
A36: 4 | B36: 1 | C36: 2024-09-01 | E36: 4 | F36: 4 | G36: 360 | H36: 20 | I36: 31 | J36: 28095.58 | K36: 649.9594444 | L36: 444.58 | M36: 16.75 | N36: 461.33 | O36: 1111.289444 | P36: 0 | Q36: 0 | S36: 0 | T36: 0 | U36: 0 | V36: 1111.289444 | W36: 27445.62 | X36: 0 | Z36: 1111.289444 | AA36: 444.58 | AB36: 0 | AC36: 0 | AD36: 0 | AE36: 1111.289444 | AF36: 1094.02 | AG36: 2024-09-01 | AH36: 1111.289444 | AJ36: 0 | AK36: 0 | AM36: 123 | AN36: 1 | AO36: 459.2833099 | AP36: 0.000263357172 | AQ36: 0 | AR36: 0.000263357172 | AS36: 459.2830466
A37: 5 | B37: 1 | C37: 2024-10-01 | E37: 5 | F37: 5 | G37: 360 | H37: 20 | I37: 30 | J37: 27445.62 | K37: 674.3594444 | L37: 420.18 | M37: 16.75 | N37: 436.93 | O37: 1111.289444 | P37: 0 | Q37: 0 | S37: 0 | T37: 0 | U37: 0 | V37: 1111.289444 | W37: 26771.26 | X37: 0 | Z37: 1111.289444 | AA37: 420.18 | AB37: 0 | AC37: 0 | AD37: 0 | AE37: 1111.289444 | AF37: 1094.02 | AG37: 2024-10-01 | AH37: 1111.289444 | AJ37: 0 | AK37: 0 | AM37: 153 | AN37: 1 | AO37: 459.2830466 | AP37: 0.000263357172 | AQ37: 0 | AR37: 0.000263357172 | AS37: 459.2827832
A38: 6 | B38: 1 | C38: 2024-11-01 | E38: 6 | F38: 6 | G38: 360 | H38: 20 | I38: 31 | J38: 26771.26 | K38: 670.9194444 | L38: 423.62 | M38: 16.75 | N38: 440.37 | O38: 1111.289444 | P38: 0 | Q38: 0 | S38: 0 | T38: 0 | U38: 0 | V38: 1111.289444 | W38: 26100.34 | X38: 0 | Z38: 1111.289444 | AA38: 423.62 | AB38: 0 | AC38: 0 | AD38: 0 | AE38: 1111.289444 | AF38: 1094.02 | AG38: 2024-11-01 | AH38: 1111.289444 | AJ38: 0 | AK38: 0 | AM38: 184 | AN38: 1 | AO38: 459.2827832 | AP38: 0.000263357172 | AQ38: 0 | AR38: 0.000263357172 | AS38: 459.2825199
A39: 7 | B39: 1 | C39: 2024-12-01 | E39: 7 | F39: 7 | G39: 360 | H39: 20 | I39: 30 | J39: 26100.34 | K39: 694.9594444 | L39: 399.58 | M39: 16.75 | N39: 416.33 | O39: 1111.289444 | P39: 0 | Q39: 0 | S39: 0 | T39: 0 | U39: 0 | V39: 1111.289444 | W39: 25405.38 | X39: 0 | Z39: 1111.289444 | AA39: 399.58 | AB39: 0 | AC39: 0 | AD39: 0 | AE39: 1111.289444 | AF39: 1094.02 | AG39: 2024-12-01 | AH39: 1111.289444 | AJ39: 0 | AK39: 0 | AM39: 214 | AN39: 1 | AO39: 459.2825199 | AP39: 0.000263357172 | AQ39: 0 | AR39: 0.000263357172 | AS39: 459.2822565
A40: 8 | B40: 1 | C40: 2025-01-01 | E40: 8 | F40: 8 | G40: 360 | H40: 20 | I40: 31 | J40: 25405.38 | K40: 692.5294444 | L40: 402.01 | M40: 16.75 | N40: 418.76 | O40: 1111.289444 | P40: 0 | Q40: 0 | S40: 0 | T40: 0 | U40: 0 | V40: 1111.289444 | W40: 24712.85 | X40: 0 | Z40: 1111.289444 | AA40: 402.01 | AB40: 0 | AC40: 0 | AD40: 0 | AE40: 1111.289444 | AF40: 1094.02 | AG40: 2025-01-01 | AH40: 1111.289444 | AJ40: 0 | AK40: 0 | AM40: 245 | AN40: 1 | AO40: 459.2822565 | AP40: 0.000263357172 | AQ40: 0 | AR40: 0.000263357172 | AS40: 459.2819931
A41: 9 | B41: 1 | C41: 2025-02-01 | E41: 9 | F41: 9 | G41: 360 | H41: 20 | I41: 31 | J41: 24712.85 | K41: 703.4894444 | L41: 391.05 | M41: 16.75 | N41: 407.8 | O41: 1111.289444 | P41: 0 | Q41: 0 | S41: 0 | T41: 0 | U41: 0 | V41: 1111.289444 | W41: 24009.36 | X41: 0 | Z41: 1111.289444 | AA41: 391.05 | AB41: 0 | AC41: 0 | AD41: 0 | AE41: 1111.289444 | AF41: 1094.02 | AG41: 2025-02-01 | AH41: 1111.289444 | AJ41: 0 | AK41: 0 | AM41: 276 | AN41: 1 | AO41: 459.2819931 | AP41: 0.000263357172 | AQ41: 0 | AR41: 0.000263357172 | AS41: 459.2817298
A42: 10 | B42: 1 | C42: 2025-03-01 | E42: 10 | F42: 10 | G42: 360 | H42: 20 | I42: 28 | J42: 24009.36 | K42: 751.6494444 | L42: 342.89 | M42: 16.75 | N42: 359.64 | O42: 1111.289444 | P42: 0 | Q42: 0 | S42: 0 | T42: 0 | U42: 0 | V42: 1111.289444 | W42: 23257.71 | X42: 0 | Z42: 1111.289444 | AA42: 342.89 | AB42: 0 | AC42: 0 | AD42: 0 | AE42: 1111.289444 | AF42: 1094.02 | AG42: 2025-03-01 | AH42: 1111.289444 | AJ42: 0 | AK42: 0 | AM42: 304 | AN42: 1 | AO42: 459.2817298 | AP42: 0.000263357172 | AQ42: 0 | AR42: 0.000263357172 | AS42: 459.2814664
A43: 11 | B43: 1 | C43: 2025-04-01 | E43: 11 | F43: 11 | G43: 360 | H43: 20 | I43: 31 | J43: 23257.71 | K43: 726.5094444 | L43: 368.03 | M43: 16.75 | N43: 384.78 | O43: 1111.289444 | P43: 0 | Q43: 0 | S43: 0 | T43: 0 | U43: 0 | V43: 1111.289444 | W43: 22531.2 | X43: 0 | Z43: 1111.289444 | AA43: 368.03 | AB43: 0 | AC43: 0 | AD43: 0 | AE43: 1111.289444 | AF43: 1094.02 | AG43: 2025-04-01 | AH43: 1111.289444 | AJ43: 0 | AK43: 0 | AM43: 335 | AN43: 1 | AO43: 459.2814664 | AP43: 0.000263357172 | AQ43: 0 | AR43: 0.000263357172 | AS43: 459.2812031
A44: 12 | B44: 1 | C44: 2025-05-01 | E44: 12 | F44: 12 | G44: 360 | H44: 20 | I44: 30 | J44: 22531.2 | K44: 749.5994444 | L44: 344.94 | M44: 16.75 | N44: 361.69 | O44: 1111.289444 | P44: 0 | Q44: 0 | S44: 0 | T44: 0 | U44: 0 | V44: 1111.289444 | W44: 21781.6 | X44: 0 | Z44: 1111.289444 | AA44: 344.94 | AB44: 0 | AC44: 0 | AD44: 0 | AE44: 1111.289444 | AF44: 1094.02 | AG44: 2025-05-01 | AH44: 1111.289444 | AJ44: 0 | AK44: 0 | AM44: 365 | AN44: 1 | AO44: 459.2812031 | AP44: 0.000263357172 | AQ44: 0 | AR44: 0.000263357172 | AS44: 459.2809397
A45: 13 | B45: 1 | C45: 2025-06-01 | E45: 13 | F45: 13 | G45: 360 | H45: 20 | I45: 31 | J45: 21781.6 | K45: 749.8694444 | L45: 344.67 | M45: 16.75 | N45: 361.42 | O45: 1111.289444 | P45: 0 | Q45: 0 | S45: 0 | T45: 0 | U45: 0 | V45: 1111.289444 | W45: 21031.73 | X45: 0 | Z45: 1111.289444 | AA45: 344.67 | AB45: 0 | AC45: 0 | AD45: 0 | AE45: 1111.289444 | AF45: 1094.02 | AG45: =+IF(C45="",0,C45) -> 2025-06-01 | AH45: =+IF(AE45="",0,AE45) -> 1111.289444 | AJ45: 0 | AK45: 0 | AM45: 396 | AN45: 1 | AO45: 459.2809397 | AP45: 0.000263357172 | AQ45: 0 | AR45: 0.000263357172 | AS45: 459.2806764
A46: 14 | B46: 1 | C46: 2025-07-01 | E46: 14 | F46: 14 | G46: 360 | H46: 20 | I46: 30 | J46: 21031.73 | K46: 772.5594444 | L46: 321.98 | M46: 16.75 | N46: 338.73 | O46: 1111.289444 | P46: 0 | Q46: 0 | S46: 0 | T46: 0 | U46: 0 | V46: 1111.289444 | W46: 20259.17 | X46: 0 | Z46: 1111.289444 | AA46: 321.98 | AB46: 0 | AC46: 0 | AD46: 0 | AE46: 1111.289444 | AF46: 1094.02 | AG46: =+IF(C46="",0,C46) -> 2025-07-01 | AH46: =+IF(AE46="",0,AE46) -> 1111.289444 | AJ46: 0 | AK46: 0 | AM46: 426 | AN46: 1 | AO46: 459.2806764 | AP46: 0.000263357172 | AQ46: 0 | AR46: 0.000263357172 | AS46: 459.280413
A47: 15 | B47: 1 | C47: 2025-08-01 | E47: 15 | F47: 15 | G47: 360 | H47: 20 | I47: 31 | J47: 20259.17 | K47: 773.9594444 | L47: 320.58 | M47: 16.75 | N47: 337.33 | O47: 1111.289444 | P47: 0 | Q47: 0 | S47: 0 | T47: 0 | U47: 0 | V47: 1111.289444 | W47: 19485.21 | X47: 0 | Z47: 1111.289444 | AA47: 320.58 | AB47: 0 | AC47: 0 | AD47: 0 | AE47: 1111.289444 | AF47: 1094.02 | AG47: 2025-08-01 | AH47: 1111.289444 | AJ47: 0 | AK47: 0 | AM47: 457 | AN47: 1 | AO47: 459.280413 | AP47: 0.000263357172 | AQ47: 0 | AR47: 0.000263357172 | AS47: 459.2801496
A48: 16 | B48: 1 | C48: 2025-09-01 | E48: 16 | F48: 16 | G48: 360 | H48: 20 | I48: 31 | J48: 19485.21 | K48: 786.2094444 | L48: 308.33 | M48: 16.75 | N48: 325.08 | O48: 1111.289444 | P48: 0 | Q48: 0 | S48: 0 | T48: 0 | U48: 0 | V48: 1111.289444 | W48: 18699 | X48: 0 | Z48: 1111.289444 | AA48: 308.33 | AB48: 0 | AC48: 0 | AD48: 0 | AE48: 1111.289444 | AF48: 1094.02 | AG48: 2025-09-01 | AH48: 1111.289444 | AJ48: 0 | AK48: 0 | AM48: 488 | AN48: 1 | AO48: 459.2801496 | AP48: 0.000263357172 | AQ48: 0 | AR48: 0.000263357172 | AS48: 459.2798863
A49: 17 | B49: 1 | C49: 2025-10-01 | E49: 17 | F49: 17 | G49: 360 | H49: 20 | I49: 30 | J49: 18699 | K49: 808.2694444 | L49: 286.27 | M49: 16.75 | N49: 303.02 | O49: 1111.289444 | P49: 0 | Q49: 0 | S49: 0 | T49: 0 | U49: 0 | V49: 1111.289444 | W49: 17890.73 | X49: 0 | Z49: 1111.289444 | AA49: 286.27 | AB49: 0 | AC49: 0 | AD49: 0 | AE49: 1111.289444 | AF49: 1094.02 | AG49: 2025-10-01 | AH49: 1111.289444 | AJ49: 0 | AK49: 0 | AM49: 518 | AN49: 1 | AO49: 459.2798863 | AP49: 0.000263357172 | AQ49: 0 | AR49: 0.000263357172 | AS49: 459.2796229
A50: 18 | B50: 1 | C50: 2025-11-01 | E50: 18 | F50: 18 | G50: 360 | H50: 20 | I50: 31 | J50: 17890.73 | K50: 811.4394444 | L50: 283.1 | M50: 16.75 | N50: 299.85 | O50: 1111.289444 | P50: 0 | Q50: 0 | S50: 0 | T50: 0 | U50: 0 | V50: 1111.289444 | W50: 17079.29 | X50: 0 | Z50: 1111.289444 | AA50: 283.1 | AB50: 0 | AC50: 0 | AD50: 0 | AE50: 1111.289444 | AF50: 1094.02 | AG50: 2025-11-01 | AH50: 1111.289444 | AJ50: 0 | AK50: 0 | AM50: 549 | AN50: 1 | AO50: 459.2796229 | AP50: 0.000263357172 | AQ50: 0 | AR50: 0.000263357172 | AS50: 459.2793596
A51: 19 | B51: 1 | C51: 2025-12-01 | E51: 19 | F51: 19 | G51: 360 | H51: 20 | I51: 30 | J51: 17079.29 | K51: 833.0694444 | L51: 261.47 | M51: 16.75 | N51: 278.22 | O51: 1111.289444 | P51: 0 | Q51: 0 | S51: 0 | T51: 0 | U51: 0 | V51: 1111.289444 | W51: 16246.22 | X51: 0 | Z51: 1111.289444 | AA51: 261.47 | AB51: 0 | AC51: 0 | AD51: 0 | AE51: 1111.289444 | AF51: 1094.02 | AG51: 2025-12-01 | AH51: 1111.289444 | AJ51: 0 | AK51: 0 | AM51: 579 | AN51: 1 | AO51: 459.2793596 | AP51: 0.000263357172 | AQ51: 0 | AR51: 0.000263357172 | AS51: 459.2790962
A52: 20 | B52: 1 | C52: 2026-01-01 | E52: 20 | F52: 20 | G52: 360 | H52: 20 | I52: 31 | J52: 16246.22 | K52: 837.4594444 | L52: 257.08 | M52: 16.75 | N52: 273.83 | O52: 1111.289444 | P52: 0 | Q52: 0 | S52: 0 | T52: 0 | U52: 0 | V52: 1111.289444 | W52: 15408.76 | X52: 0 | Z52: 1111.289444 | AA52: 257.08 | AB52: 0 | AC52: 0 | AD52: 0 | AE52: 1111.289444 | AF52: 1094.02 | AG52: 2026-01-01 | AH52: 1111.289444 | AJ52: 0 | AK52: 0 | AM52: 610 | AN52: 1 | AO52: 459.2790962 | AP52: 0.000263357172 | AQ52: 0 | AR52: 0.000263357172 | AS52: 459.2788329
A53: 21 | B53: 1 | C53: 2026-02-01 | E53: 21 | F53: 21 | G53: 360 | H53: 20 | I53: 31 | J53: 15408.76 | K53: 850.7094444 | L53: 243.83 | M53: 16.75 | N53: 260.58 | O53: 1111.289444 | P53: 0 | Q53: 0 | S53: 0 | T53: 0 | U53: 0 | V53: 1111.289444 | W53: 14558.05 | X53: 0 | Z53: 1111.289444 | AA53: 243.83 | AB53: 0 | AC53: 0 | AD53: 0 | AE53: 1111.289444 | AF53: 1094.02 | AG53: 2026-02-01 | AH53: 1111.289444 | AJ53: 0 | AK53: 0 | AM53: 641 | AN53: 1 | AO53: 459.2788329 | AP53: 0.000263357172 | AQ53: 0 | AR53: 0.000263357172 | AS53: 459.2785695
A54: 22 | B54: 1 | C54: 2026-03-01 | E54: 22 | F54: 22 | G54: 360 | H54: 20 | I54: 28 | J54: 14558.05 | K54: 886.6294444 | L54: 207.91 | M54: 16.75 | N54: 224.66 | O54: 1111.289444 | P54: 0 | Q54: 0 | S54: 0 | T54: 0 | U54: 0 | V54: 1111.289444 | W54: 13671.42 | X54: 0 | Z54: 1111.289444 | AA54: 207.91 | AB54: 0 | AC54: 0 | AD54: 0 | AE54: 1111.289444 | AF54: 1094.02 | AG54: 2026-03-01 | AH54: 1111.289444 | AJ54: 0 | AK54: 0 | AM54: 669 | AN54: 1 | AO54: 459.2785695 | AP54: 0.000263357172 | AQ54: 0 | AR54: 0.000263357172 | AS54: 459.2783061
A55: 23 | B55: 1 | C55: 2026-04-01 | E55: 23 | F55: 23 | G55: 360 | H55: 20 | I55: 31 | J55: 13671.42 | K55: 878.2094444 | L55: 216.33 | M55: 16.75 | N55: 233.08 | O55: 1111.289444 | P55: 0 | Q55: 0 | S55: 0 | T55: 0 | U55: 0 | V55: 1111.289444 | W55: 12793.21 | X55: 0 | Z55: 1111.289444 | AA55: 216.33 | AB55: 0 | AC55: 0 | AD55: 0 | AE55: 1111.289444 | AF55: 1094.02 | AG55: 2026-04-01 | AH55: 1111.289444 | AJ55: 0 | AK55: 0 | AM55: 700 | AN55: 1 | AO55: 459.2783061 | AP55: 0.000263357172 | AQ55: 0 | AR55: 0.000263357172 | AS55: 459.2780428
A56: 24 | B56: 1 | C56: 2026-05-01 | E56: 24 | F56: 24 | G56: 360 | H56: 20 | I56: 30 | J56: 12793.21 | K56: 898.6794444 | L56: 195.86 | M56: 16.75 | N56: 212.61 | O56: 1111.289444 | P56: 0 | Q56: 0 | S56: 0 | T56: 0 | U56: 0 | V56: 1111.289444 | W56: 11894.53 | X56: 0 | Z56: 1111.289444 | AA56: 195.86 | AB56: 0 | AC56: 0 | AD56: 0 | AE56: 1111.289444 | AF56: 1094.02 | AG56: 2026-05-01 | AH56: 1111.289444 | AJ56: 0 | AK56: 0 | AM56: 730 | AN56: 1 | AO56: 459.2780428 | AP56: 0.000263357172 | AQ56: 0 | AR56: 0.000263357172 | AS56: 459.2777794
A57: 25 | B57: 1 | C57: 2026-06-01 | E57: 25 | F57: 25 | G57: 360 | H57: 20 | I57: 31 | J57: 11894.53 | K57: 906.3194444 | L57: 188.22 | M57: 16.75 | N57: 204.97 | O57: 1111.289444 | P57: 0 | Q57: 0 | S57: 0 | T57: 0 | U57: 0 | V57: 1111.289444 | W57: 10988.21 | X57: 0 | Z57: 1111.289444 | AA57: 188.22 | AB57: 0 | AC57: 0 | AD57: 0 | AE57: 1111.289444 | AF57: 1094.02 | AG57: 2026-06-01 | AH57: 1111.289444 | AJ57: 0 | AK57: 0 | AM57: 761 | AN57: 1 | AO57: 459.2777794 | AP57: 0.000263357172 | AQ57: 0 | AR57: 0.000263357172 | AS57: 459.2775161
A58: 26 | B58: 1 | C58: 2026-07-01 | E58: 26 | F58: 26 | G58: 360 | H58: 20 | I58: 30 | J58: 10988.21 | K58: 926.3194444 | L58: 168.22 | M58: 16.75 | N58: 184.97 | O58: 1111.289444 | P58: 0 | Q58: 0 | S58: 0 | T58: 0 | U58: 0 | V58: 1111.289444 | W58: 10061.89 | X58: 0 | Z58: 1111.289444 | AA58: 168.22 | AB58: 0 | AC58: 0 | AD58: 0 | AE58: 1111.289444 | AF58: 1094.02 | AG58: 2026-07-01 | AH58: 1111.289444 | AJ58: 0 | AK58: 0 | AM58: 791 | AN58: 1 | AO58: 459.2775161 | AP58: 0.000263357172 | AQ58: 0 | AR58: 0.000263357172 | AS58: 459.2772527
A59: 27 | B59: 1 | C59: 2026-08-01 | E59: 27 | F59: 27 | G59: 360 | H59: 20 | I59: 31 | J59: 10061.89 | K59: 935.3194444 | L59: 159.22 | M59: 16.75 | N59: 175.97 | O59: 1111.289444 | P59: 0 | Q59: 0 | S59: 0 | T59: 0 | U59: 0 | V59: 1111.289444 | W59: 9126.57 | X59: 0 | Z59: 1111.289444 | AA59: 159.22 | AB59: 0 | AC59: 0 | AD59: 0 | AE59: 1111.289444 | AF59: 1094.02 | AG59: 2026-08-01 | AH59: 1111.289444 | AJ59: 0 | AK59: 0 | AM59: 822 | AN59: 1 | AO59: 459.2772527 | AP59: 0.000263357172 | AQ59: 0 | AR59: 0.000263357172 | AS59: 459.2769894
A60: 28 | B60: 1 | C60: 2026-09-01 | E60: 28 | F60: 28 | G60: 360 | H60: 20 | I60: 31 | J60: 9126.57 | K60: 950.1194444 | L60: 144.42 | M60: 16.75 | N60: 161.17 | O60: 1111.289444 | P60: 0 | Q60: 0 | S60: 0 | T60: 0 | U60: 0 | V60: 1111.289444 | W60: 8176.45 | X60: 0 | Z60: 1111.289444 | AA60: 144.42 | AB60: 0 | AC60: 0 | AD60: 0 | AE60: 1111.289444 | AF60: 1094.02 | AG60: 2026-09-01 | AH60: 1111.289444 | AJ60: 0 | AK60: 0 | AM60: 853 | AN60: 1 | AO60: 459.2769894 | AP60: 0.000263357172 | AQ60: 0 | AR60: 0.000263357172 | AS60: 459.276726
A61: 29 | B61: 1 | C61: 2026-10-01 | E61: 29 | F61: 29 | G61: 360 | H61: 20 | I61: 30 | J61: 8176.45 | K61: 969.3594444 | L61: 125.18 | M61: 16.75 | N61: 141.93 | O61: 1111.289444 | P61: 0 | Q61: 0 | S61: 0 | T61: 0 | U61: 0 | V61: 1111.289444 | W61: 7207.09 | X61: 0 | Z61: 1111.289444 | AA61: 125.18 | AB61: 0 | AC61: 0 | AD61: 0 | AE61: 1111.289444 | AF61: 1094.02 | AG61: 2026-10-01 | AH61: 1111.289444 | AJ61: 0 | AK61: 0 | AM61: 883 | AN61: 1 | AO61: 459.276726 | AP61: 0.000263357172 | AQ61: 0 | AR61: 0.000263357172 | AS61: 459.2764626
A62: 30 | B62: 1 | C62: 2026-11-01 | E62: 30 | F62: 30 | G62: 360 | H62: 20 | I62: 31 | J62: 7207.09 | K62: 980.4994444 | L62: 114.04 | M62: 16.75 | N62: 130.79 | O62: 1111.289444 | P62: 0 | Q62: 0 | S62: 0 | T62: 0 | U62: 0 | V62: 1111.289444 | W62: 6226.59 | X62: 0 | Z62: 1111.289444 | AA62: 114.04 | AB62: 0 | AC62: 0 | AD62: 0 | AE62: 1111.289444 | AF62: 1094.02 | AG62: 2026-11-01 | AH62: 1111.289444 | AJ62: 0 | AK62: 0 | AM62: 914 | AN62: 1 | AO62: 459.2764626 | AP62: 0.000263357172 | AQ62: 0 | AR62: 0.000263357172 | AS62: 459.2761993
A63: 31 | B63: 1 | C63: 2026-12-01 | E63: 31 | F63: 31 | G63: 360 | H63: 20 | I63: 30 | J63: 6226.59 | K63: 999.2094444 | L63: 95.33 | M63: 16.75 | N63: 112.08 | O63: 1111.289444 | P63: 0 | Q63: 0 | S63: 0 | T63: 0 | U63: 0 | V63: 1111.289444 | W63: 5227.38 | X63: 0 | Z63: 1111.289444 | AA63: 95.33 | AB63: 0 | AC63: 0 | AD63: 0 | AE63: 1111.289444 | AF63: 1094.02 | AG63: 2026-12-01 | AH63: 1111.289444 | AJ63: 0 | AK63: 0 | AM63: 944 | AN63: 1 | AO63: 459.2761993 | AP63: 0.000263357172 | AQ63: 0 | AR63: 0.000263357172 | AS63: 459.2759359
A64: 32 | B64: 1 | C64: 2027-01-01 | E64: 32 | F64: 32 | G64: 360 | H64: 20 | I64: 31 | J64: 5227.38 | K64: 1011.819444 | L64: 82.72 | M64: 16.75 | N64: 99.47 | O64: 1111.289444 | P64: 0 | Q64: 0 | S64: 0 | T64: 0 | U64: 0 | V64: 1111.289444 | W64: 4215.56 | X64: 0 | Z64: 1111.289444 | AA64: 82.72 | AB64: 0 | AC64: 0 | AD64: 0 | AE64: 1111.289444 | AF64: 1094.02 | AG64: 2027-01-01 | AH64: 1111.289444 | AJ64: 0 | AK64: 0 | AM64: 975 | AN64: 1 | AO64: 459.2759359 | AP64: 0.000263357172 | AQ64: 0 | AR64: 0.000263357172 | AS64: 459.2756726
A65: 33 | B65: 1 | C65: 2027-02-01 | E65: 33 | F65: 33 | G65: 360 | H65: 20 | I65: 31 | J65: 4215.56 | K65: 1027.829444 | L65: 66.71 | M65: 16.75 | N65: 83.46 | O65: 1111.289444 | P65: 0 | Q65: 0 | S65: 0 | T65: 0 | U65: 0 | V65: 1111.289444 | W65: 3187.73 | X65: 0 | Z65: 1111.289444 | AA65: 66.71 | AB65: 0 | AC65: 0 | AD65: 0 | AE65: 1111.289444 | AF65: 1094.02 | AG65: 2027-02-01 | AH65: 1111.289444 | AJ65: 0 | AK65: 0 | AM65: 1006 | AN65: 1 | AO65: 459.2756726 | AP65: 0.000263357172 | AQ65: 0 | AR65: 0.000263357172 | AS65: 459.2754092
A66: 34 | B66: 1 | C66: 2027-03-01 | E66: 34 | F66: 34 | G66: 360 | H66: 20 | I66: 28 | J66: 3187.73 | K66: 1049.009444 | L66: 45.53 | M66: 16.75 | N66: 62.28 | O66: 1111.289444 | P66: 0 | Q66: 0 | S66: 0 | T66: 0 | U66: 0 | V66: 1111.289444 | W66: 2138.72 | X66: 0 | Z66: 1111.289444 | AA66: 45.53 | AB66: 0 | AC66: 0 | AD66: 0 | AE66: 1111.289444 | AF66: 1094.02 | AG66: 2027-03-01 | AH66: 1111.289444 | AJ66: 0 | AK66: 0 | AM66: 1034 | AN66: 1 | AO66: 459.2754092 | AP66: 0.000263357172 | AQ66: 0 | AR66: 0.000263357172 | AS66: 459.2751459
A67: 35 | B67: 1 | C67: 2027-04-01 | E67: 35 | F67: 35 | G67: 360 | H67: 20 | I67: 31 | J67: 2138.72 | K67: 1060.699444 | L67: 33.84 | M67: 16.75 | N67: 50.59 | O67: 1111.289444 | P67: 0 | Q67: 0 | S67: 0 | T67: 0 | U67: 0 | V67: 1111.289444 | W67: 1078.02 | X67: 0 | Z67: 1111.289444 | AA67: 33.84 | AB67: 0 | AC67: 0 | AD67: 0 | AE67: 1111.289444 | AF67: 1094.02 | AG67: 2027-04-01 | AH67: 1111.289444 | AJ67: 0 | AK67: 0 | AM67: 1065 | AN67: 1 | AO67: 459.2751459 | AP67: 0.000263357172 | AQ67: 0 | AR67: 0.000263357172 | AS67: 459.2748825
A68: 36 | B68: 1 | C68: 2027-05-01 | E68: 36 | F68: 36 | G68: 360 | H68: 20 | I68: 30 | J68: 1078.02 | K68: 1078.039444 | L68: 16.5 | M68: 16.75 | N68: 33.25 | O68: 1111.289444 | P68: 0 | Q68: 0 | S68: 0 | T68: 0 | U68: 0 | V68: 1111.289444 | W68: -0.02 | X68: 0 | Z68: 1111.289444 | AA68: 16.5 | AB68: 0 | AC68: 0 | AD68: 0 | AE68: 1111.289444 | AF68: 1094.02 | AG68: 2027-05-01 | AH68: 1111.289444 | AJ68: 0 | AK68: 0 | AM68: 1095 | AN68: 1 | AO68: 459.2748825 | AP68: 0.000263357172 | AQ68: 0 | AR68: 0.000263357172 | AS68: 459.2746191
Z69: 0 | AC69: 0 | AF69: 0 | AG69: 00:00:00 | AH69: 0 | AJ69: 0 | AK69: 0 | AO69: 459.2746191 | AR69: 0.000263357172
Z70: 0 | AC70: 0 | AF70: 0 | AG70: 00:00:00 | AH70: 0 | AJ70: 0 | AK70: 0 | AR70: 0.000263357172
Z71: 0 | AC71: 0 | AF71: 0 | AG71: 00:00:00 | AH71: 0 | AJ71: 0 | AK71: 0 | AR71: 0.000263357172
Z72: 0 | AC72: 0 | AF72: 0 | AG72: 00:00:00 | AH72: 0 | AJ72: 0 | AK72: 0 | AR72: 0.000263357172
Z73: 0 | AC73: 0 | AF73: 0 | AG73: 00:00:00 | AH73: 0 | AJ73: 0 | AK73: 0 | AR73: 0.000263357172
Z74: 0 | AC74: 0 | AF74: 0 | AG74: 00:00:00 | AH74: 0 | AJ74: 0 | AK74: 0 | AR74: 0.000263357172
Z75: 0 | AC75: 0 | AF75: 0 | AG75: 00:00:00 | AH75: 0 | AJ75: 0 | AK75: 0 | AR75: 0.000263357172
Z76: 0 | AC76: 0 | AF76: 0 | AG76: 00:00:00 | AH76: 0 | AJ76: 0 | AK76: 0 | AR76: 0.000263357172
Z77: 0 | AC77: 0 | AF77: 0 | AG77: 00:00:00 | AH77: 0 | AJ77: 0 | AK77: 0 | AR77: 0.000263357172
Z78: 0 | AC78: 0 | AF78: 0 | AG78: 00:00:00 | AH78: 0 | AJ78: 0 | AK78: 0 | AR78: 0.000263357172
Z79: 0 | AC79: 0 | AF79: 0 | AG79: 00:00:00 | AH79: 0 | AJ79: 0 | AK79: 0 | AR79: 0.000263357172
Z80: 0 | AC80: 0 | AF80: 0 | AG80: 00:00:00 | AH80: 0 | AJ80: 0 | AK80: 0 | AR80: 0.000263357172
Z81: 0 | AC81: 0 | AF81: 0 | AG81: 00:00:00 | AH81: 0 | AJ81: 0 | AK81: 0 | AR81: 0.000263357172
Z82: 0 | AC82: 0 | AF82: 0 | AG82: 00:00:00 | AH82: 0 | AJ82: 0 | AK82: 0 | AR82: 0.000263357172
Z83: 0 | AC83: 0 | AF83: 0 | AG83: 00:00:00 | AH83: 0 | AJ83: 0 | AK83: 0 | AR83: 0.000263357172
Z84: 0 | AC84: 0 | AF84: 0 | AG84: 00:00:00 | AH84: 0 | AJ84: 0 | AK84: 0 | AR84: 0.000263357172
Z85: 0 | AC85: 0 | AF85: 0 | AG85: 00:00:00 | AH85: 0 | AJ85: 0 | AK85: 0 | AR85: 0.000263357172
Z86: 0 | AC86: 0 | AF86: 0 | AG86: 00:00:00 | AH86: 0 | AJ86: 0 | AK86: 0 | AR86: 0.000263357172
Z87: 0 | AC87: 0 | AF87: 0 | AG87: 00:00:00 | AH87: 0 | AJ87: 0 | AK87: 0 | AR87: 0.000263357172
Z88: 0 | AC88: 0 | AF88: 0 | AG88: 00:00:00 | AH88: 0 | AJ88: 0 | AK88: 0 | AR88: 0.000263357172
Z89: 0 | AC89: 0 | AF89: 0 | AG89: 00:00:00 | AH89: 0 | AJ89: 0 | AK89: 0 | AR89: 0.000263357172
Z90: 0 | AC90: 0 | AF90: 0 | AG90: 00:00:00 | AH90: 0 | AJ90: 0 | AK90: 0 | AR90: 0.000263357172
Z91: 0 | AC91: 0 | AF91: 0 | AG91: 00:00:00 | AH91: 0 | AJ91: 0 | AK91: 0 | AR91: 0.000263357172
Z92: 0 | AC92: 0 | AF92: 0 | AG92: 00:00:00 | AH92: 0 | AJ92: 0 | AK92: 0 | AR92: 0.000263357172
Z93: 0 | AC93: 0 | AF93: 0 | AG93: 00:00:00 | AH93: 0 | AJ93: 0 | AK93: 0 | AR93: 0.000263357172
Z94: 0 | AC94: 0 | AF94: 0 | AG94: 00:00:00 | AH94: 0 | AJ94: 0 | AK94: 0 | AR94: 0.000263357172
Z95: 0 | AC95: 0 | AF95: 0 | AG95: 00:00:00 | AH95: 0 | AJ95: 0 | AK95: 0 | AR95: 0.000263357172
Z96: 0 | AC96: 0 | AF96: 0 | AG96: 00:00:00 | AH96: 0 | AJ96: 0 | AK96: 0 | AR96: 0.000263357172
D97: =IF(B97="","",IF(OR(MONTH(C97)=$H$18,MONTH(C97)=$H$19),"D","")) ->  | K97: =IF(B97="","",IF((IF(ISERROR(MATCH(MONTH(C97),$H$18:$H$19,0))=FALSE,$J$24 + $Q$29,0) + $J$24+$Q$29+$S$27)-L97<0,0.01,IF(ISERROR(MATCH(MONTH(C97),$H$18:$H$19,0))=FALSE,$J$24 + $Q$29,0)+ ($J$24+$Q$29+$S$27)-L97)- R97 -S97-Q97) ->  | L97: =IF(B97="","",IF($J$24+$Q$29<ROUND(ROUND(J97*(((1+(H97/100))^(I97/G97))-1),4),2),$J$24+$Q$29 +-0.01,IF(ROUND(ROUND(J97*(((1+(H97/100))^(I97/G97))-1),4),2)>$J$24,$J$24+ -0.01,ROUND(ROUND(J97*(((1+(H97/100))^(I97/G97))-1),4),2)))) ->  | M97: =IF(B97="","",IF(ISERROR(MATCH(MONTH(C97),$H$18:$H$19,0))=FALSE,$J$23,0) + $J$23) ->  | N97: =IF(B97="","",L97+M97) ->  | O97: =IF(B97="","",K97+N97) ->  | P97: =IF(B97="","",$J$27) ->  | T97: =IF(B97="","",Q97+R97+S97) ->  | U97: =IF(B97="","",$J$28) ->  | W97: =IF(B97="","",(ROUND(J97-K97,2))) ->  | X97: =IF(B97="","",IF(ROUND(ROUND(J97*(((1+(H97/100))^(I97/G97))-1),4),2) - $J$24<0,0,ROUND(ROUND(J97*(((1+(H97/100))^(I97/G97))-1),4),2) - $J$24)) ->  | Z97: =SUM(K97:M97) -> 0 | AB97: =+Q97 ->  | AC97: 0 | AE97: =IFERROR(AA97+K97 + P97 + U97+AB97 + M97 + AC97 + AD97,"") ->  | AF97: 0 | AG97: 00:00:00 | AH97: 0 | AJ97: 0 | AK97: 0 | AN97: =(1/((1+($J$8/100))^(AM97/$Q$9))*1) * IF(D97="D",2,1) ->  | AQ97: =(((1+($J$8/100))^((K97)/$Q$9))-1)*AO97 ->  | AR97: =IF(D97="D",$K$23,0)+ $K$23 -> 0.000263357172
B98: =IF(A98="","",IF(A98<=$H$22,0,1)) ->  | C98: =IF(B98="","",IF(OR(MONTH(EDATE($Q$6,E98))=$H$16,MONTH(EDATE($Q$6,E98))=$H$17),IF(ABS($H$17-$H$16)=1,EDATE($Q$6,E98+2),EDATE($Q$6,E98+1)),EDATE($Q$6,E98))) ->  | H98: =IF(B98="","",$H$10) ->  | S98: =IF(B98="","",IF(E98-E97>1,ROUNDDOWN($J98*$H$9/30*(DATE(YEAR($C98),MONTH($C98)-1,DAY($C98))-C97),2),0)) ->  | V98: =IF(B98="","",O98+P98+Q98+R98+S98+U98) ->  | Z98: 0 | AA98: =+L98 ->  | AC98: 0 | AF98: =IFERROR(IF(D98="D",$J$24*2,$J$24)+Q98,0) -> 0 | AG98: 00:00:00 | AH98: 0 | AJ98: =+IFERROR(AE98-V98,0) -> 0 | AK98: =+IFERROR(AA98-L98,0) -> 0 | AM98: =I98 + AM97 ->  | AP98: =AR98-AQ98 ->  | AR98: 0.000263357172 | AS98: =AO98-AP98 -> 
A99: =+IF(A98>=$H$14,"",A98+1) ->  | E99: =+IF(B99="","",IF(OR(MONTH(DATE(YEAR(C98)+0.0833333333333333,MONTH(C98)+1,DAY(C98)))=$H$16,MONTH(DATE(YEAR(C98)+0.5,MONTH(C98)+1,DAY(C98)))=$H$17),IF(ABS($H$17-$H$16)=1,E98+1,E98+2),E98+1)) ->  | F99: =+IF(B99="","",F98+1) ->  | G99: =IF(B99="","",$Q$9) ->  | I99: =IF(B99="","",C99-C98) ->  | J99: =IF(B99="","",W98) ->  | Q99: =IF(B99="","",ROUND($H$9*J99/30*$I99,2)-S99) ->  | Z99: 0 | AC99: 0 | AF99: 0 | AG99: 00:00:00 | AH99: 0 | AJ99: 0 | AK99: 0 | AO99: =AS98 ->  | AR99: 0.000263357172
Z100: 0 | AC100: 0 | AF100: 0 | AG100: 00:00:00 | AH100: 0 | AJ100: 0 | AK100: 0 | AR100: 0.000263357172
Z101: 0 | AC101: 0 | AF101: 0 | AG101: 00:00:00 | AH101: 0 | AJ101: 0 | AK101: 0 | AR101: 0.000263357172
Z102: 0 | AC102: 0 | AF102: 0 | AG102: 00:00:00 | AH102: 0 | AJ102: 0 | AK102: 0 | AR102: 0.000263357172
Z103: 0 | AC103: 0 | AF103: 0 | AG103: 00:00:00 | AH103: 0 | AJ103: 0 | AK103: 0 | AR103: 0.000263357172
Z104: 0 | AC104: 0 | AF104: 0 | AG104: 00:00:00 | AH104: 0 | AJ104: 0 | AK104: 0 | AR104: 0.000263357172
Z105: 0 | AC105: 0 | AF105: 0 | AG105: 00:00:00 | AH105: 0 | AJ105: 0 | AK105: 0 | AR105: 0.000263357172
Z106: 0 | AC106: 0 | AF106: 0 | AG106: 00:00:00 | AH106: 0 | AJ106: 0 | AK106: 0 | AR106: 0.000263357172
Z107: 0 | AC107: 0 | AF107: 0 | AG107: 00:00:00 | AH107: 0 | AJ107: 0 | AK107: 0 | AR107: 0.000263357172
Z108: 0 | AC108: 0 | AF108: 0 | AG108: 00:00:00 | AH108: 0 | AJ108: 0 | AK108: 0 | AR108: 0.000263357172
Z109: 0 | AC109: 0 | AF109: 0 | AG109: 00:00:00 | AH109: 0 | AJ109: 0 | AK109: 0 | AR109: 0.000263357172
Z110: 0 | AC110: 0 | AF110: 0 | AG110: =+IF(C110="",0,C110) -> 00:00:00 | AH110: =+IF(AE110="",0,AE110) -> 0 | AJ110: 0 | AK110: 0 | AR110: 0.000263357172
Z111: 0 | AC111: 0 | AF111: 0 | AG111: 00:00:00 | AH111: 0 | AJ111: 0 | AK111: 0 | AR111: 0.000263357172
Z112: 0 | AC112: 0 | AF112: 0 | AG112: 00:00:00 | AH112: 0 | AJ112: 0 | AK112: 0 | AR112: 0.000263357172
Z113: 0 | AC113: 0 | AF113: 0 | AG113: 00:00:00 | AH113: 0 | AJ113: 0 | AK113: 0 | AR113: 0.000263357172
Z114: 0 | AC114: 0 | AF114: 0 | AG114: 00:00:00 | AH114: 0 | AJ114: 0 | AK114: 0 | AR114: 0.000263357172
Z115: 0 | AC115: 0 | AF115: 0 | AG115: 00:00:00 | AH115: 0 | AJ115: 0 | AK115: 0 | AR115: 0.000263357172
Z116: 0 | AC116: 0 | AF116: 0 | AG116: 00:00:00 | AH116: 0 | AJ116: 0 | AK116: 0 | AR116: 0.000263357172
Z117: 0 | AC117: 0 | AF117: 0 | AG117: 00:00:00 | AH117: 0 | AJ117: 0 | AK117: 0 | AR117: 0.000263357172
Z118: 0 | AC118: 0 | AF118: 0 | AG118: 00:00:00 | AH118: 0 | AJ118: 0 | AK118: 0 | AR118: 0.000263357172
Z119: 0 | AC119: 0 | AF119: 0 | AG119: 00:00:00 | AH119: 0 | AJ119: 0 | AK119: 0 | AR119: 0.000263357172
Z120: 0 | AC120: 0 | AF120: 0 | AG120: 00:00:00 | AH120: 0 | AJ120: 0 | AK120: 0 | AR120: 0.000263357172
Z121: 0 | AC121: 0 | AF121: 0 | AG121: 00:00:00 | AH121: 0 | AJ121: 0 | AK121: 0 | AR121: 0.000263357172
Z122: 0 | AC122: 0 | AF122: 0 | AG122: 00:00:00 | AH122: 0 | AJ122: 0 | AK122: 0 | AR122: 0.000263357172
Z123: 0 | AC123: 0 | AF123: 0 | AG123: 00:00:00 | AH123: 0 | AJ123: 0 | AK123: 0 | AR123: 0.000263357172
Z124: 0 | AC124: 0 | AF124: 0 | AG124: 00:00:00 | AH124: 0 | AJ124: 0 | AK124: 0 | AR124: 0.000263357172
Z125: 0 | AC125: 0 | AF125: 0 | AG125: 00:00:00 | AH125: 0 | AJ125: 0 | AK125: 0 | AR125: 0.000263357172
Z126: 0 | AC126: 0 | AF126: 0 | AG126: 00:00:00 | AH126: 0 | AJ126: 0 | AK126: 0 | AR126: 0.000263357172
Z127: 0 | AC127: 0 | AF127: 0 | AG127: 00:00:00 | AH127: 0 | AJ127: 0 | AK127: 0 | AR127: 0.000263357172
Z128: 0 | AC128: 0 | AF128: 0 | AG128: 00:00:00 | AH128: 0 | AJ128: 0 | AK128: 0 | AR128: 0.000263357172
Z129: 0 | AC129: 0 | AF129: 0 | AG129: 00:00:00 | AH129: 0 | AJ129: 0 | AK129: 0 | AR129: 0.000263357172
Z130: 0 | AC130: 0 | AF130: 0 | AG130: 00:00:00 | AH130: 0 | AJ130: 0 | AK130: 0 | AR130: 0.000263357172
Z131: 0 | AC131: 0 | AF131: 0 | AG131: 00:00:00 | AH131: 0 | AJ131: 0 | AK131: 0 | AR131: 0.000263357172
Z132: 0 | AC132: 0 | AF132: 0 | AG132: 00:00:00 | AH132: 0 | AJ132: 0 | AK132: 0 | AR132: 0.000263357172
Z133: 0 | AC133: 0 | AF133: 0 | AG133: 00:00:00 | AH133: 0 | AJ133: 0 | AK133: 0 | AR133: 0.000263357172
Z134: 0 | AC134: 0 | AF134: 0 | AG134: 00:00:00 | AH134: 0 | AJ134: 0 | AK134: 0 | AR134: 0.000263357172
Z135: 0 | AC135: 0 | AF135: 0 | AG135: 00:00:00 | AH135: 0 | AJ135: 0 | AK135: 0 | AR135: 0.000263357172
Z136: 0 | AC136: 0 | AF136: 0 | AG136: 00:00:00 | AH136: 0 | AJ136: 0 | AK136: 0 | AR136: 0.000263357172
Z137: 0 | AC137: 0 | AF137: 0 | AG137: 00:00:00 | AH137: 0 | AJ137: 0 | AK137: 0 | AR137: 0.000263357172
Z138: 0 | AC138: 0 | AF138: 0 | AG138: 00:00:00 | AH138: 0 | AJ138: 0 | AK138: 0 | AR138: 0.000263357172
Z139: 0 | AC139: 0 | AF139: 0 | AG139: 00:00:00 | AH139: 0 | AJ139: 0 | AK139: 0 | AR139: 0.000263357172
Z140: 0 | AC140: 0 | AF140: 0 | AG140: 00:00:00 | AH140: 0 | AJ140: 0 | AK140: 0 | AR140: 0.000263357172
Z141: 0 | AC141: 0 | AF141: 0 | AG141: 00:00:00 | AH141: 0 | AJ141: 0 | AK141: 0 | AR141: 0.000263357172
Z142: 0 | AC142: 0 | AF142: 0 | AG142: 00:00:00 | AH142: 0 | AJ142: 0 | AK142: 0 | AR142: 0.000263357172
Z143: 0 | AC143: 0 | AF143: 0 | AG143: 00:00:00 | AH143: 0 | AJ143: 0 | AK143: 0 | AR143: 0.000263357172
Z144: 0 | AC144: 0 | AF144: 0 | AG144: 00:00:00 | AH144: 0 | AJ144: 0 | AK144: 0 | AR144: 0.000263357172
Z145: 0 | AC145: 0 | AF145: 0 | AG145: 00:00:00 | AH145: 0 | AJ145: 0 | AK145: 0 | AR145: 0.000263357172
Z146: 0 | AC146: 0 | AF146: 0 | AG146: 00:00:00 | AH146: 0 | AJ146: 0 | AK146: 0 | AR146: 0.000263357172
Z147: 0 | AC147: 0 | AF147: 0 | AG147: 00:00:00 | AH147: 0 | AJ147: 0 | AK147: 0 | AR147: 0.000263357172
Z148: 0 | AC148: 0 | AF148: 0 | AG148: 00:00:00 | AH148: 0 | AJ148: 0 | AK148: 0 | AR148: 0.000263357172
Z149: 0 | AC149: 0 | AF149: 0 | AG149: 00:00:00 | AH149: 0 | AJ149: 0 | AK149: 0 | AR149: 0.000263357172
Z150: 0 | AC150: 0 | AF150: 0 | AG150: 00:00:00 | AH150: 0 | AJ150: 0 | AK150: 0 | AR150: 0.000263357172
Z151: 0 | AC151: 0 | AF151: 0 | AG151: 00:00:00 | AH151: 0 | AJ151: 0 | AK151: 0 | AR151: 0.000263357172
Z152: 0 | AC152: 0 | AF152: 0 | AG152: 00:00:00 | AH152: 0 | AJ152: 0 | AK152: 0 | AR152: 0.000263357172
Z153: 0 | AC153: 0 | AF153: 0 | AG153: 00:00:00 | AH153: 0 | AJ153: 0 | AK153: 0 | AR153: 0.000263357172
Z154: 0 | AC154: 0 | AF154: 0 | AG154: 00:00:00 | AH154: 0 | AJ154: 0 | AK154: 0 | AR154: 0.000263357172
Z155: 0 | AC155: 0 | AF155: 0 | AG155: 00:00:00 | AH155: 0 | AJ155: 0 | AK155: 0 | AR155: 0.000263357172
Z156: 0 | AC156: 0 | AF156: 0 | AG156: 00:00:00 | AH156: 0 | AJ156: 0 | AK156: 0 | AR156: 0.000263357172
Z157: 0 | AC157: 0 | AF157: 0 | AG157: 00:00:00 | AH157: 0 | AJ157: 0 | AK157: 0 | AR157: 0.000263357172
Z158: 0 | AC158: 0 | AF158: 0 | AG158: 00:00:00 | AH158: 0 | AJ158: 0 | AK158: 0 | AR158: 0.000263357172
Z159: 0 | AC159: 0 | AF159: 0 | AG159: 00:00:00 | AH159: 0 | AJ159: 0 | AK159: 0 | AR159: 0.000263357172
Z160: 0 | AC160: 0 | AF160: 0 | AG160: 00:00:00 | AH160: 0 | AJ160: 0 | AK160: 0 | AR160: 0.000263357172
D161: =IF(B161="","",IF(OR(MONTH(C161)=$H$18,MONTH(C161)=$H$19),"D","")) ->  | K161: =IF(B161="","",IF((IF(ISERROR(MATCH(MONTH(C161),$H$18:$H$19,0))=FALSE,$J$24 + $Q$29,0) + $J$24+$Q$29+$S$27)-L161<0,0.01,IF(ISERROR(MATCH(MONTH(C161),$H$18:$H$19,0))=FALSE,$J$24 + $Q$29,0)+ ($J$24+$Q$29+$S$27)-L161)- R161 -S161-Q161) ->  | L161: =IF(B161="","",IF($J$24+$Q$29<ROUND(ROUND(J161*(((1+(H161/100))^(I161/G161))-1),4),2),$J$24+$Q$29 +-0.01,IF(ROUND(ROUND(J161*(((1+(H161/100))^(I161/G161))-1),4),2)>$J$24,$J$24+ -0.01,ROUND(ROUND(J161*(((1+(H161/100))^(I161/G161))-1),4),2)))) ->  | M161: =IF(B161="","",IF(ISERROR(MATCH(MONTH(C161),$H$18:$H$19,0))=FALSE,$J$23,0) + $J$23) ->  | N161: =IF(B161="","",L161+M161) ->  | O161: =IF(B161="","",K161+N161) ->  | P161: =IF(B161="","",$J$27) ->  | T161: =IF(B161="","",Q161+R161+S161) ->  | U161: =IF(B161="","",$J$28) ->  | W161: =IF(B161="","",(ROUND(J161-K161,2))) ->  | X161: =IF(B161="","",IF(ROUND(ROUND(J161*(((1+(H161/100))^(I161/G161))-1),4),2) - $J$24<0,0,ROUND(ROUND(J161*(((1+(H161/100))^(I161/G161))-1),4),2) - $J$24)) ->  | Z161: =SUM(K161:M161) -> 0 | AB161: =+Q161 ->  | AC161: 0 | AE161: =IFERROR(AA161+K161 + P161 + U161+AB161 + M161 + AC161 + AD161,"") ->  | AF161: 0 | AG161: 00:00:00 | AH161: 0 | AJ161: 0 | AK161: 0 | AN161: =(1/((1+($J$8/100))^(AM161/$Q$9))*1) * IF(D161="D",2,1) ->  | AQ161: =(((1+($J$8/100))^((K161)/$Q$9))-1)*AO161 ->  | AR161: =IF(D161="D",$K$23,0)+ $K$23 -> 0.000263357172
B162: =IF(A162="","",IF(A162<=$H$22,0,1)) ->  | C162: =IF(B162="","",IF(OR(MONTH(EDATE($Q$6,E162))=$H$16,MONTH(EDATE($Q$6,E162))=$H$17),IF(ABS($H$17-$H$16)=1,EDATE($Q$6,E162+2),EDATE($Q$6,E162+1)),EDATE($Q$6,E162))) ->  | H162: =IF(B162="","",$H$10) ->  | S162: =IF(B162="","",IF(E162-E161>1,ROUNDDOWN($J162*$H$9/30*(DATE(YEAR($C162),MONTH($C162)-1,DAY($C162))-C161),2),0)) ->  | V162: =IF(B162="","",O162+P162+Q162+R162+S162+U162) ->  | Z162: 0 | AA162: =+L162 ->  | AC162: 0 | AF162: =IFERROR(IF(D162="D",$J$24*2,$J$24)+Q162,0) -> 0 | AG162: 00:00:00 | AH162: 0 | AJ162: =+IFERROR(AE162-V162,0) -> 0 | AK162: =+IFERROR(AA162-L162,0) -> 0 | AM162: =I162 + AM161 ->  | AP162: =AR162-AQ162 ->  | AR162: 0.000263357172 | AS162: =AO162-AP162 -> 
A163: =+IF(A162>=$H$14,"",A162+1) ->  | E163: =+IF(B163="","",IF(OR(MONTH(DATE(YEAR(C162)+0.0833333333333333,MONTH(C162)+1,DAY(C162)))=$H$16,MONTH(DATE(YEAR(C162)+0.5,MONTH(C162)+1,DAY(C162)))=$H$17),IF(ABS($H$17-$H$16)=1,E162+1,E162+2),E162+1)) ->  | F163: =+IF(B163="","",F162+1) ->  | G163: =IF(B163="","",$Q$9) ->  | I163: =IF(B163="","",C163-C162) ->  | J163: =IF(B163="","",W162) ->  | Q163: =IF(B163="","",ROUND($H$9*J163/30*$I163,2)-S163) ->  | Z163: 0 | AC163: 0 | AF163: 0 | AG163: 00:00:00 | AH163: 0 | AJ163: 0 | AK163: 0 | AO163: =AS162 ->  | AR163: 0.000263357172
Z164: 0 | AC164: 0 | AF164: 0 | AG164: 00:00:00 | AH164: 0 | AJ164: 0 | AK164: 0 | AR164: 0.000263357172
Z165: 0 | AC165: 0 | AF165: 0 | AG165: 00:00:00 | AH165: 0 | AJ165: 0 | AK165: 0 | AR165: 0.000263357172
Z166: 0 | AC166: 0 | AF166: 0 | AG166: 00:00:00 | AH166: 0 | AJ166: 0 | AK166: 0 | AR166: 0.000263357172
Z167: 0 | AC167: 0 | AF167: 0 | AG167: 00:00:00 | AH167: 0 | AJ167: 0 | AK167: 0 | AR167: 0.000263357172
Z168: 0 | AC168: 0 | AF168: 0 | AG168: 00:00:00 | AH168: 0 | AJ168: 0 | AK168: 0 | AR168: 0.000263357172
Z169: 0 | AC169: 0 | AF169: 0 | AG169: 00:00:00 | AH169: 0 | AJ169: 0 | AK169: 0 | AR169: 0.000263357172
Z170: 0 | AC170: 0 | AF170: 0 | AG170: 00:00:00 | AH170: 0 | AJ170: 0 | AK170: 0 | AR170: 0.000263357172
Z171: 0 | AC171: 0 | AF171: 0 | AG171: 00:00:00 | AH171: 0 | AJ171: 0 | AK171: 0 | AR171: 0.000263357172
Z172: 0 | AC172: 0 | AF172: 0 | AG172: 00:00:00 | AH172: 0 | AJ172: 0 | AK172: 0 | AR172: 0.000263357172
Z173: 0 | AC173: 0 | AF173: 0 | AG173: 00:00:00 | AH173: 0 | AJ173: 0 | AK173: 0 | AR173: 0.000263357172
Z174: 0 | AC174: 0 | AF174: 0 | AG174: =+IF(C174="",0,C174) -> 00:00:00 | AH174: =+IF(AE174="",0,AE174) -> 0 | AJ174: 0 | AK174: 0 | AR174: 0.000263357172
Z175: 0 | AC175: 0 | AF175: 0 | AG175: 00:00:00 | AH175: 0 | AJ175: 0 | AK175: 0 | AR175: 0.000263357172
Z176: 0 | AC176: 0 | AF176: 0 | AG176: 00:00:00 | AH176: 0 | AJ176: 0 | AK176: 0 | AR176: 0.000263357172
Z177: 0 | AC177: 0 | AF177: 0 | AG177: 00:00:00 | AH177: 0 | AJ177: 0 | AK177: 0 | AR177: 0.000263357172
Z178: 0 | AC178: 0 | AF178: 0 | AG178: 00:00:00 | AH178: 0 | AJ178: 0 | AK178: 0 | AR178: 0.000263357172
Z179: 0 | AC179: 0 | AF179: 0 | AG179: 00:00:00 | AH179: 0 | AJ179: 0 | AK179: 0 | AR179: 0.000263357172
Z180: 0 | AC180: 0 | AF180: 0 | AG180: 00:00:00 | AH180: 0 | AJ180: 0 | AK180: 0 | AR180: 0.000263357172
Z181: 0 | AC181: 0 | AF181: 0 | AG181: 00:00:00 | AH181: 0 | AJ181: 0 | AK181: 0 | AR181: 0.000263357172
Z182: 0 | AC182: 0 | AF182: 0 | AG182: 00:00:00 | AH182: 0 | AJ182: 0 | AK182: 0 | AR182: 0.000263357172
Z183: 0 | AC183: 0 | AF183: 0 | AG183: 00:00:00 | AH183: 0 | AJ183: 0 | AK183: 0 | AR183: 0.000263357172
Z184: 0 | AC184: 0 | AF184: 0 | AG184: 00:00:00 | AH184: 0 | AJ184: 0 | AK184: 0 | AR184: 0.000263357172
Z185: 0 | AC185: 0 | AF185: 0 | AG185: 00:00:00 | AH185: 0 | AJ185: 0 | AK185: 0 | AR185: 0.000263357172
Z186: 0 | AC186: 0 | AF186: 0 | AG186: 00:00:00 | AH186: 0 | AJ186: 0 | AK186: 0 | AR186: 0.000263357172
Z187: 0 | AC187: 0 | AF187: 0 | AG187: 00:00:00 | AH187: 0 | AJ187: 0 | AK187: 0 | AR187: 0.000263357172
Z188: 0 | AC188: 0 | AF188: 0 | AG188: 00:00:00 | AH188: 0 | AJ188: 0 | AK188: 0 | AR188: 0.000263357172
Z189: 0 | AC189: 0 | AF189: 0 | AG189: 00:00:00 | AH189: 0 | AJ189: 0 | AK189: 0 | AR189: 0.000263357172
Z190: 0 | AC190: 0 | AF190: 0 | AG190: 00:00:00 | AH190: 0 | AJ190: 0 | AK190: 0 | AR190: 0.000263357172
Z191: 0 | AC191: 0 | AF191: 0 | AG191: 00:00:00 | AH191: 0 | AJ191: 0 | AK191: 0 | AR191: 0.000263357172
Z192: 0 | AC192: 0 | AF192: 0 | AG192: 00:00:00 | AH192: 0 | AJ192: 0 | AK192: 0 | AR192: 0.000263357172
Z193: 0 | AC193: 0 | AF193: 0 | AG193: 00:00:00 | AH193: 0 | AJ193: 0 | AK193: 0 | AR193: 0.000263357172
Z194: 0 | AC194: 0 | AF194: 0 | AG194: 00:00:00 | AH194: 0 | AJ194: 0 | AK194: 0 | AR194: 0.000263357172
Z195: 0 | AC195: 0 | AF195: 0 | AG195: 00:00:00 | AH195: 0 | AJ195: 0 | AK195: 0 | AR195: 0.000263357172
Z196: 0 | AC196: 0 | AF196: 0 | AG196: 00:00:00 | AH196: 0 | AJ196: 0 | AK196: 0 | AR196: 0.000263357172
Z197: 0 | AC197: 0 | AF197: 0 | AG197: 00:00:00 | AH197: 0 | AJ197: 0 | AK197: 0 | AR197: 0.000263357172
Z198: 0 | AC198: 0 | AF198: 0 | AG198: 00:00:00 | AH198: 0 | AJ198: 0 | AK198: 0 | AR198: 0.000263357172
Z199: 0 | AC199: 0 | AF199: 0 | AG199: 00:00:00 | AH199: 0 | AJ199: 0 | AK199: 0 | AR199: 0.000263357172
Z200: 0 | AC200: 0 | AF200: 0 | AG200: 00:00:00 | AH200: 0 | AJ200: 0 | AK200: 0 | AR200: 0.000263357172
Z201: 0 | AC201: 0 | AF201: 0 | AG201: 00:00:00 | AH201: 0 | AJ201: 0 | AK201: 0 | AR201: 0.000263357172
Z202: 0 | AC202: 0 | AF202: 0 | AG202: 00:00:00 | AH202: 0 | AJ202: 0 | AK202: 0 | AR202: 0.000263357172
Z203: 0 | AC203: 0 | AF203: 0 | AG203: 00:00:00 | AH203: 0 | AJ203: 0 | AK203: 0 | AR203: 0.000263357172
Z204: 0 | AC204: 0 | AF204: 0 | AG204: 00:00:00 | AH204: 0 | AJ204: 0 | AK204: 0 | AR204: 0.000263357172
Z205: 0 | AC205: 0 | AF205: 0 | AG205: 00:00:00 | AH205: 0 | AJ205: 0 | AK205: 0 | AR205: 0.000263357172
... 69 more rows

Sheet Calculos PLD (hidden)
A1: Factores utilizados en Meses de No Pago para cálculo del valor cuota
A3: N° de Cuota | B3: Equivalente | C3: Fecha | D3: Mes | E3: Marca Cuota No Pago | F3: Factor (10) | G3: Acumulado
A4: 1 | B4: =IF(E4<>"C",IF(ISERROR(1+B3)=TRUE,1,1+B3),IF(ISNUMBER(B3),B3,1)) -> 1 | C4: =Simulador!Q7 -> 2024-06-01 | D4: =MONTH(C4) -> 6 | E4: =IF(ISERROR(MATCH(D4,Simulador!$H$16:$H$17,0))=FALSE,"C",IF(ISERROR(MATCH(D4,Simulador!$H$18:$H$19,0))=FALSE,"D","")) ->  | F4: =IF(E4="C",0,IF(E4 ="D",ROUND(1/((1+Simulador!$Q$13)^A4),9) * 2,ROUND(1/((1+Simulador!$Q$13)^A4),9))) -> 0.984715153 | G4: =ROUND(F4,9) -> 0.984715153
A5: =A4+1 -> 2 | B5: =IF(E5<>"C",IF(ISERROR(1+B4)=TRUE,1,1+B4),IF(ISNUMBER(B4),B4,1)) -> 2 | C5: =DATE(YEAR(C4) + 1/12,MONTH(C4)+1,DAY(C4)) -> 2024-07-01 | D5: 7 | E5: =IF(ISERROR(MATCH(D5,Simulador!$H$16:$H$17,0))=FALSE,"C",IF(ISERROR(MATCH(D5,Simulador!$H$18:$H$19,0))=FALSE,"D","")) ->  | F5: =IF(E5="C",0,IF(E5 ="D",ROUND(1/((1+Simulador!$Q$13)^A5),9) * 2,ROUND(1/((1+Simulador!$Q$13)^A5),9))) -> 0.969663932 | G5: =G4+ROUND(F5,9) -> 1.954379085
A6: 3 | B6: 3 | C6: 2024-08-01 | D6: 8 | E6: =IF(ISERROR(MATCH(D6,Simulador!$H$16:$H$17,0))=FALSE,"C",IF(ISERROR(MATCH(D6,Simulador!$H$18:$H$19,0))=FALSE,"D","")) ->  | F6: =IF(E6="C",0,IF(E6 ="D",ROUND(1/((1+Simulador!$Q$13)^A6),9) * 2,ROUND(1/((1+Simulador!$Q$13)^A6),9))) -> 0.954842767 | G6: =G5+ROUND(F6,9) -> 2.909221852
A7: 4 | B7: 4 | C7: 2024-09-01 | D7: 9 | E7: =IF(ISERROR(MATCH(D7,Simulador!$H$16:$H$17,0))=FALSE,"C",IF(ISERROR(MATCH(D7,Simulador!$H$18:$H$19,0))=FALSE,"D","")) ->  | F7: =IF(E7="C",0,IF(E7 ="D",ROUND(1/((1+Simulador!$Q$13)^A7),9) * 2,ROUND(1/((1+Simulador!$Q$13)^A7),9))) -> 0.940248142 | G7: 3.849469994
A8: 5 | B8: 5 | C8: 2024-10-01 | D8: 10 | E8: =IF(ISERROR(MATCH(D8,Simulador!$H$16:$H$17,0))=FALSE,"C",IF(ISERROR(MATCH(D8,Simulador!$H$18:$H$19,0))=FALSE,"D","")) ->  | F8: =IF(E8="C",0,IF(E8 ="D",ROUND(1/((1+Simulador!$Q$13)^A8),9) * 2,ROUND(1/((1+Simulador!$Q$13)^A8),9))) -> 0.925876593 | G8: 4.775346587
A9: 6 | B9: 6 | C9: 2024-11-01 | D9: 11 | E9: =IF(ISERROR(MATCH(D9,Simulador!$H$16:$H$17,0))=FALSE,"C",IF(ISERROR(MATCH(D9,Simulador!$H$18:$H$19,0))=FALSE,"D","")) ->  | F9: =IF(E9="C",0,IF(E9 ="D",ROUND(1/((1+Simulador!$Q$13)^A9),9) * 2,ROUND(1/((1+Simulador!$Q$13)^A9),9))) -> 0.911724711 | G9: 5.687071298
A10: 7 | B10: 7 | C10: 2024-12-01 | D10: 12 | E10: =IF(ISERROR(MATCH(D10,Simulador!$H$16:$H$17,0))=FALSE,"C",IF(ISERROR(MATCH(D10,Simulador!$H$18:$H$19,0))=FALSE,"D","")) ->  | F10: =IF(E10="C",0,IF(E10 ="D",ROUND(1/((1+Simulador!$Q$13)^A10),9) * 2,ROUND(1/((1+Simulador!$Q$13)^A10),9))) -> 0.897789138 | G10: 6.584860436
A11: 8 | B11: 8 | C11: 2025-01-01 | D11: 1 | E11: =IF(ISERROR(MATCH(D11,Simulador!$H$16:$H$17,0))=FALSE,"C",IF(ISERROR(MATCH(D11,Simulador!$H$18:$H$19,0))=FALSE,"D","")) ->  | F11: =IF(E11="C",0,IF(E11 ="D",ROUND(1/((1+Simulador!$Q$13)^A11),9) * 2,ROUND(1/((1+Simulador!$Q$13)^A11),9))) -> 0.884066568 | G11: 7.468927004
A12: 9 | B12: 9 | C12: 2025-02-01 | D12: 2 | E12: =IF(ISERROR(MATCH(D12,Simulador!$H$16:$H$17,0))=FALSE,"C",IF(ISERROR(MATCH(D12,Simulador!$H$18:$H$19,0))=FALSE,"D","")) ->  | F12: =IF(E12="C",0,IF(E12 ="D",ROUND(1/((1+Simulador!$Q$13)^A12),9) * 2,ROUND(1/((1+Simulador!$Q$13)^A12),9))) -> 0.870553746 | G12: 8.33948075
A13: 10 | B13: 10 | C13: 2025-03-01 | D13: 3 | E13: =IF(ISERROR(MATCH(D13,Simulador!$H$16:$H$17,0))=FALSE,"C",IF(ISERROR(MATCH(D13,Simulador!$H$18:$H$19,0))=FALSE,"D","")) ->  | F13: =IF(E13="C",0,IF(E13 ="D",ROUND(1/((1+Simulador!$Q$13)^A13),9) * 2,ROUND(1/((1+Simulador!$Q$13)^A13),9))) -> 0.857247465 | G13: 9.196728215
A14: 11 | B14: 11 | C14: 2025-04-01 | D14: 4 | E14: =IF(ISERROR(MATCH(D14,Simulador!$H$16:$H$17,0))=FALSE,"C",IF(ISERROR(MATCH(D14,Simulador!$H$18:$H$19,0))=FALSE,"D","")) ->  | F14: =IF(E14="C",0,IF(E14 ="D",ROUND(1/((1+Simulador!$Q$13)^A14),9) * 2,ROUND(1/((1+Simulador!$Q$13)^A14),9))) -> 0.844144569 | G14: 10.04087278
A15: 12 | B15: 12 | C15: 2025-05-01 | D15: 5 | E15: =IF(ISERROR(MATCH(D15,Simulador!$H$16:$H$17,0))=FALSE,"C",IF(ISERROR(MATCH(D15,Simulador!$H$18:$H$19,0))=FALSE,"D","")) ->  | F15: =IF(E15="C",0,IF(E15 ="D",ROUND(1/((1+Simulador!$Q$13)^A15),9) * 2,ROUND(1/((1+Simulador!$Q$13)^A15),9))) -> 0.831241948 | G15: 10.87211473
A16: 13 | B16: 13 | C16: 2025-06-01 | D16: 6 | E16: =IF(ISERROR(MATCH(D16,Simulador!$H$16:$H$17,0))=FALSE,"C",IF(ISERROR(MATCH(D16,Simulador!$H$18:$H$19,0))=FALSE,"D","")) ->  | F16: =IF(E16="C",0,IF(E16 ="D",ROUND(1/((1+Simulador!$Q$13)^A16),9) * 2,ROUND(1/((1+Simulador!$Q$13)^A16),9))) -> 0.818536542 | G16: 11.69065127
A17: 14 | B17: 14 | C17: 2025-07-01 | D17: 7 | E17: =IF(ISERROR(MATCH(D17,Simulador!$H$16:$H$17,0))=FALSE,"C",IF(ISERROR(MATCH(D17,Simulador!$H$18:$H$19,0))=FALSE,"D","")) ->  | F17: =IF(E17="C",0,IF(E17 ="D",ROUND(1/((1+Simulador!$Q$13)^A17),9) * 2,ROUND(1/((1+Simulador!$Q$13)^A17),9))) -> 0.806025336 | G17: 12.49667661
A18: 15 | B18: 15 | C18: 2025-08-01 | D18: 8 | E18: =IF(ISERROR(MATCH(D18,Simulador!$H$16:$H$17,0))=FALSE,"C",IF(ISERROR(MATCH(D18,Simulador!$H$18:$H$19,0))=FALSE,"D","")) ->  | F18: =IF(E18="C",0,IF(E18 ="D",ROUND(1/((1+Simulador!$Q$13)^A18),9) * 2,ROUND(1/((1+Simulador!$Q$13)^A18),9))) -> 0.793705362 | G18: 13.29038197
A19: 16 | B19: 16 | C19: 2025-09-01 | D19: 9 | E19: =IF(ISERROR(MATCH(D19,Simulador!$H$16:$H$17,0))=FALSE,"C",IF(ISERROR(MATCH(D19,Simulador!$H$18:$H$19,0))=FALSE,"D","")) ->  | F19: =IF(E19="C",0,IF(E19 ="D",ROUND(1/((1+Simulador!$Q$13)^A19),9) * 2,ROUND(1/((1+Simulador!$Q$13)^A19),9))) -> 0.781573697 | G19: 14.07195567
A20: 17 | B20: 17 | C20: 2025-10-01 | D20: 10 | E20: =IF(ISERROR(MATCH(D20,Simulador!$H$16:$H$17,0))=FALSE,"C",IF(ISERROR(MATCH(D20,Simulador!$H$18:$H$19,0))=FALSE,"D","")) ->  | F20: =IF(E20="C",0,IF(E20 ="D",ROUND(1/((1+Simulador!$Q$13)^A20),9) * 2,ROUND(1/((1+Simulador!$Q$13)^A20),9))) -> 0.769627462 | G20: 14.84158313
A21: 18 | B21: 18 | C21: 2025-11-01 | D21: 11 | E21: =IF(ISERROR(MATCH(D21,Simulador!$H$16:$H$17,0))=FALSE,"C",IF(ISERROR(MATCH(D21,Simulador!$H$18:$H$19,0))=FALSE,"D","")) ->  | F21: =IF(E21="C",0,IF(E21 ="D",ROUND(1/((1+Simulador!$Q$13)^A21),9) * 2,ROUND(1/((1+Simulador!$Q$13)^A21),9))) -> 0.757863824 | G21: 15.59944696
A22: 19 | B22: 19 | C22: 2025-12-01 | D22: 12 | E22: =IF(ISERROR(MATCH(D22,Simulador!$H$16:$H$17,0))=FALSE,"C",IF(ISERROR(MATCH(D22,Simulador!$H$18:$H$19,0))=FALSE,"D","")) ->  | F22: =IF(E22="C",0,IF(E22 ="D",ROUND(1/((1+Simulador!$Q$13)^A22),9) * 2,ROUND(1/((1+Simulador!$Q$13)^A22),9))) -> 0.746279992 | G22: 16.34572695
A23: 20 | B23: 20 | C23: 2026-01-01 | D23: 1 | E23: =IF(ISERROR(MATCH(D23,Simulador!$H$16:$H$17,0))=FALSE,"C",IF(ISERROR(MATCH(D23,Simulador!$H$18:$H$19,0))=FALSE,"D","")) ->  | F23: =IF(E23="C",0,IF(E23 ="D",ROUND(1/((1+Simulador!$Q$13)^A23),9) * 2,ROUND(1/((1+Simulador!$Q$13)^A23),9))) -> 0.734873216 | G23: 17.08060016
A24: 21 | B24: 21 | C24: 2026-02-01 | D24: 2 | E24: =IF(ISERROR(MATCH(D24,Simulador!$H$16:$H$17,0))=FALSE,"C",IF(ISERROR(MATCH(D24,Simulador!$H$18:$H$19,0))=FALSE,"D","")) ->  | F24: =IF(E24="C",0,IF(E24 ="D",ROUND(1/((1+Simulador!$Q$13)^A24),9) * 2,ROUND(1/((1+Simulador!$Q$13)^A24),9))) -> 0.723640791 | G24: 17.80424095
A25: 22 | B25: 22 | C25: 2026-03-01 | D25: 3 | E25: =IF(ISERROR(MATCH(D25,Simulador!$H$16:$H$17,0))=FALSE,"C",IF(ISERROR(MATCH(D25,Simulador!$H$18:$H$19,0))=FALSE,"D","")) ->  | F25: =IF(E25="C",0,IF(E25 ="D",ROUND(1/((1+Simulador!$Q$13)^A25),9) * 2,ROUND(1/((1+Simulador!$Q$13)^A25),9))) -> 0.712580053 | G25: 18.51682101
A26: 23 | B26: 23 | C26: 2026-04-01 | D26: 4 | E26: =IF(ISERROR(MATCH(D26,Simulador!$H$16:$H$17,0))=FALSE,"C",IF(ISERROR(MATCH(D26,Simulador!$H$18:$H$19,0))=FALSE,"D","")) ->  | F26: =IF(E26="C",0,IF(E26 ="D",ROUND(1/((1+Simulador!$Q$13)^A26),9) * 2,ROUND(1/((1+Simulador!$Q$13)^A26),9))) -> 0.701688376 | G26: 19.21850938
A27: 24 | B27: 24 | C27: 2026-05-01 | D27: 5 | E27: =IF(ISERROR(MATCH(D27,Simulador!$H$16:$H$17,0))=FALSE,"C",IF(ISERROR(MATCH(D27,Simulador!$H$18:$H$19,0))=FALSE,"D","")) ->  | F27: =IF(E27="C",0,IF(E27 ="D",ROUND(1/((1+Simulador!$Q$13)^A27),9) * 2,ROUND(1/((1+Simulador!$Q$13)^A27),9))) -> 0.690963176 | G27: 19.90947256
A28: 25 | B28: 25 | C28: 2026-06-01 | D28: 6 | E28: =IF(ISERROR(MATCH(D28,Simulador!$H$16:$H$17,0))=FALSE,"C",IF(ISERROR(MATCH(D28,Simulador!$H$18:$H$19,0))=FALSE,"D","")) ->  | F28: =IF(E28="C",0,IF(E28 ="D",ROUND(1/((1+Simulador!$Q$13)^A28),9) * 2,ROUND(1/((1+Simulador!$Q$13)^A28),9))) -> 0.68040191 | G28: 20.58987447
A29: 26 | B29: 26 | C29: 2026-07-01 | D29: 7 | E29: =IF(ISERROR(MATCH(D29,Simulador!$H$16:$H$17,0))=FALSE,"C",IF(ISERROR(MATCH(D29,Simulador!$H$18:$H$19,0))=FALSE,"D","")) ->  | F29: =IF(E29="C",0,IF(E29 ="D",ROUND(1/((1+Simulador!$Q$13)^A29),9) * 2,ROUND(1/((1+Simulador!$Q$13)^A29),9))) -> 0.67000207 | G29: 21.25987654
A30: 27 | B30: 27 | C30: 2026-08-01 | D30: 8 | E30: =IF(ISERROR(MATCH(D30,Simulador!$H$16:$H$17,0))=FALSE,"C",IF(ISERROR(MATCH(D30,Simulador!$H$18:$H$19,0))=FALSE,"D","")) ->  | F30: =IF(E30="C",0,IF(E30 ="D",ROUND(1/((1+Simulador!$Q$13)^A30),9) * 2,ROUND(1/((1+Simulador!$Q$13)^A30),9))) -> 0.659761191 | G30: 21.91963773
A31: 28 | B31: 28 | C31: 2026-09-01 | D31: 9 | E31: =IF(ISERROR(MATCH(D31,Simulador!$H$16:$H$17,0))=FALSE,"C",IF(ISERROR(MATCH(D31,Simulador!$H$18:$H$19,0))=FALSE,"D","")) ->  | F31: =IF(E31="C",0,IF(E31 ="D",ROUND(1/((1+Simulador!$Q$13)^A31),9) * 2,ROUND(1/((1+Simulador!$Q$13)^A31),9))) -> 0.649676842 | G31: 22.56931457
A32: 29 | B32: 29 | C32: 2026-10-01 | D32: 10 | E32: =IF(ISERROR(MATCH(D32,Simulador!$H$16:$H$17,0))=FALSE,"C",IF(ISERROR(MATCH(D32,Simulador!$H$18:$H$19,0))=FALSE,"D","")) ->  | F32: =IF(E32="C",0,IF(E32 ="D",ROUND(1/((1+Simulador!$Q$13)^A32),9) * 2,ROUND(1/((1+Simulador!$Q$13)^A32),9))) -> 0.639746631 | G32: 23.2090612
A33: 30 | B33: 30 | C33: 2026-11-01 | D33: 11 | E33: =IF(ISERROR(MATCH(D33,Simulador!$H$16:$H$17,0))=FALSE,"C",IF(ISERROR(MATCH(D33,Simulador!$H$18:$H$19,0))=FALSE,"D","")) ->  | F33: =IF(E33="C",0,IF(E33 ="D",ROUND(1/((1+Simulador!$Q$13)^A33),9) * 2,ROUND(1/((1+Simulador!$Q$13)^A33),9))) -> 0.629968202 | G33: 23.83902941
A34: 31 | B34: 31 | C34: 2026-12-01 | D34: 12 | E34: =IF(ISERROR(MATCH(D34,Simulador!$H$16:$H$17,0))=FALSE,"C",IF(ISERROR(MATCH(D34,Simulador!$H$18:$H$19,0))=FALSE,"D","")) ->  | F34: =IF(E34="C",0,IF(E34 ="D",ROUND(1/((1+Simulador!$Q$13)^A34),9) * 2,ROUND(1/((1+Simulador!$Q$13)^A34),9))) -> 0.620339234 | G34: 24.45936864
A35: 32 | B35: 32 | C35: 2027-01-01 | D35: 1 | E35: =IF(ISERROR(MATCH(D35,Simulador!$H$16:$H$17,0))=FALSE,"C",IF(ISERROR(MATCH(D35,Simulador!$H$18:$H$19,0))=FALSE,"D","")) ->  | F35: =IF(E35="C",0,IF(E35 ="D",ROUND(1/((1+Simulador!$Q$13)^A35),9) * 2,ROUND(1/((1+Simulador!$Q$13)^A35),9))) -> 0.610857444 | G35: 25.07022608
A36: 33 | B36: 33 | C36: 2027-02-01 | D36: 2 | E36: =IF(ISERROR(MATCH(D36,Simulador!$H$16:$H$17,0))=FALSE,"C",IF(ISERROR(MATCH(D36,Simulador!$H$18:$H$19,0))=FALSE,"D","")) ->  | F36: =IF(E36="C",0,IF(E36 ="D",ROUND(1/((1+Simulador!$Q$13)^A36),9) * 2,ROUND(1/((1+Simulador!$Q$13)^A36),9))) -> 0.601520581 | G36: 25.67174666
A37: 34 | B37: 34 | C37: 2027-03-01 | D37: 3 | E37: =IF(ISERROR(MATCH(D37,Simulador!$H$16:$H$17,0))=FALSE,"C",IF(ISERROR(MATCH(D37,Simulador!$H$18:$H$19,0))=FALSE,"D","")) ->  | F37: =IF(E37="C",0,IF(E37 ="D",ROUND(1/((1+Simulador!$Q$13)^A37),9) * 2,ROUND(1/((1+Simulador!$Q$13)^A37),9))) -> 0.592326431 | G37: 26.2640731
A38: 35 | B38: 35 | C38: 2027-04-01 | D38: 4 | E38: =IF(ISERROR(MATCH(D38,Simulador!$H$16:$H$17,0))=FALSE,"C",IF(ISERROR(MATCH(D38,Simulador!$H$18:$H$19,0))=FALSE,"D","")) ->  | F38: =IF(E38="C",0,IF(E38 ="D",ROUND(1/((1+Simulador!$Q$13)^A38),9) * 2,ROUND(1/((1+Simulador!$Q$13)^A38),9))) -> 0.583272812 | G38: 26.84734591
A39: 36 | B39: 36 | C39: 2027-05-01 | D39: 5 | E39: =IF(ISERROR(MATCH(D39,Simulador!$H$16:$H$17,0))=FALSE,"C",IF(ISERROR(MATCH(D39,Simulador!$H$18:$H$19,0))=FALSE,"D","")) ->  | F39: =IF(E39="C",0,IF(E39 ="D",ROUND(1/((1+Simulador!$Q$13)^A39),9) * 2,ROUND(1/((1+Simulador!$Q$13)^A39),9))) -> 0.574357576 | G39: 27.42170348
A40: 37 | B40: 37 | C40: 2027-06-01 | D40: 6 | E40: =IF(ISERROR(MATCH(D40,Simulador!$H$16:$H$17,0))=FALSE,"C",IF(ISERROR(MATCH(D40,Simulador!$H$18:$H$19,0))=FALSE,"D","")) ->  | F40: =IF(E40="C",0,IF(E40 ="D",ROUND(1/((1+Simulador!$Q$13)^A40),9) * 2,ROUND(1/((1+Simulador!$Q$13)^A40),9))) -> 0.565578609 | G40: 27.98728209
A41: 38 | B41: 38 | C41: 2027-07-01 | D41: 7 | E41: =IF(ISERROR(MATCH(D41,Simulador!$H$16:$H$17,0))=FALSE,"C",IF(ISERROR(MATCH(D41,Simulador!$H$18:$H$19,0))=FALSE,"D","")) ->  | F41: =IF(E41="C",0,IF(E41 ="D",ROUND(1/((1+Simulador!$Q$13)^A41),9) * 2,ROUND(1/((1+Simulador!$Q$13)^A41),9))) -> 0.556933826 | G41: 28.54421592
A42: 39 | B42: 39 | C42: 2027-08-01 | D42: 8 | E42: =IF(ISERROR(MATCH(D42,Simulador!$H$16:$H$17,0))=FALSE,"C",IF(ISERROR(MATCH(D42,Simulador!$H$18:$H$19,0))=FALSE,"D","")) ->  | F42: =IF(E42="C",0,IF(E42 ="D",ROUND(1/((1+Simulador!$Q$13)^A42),9) * 2,ROUND(1/((1+Simulador!$Q$13)^A42),9))) -> 0.548421178 | G42: 29.0926371
A43: 40 | B43: 40 | C43: 2027-09-01 | D43: 9 | E43: =IF(ISERROR(MATCH(D43,Simulador!$H$16:$H$17,0))=FALSE,"C",IF(ISERROR(MATCH(D43,Simulador!$H$18:$H$19,0))=FALSE,"D","")) ->  | F43: =IF(E43="C",0,IF(E43 ="D",ROUND(1/((1+Simulador!$Q$13)^A43),9) * 2,ROUND(1/((1+Simulador!$Q$13)^A43),9))) -> 0.540038644 | G43: 29.63267574
A44: 41 | B44: 41 | C44: 2027-10-01 | D44: 10 | E44: =IF(ISERROR(MATCH(D44,Simulador!$H$16:$H$17,0))=FALSE,"C",IF(ISERROR(MATCH(D44,Simulador!$H$18:$H$19,0))=FALSE,"D","")) ->  | F44: =IF(E44="C",0,IF(E44 ="D",ROUND(1/((1+Simulador!$Q$13)^A44),9) * 2,ROUND(1/((1+Simulador!$Q$13)^A44),9))) -> 0.531784236 | G44: 30.16445998
A45: 42 | B45: 42 | C45: 2027-11-01 | D45: 11 | E45: =IF(ISERROR(MATCH(D45,Simulador!$H$16:$H$17,0))=FALSE,"C",IF(ISERROR(MATCH(D45,Simulador!$H$18:$H$19,0))=FALSE,"D","")) ->  | F45: =IF(E45="C",0,IF(E45 ="D",ROUND(1/((1+Simulador!$Q$13)^A45),9) * 2,ROUND(1/((1+Simulador!$Q$13)^A45),9))) -> 0.523655995 | G45: 30.68811597
A46: 43 | B46: 43 | C46: 2027-12-01 | D46: 12 | E46: =IF(ISERROR(MATCH(D46,Simulador!$H$16:$H$17,0))=FALSE,"C",IF(ISERROR(MATCH(D46,Simulador!$H$18:$H$19,0))=FALSE,"D","")) ->  | F46: =IF(E46="C",0,IF(E46 ="D",ROUND(1/((1+Simulador!$Q$13)^A46),9) * 2,ROUND(1/((1+Simulador!$Q$13)^A46),9))) -> 0.515651993 | G46: 31.20376796
A47: 44 | B47: 44 | C47: 2028-01-01 | D47: 1 | E47: =IF(ISERROR(MATCH(D47,Simulador!$H$16:$H$17,0))=FALSE,"C",IF(ISERROR(MATCH(D47,Simulador!$H$18:$H$19,0))=FALSE,"D","")) ->  | F47: =IF(E47="C",0,IF(E47 ="D",ROUND(1/((1+Simulador!$Q$13)^A47),9) * 2,ROUND(1/((1+Simulador!$Q$13)^A47),9))) -> 0.507770331 | G47: 31.7115383
A48: 45 | B48: 45 | C48: 2028-02-01 | D48: 2 | E48: =IF(ISERROR(MATCH(D48,Simulador!$H$16:$H$17,0))=FALSE,"C",IF(ISERROR(MATCH(D48,Simulador!$H$18:$H$19,0))=FALSE,"D","")) ->  | F48: =IF(E48="C",0,IF(E48 ="D",ROUND(1/((1+Simulador!$Q$13)^A48),9) * 2,ROUND(1/((1+Simulador!$Q$13)^A48),9))) -> 0.50000914 | G48: 32.21154744
A49: 46 | B49: 46 | C49: 2028-03-01 | D49: 3 | E49: =IF(ISERROR(MATCH(D49,Simulador!$H$16:$H$17,0))=FALSE,"C",IF(ISERROR(MATCH(D49,Simulador!$H$18:$H$19,0))=FALSE,"D","")) ->  | F49: =IF(E49="C",0,IF(E49 ="D",ROUND(1/((1+Simulador!$Q$13)^A49),9) * 2,ROUND(1/((1+Simulador!$Q$13)^A49),9))) -> 0.492366576 | G49: 32.70391401
A50: 47 | B50: 47 | C50: 2028-04-01 | D50: 4 | E50: =IF(ISERROR(MATCH(D50,Simulador!$H$16:$H$17,0))=FALSE,"C",IF(ISERROR(MATCH(D50,Simulador!$H$18:$H$19,0))=FALSE,"D","")) ->  | F50: =IF(E50="C",0,IF(E50 ="D",ROUND(1/((1+Simulador!$Q$13)^A50),9) * 2,ROUND(1/((1+Simulador!$Q$13)^A50),9))) -> 0.484840829 | G50: 33.18875484
A51: 48 | B51: 48 | C51: 2028-05-01 | D51: 5 | E51: =IF(ISERROR(MATCH(D51,Simulador!$H$16:$H$17,0))=FALSE,"C",IF(ISERROR(MATCH(D51,Simulador!$H$18:$H$19,0))=FALSE,"D","")) ->  | F51: =IF(E51="C",0,IF(E51 ="D",ROUND(1/((1+Simulador!$Q$13)^A51),9) * 2,ROUND(1/((1+Simulador!$Q$13)^A51),9))) -> 0.477430111 | G51: 33.66618495
A52: 49 | B52: 49 | C52: 2028-06-01 | D52: 6 | E52: =IF(ISERROR(MATCH(D52,Simulador!$H$16:$H$17,0))=FALSE,"C",IF(ISERROR(MATCH(D52,Simulador!$H$18:$H$19,0))=FALSE,"D","")) ->  | F52: =IF(E52="C",0,IF(E52 ="D",ROUND(1/((1+Simulador!$Q$13)^A52),9) * 2,ROUND(1/((1+Simulador!$Q$13)^A52),9))) -> 0.470132664 | G52: 34.13631762
A53: 50 | B53: 50 | C53: 2028-07-01 | D53: 7 | E53: =IF(ISERROR(MATCH(D53,Simulador!$H$16:$H$17,0))=FALSE,"C",IF(ISERROR(MATCH(D53,Simulador!$H$18:$H$19,0))=FALSE,"D","")) ->  | F53: =IF(E53="C",0,IF(E53 ="D",ROUND(1/((1+Simulador!$Q$13)^A53),9) * 2,ROUND(1/((1+Simulador!$Q$13)^A53),9))) -> 0.462946758 | G53: 34.59926437
A54: 51 | B54: 51 | C54: 2028-08-01 | D54: 8 | E54: =IF(ISERROR(MATCH(D54,Simulador!$H$16:$H$17,0))=FALSE,"C",IF(ISERROR(MATCH(D54,Simulador!$H$18:$H$19,0))=FALSE,"D","")) ->  | F54: =IF(E54="C",0,IF(E54 ="D",ROUND(1/((1+Simulador!$Q$13)^A54),9) * 2,ROUND(1/((1+Simulador!$Q$13)^A54),9))) -> 0.455870688 | G54: 35.05513506
A55: 52 | B55: 52 | C55: 2028-09-01 | D55: 9 | E55: =IF(ISERROR(MATCH(D55,Simulador!$H$16:$H$17,0))=FALSE,"C",IF(ISERROR(MATCH(D55,Simulador!$H$18:$H$19,0))=FALSE,"D","")) ->  | F55: =IF(E55="C",0,IF(E55 ="D",ROUND(1/((1+Simulador!$Q$13)^A55),9) * 2,ROUND(1/((1+Simulador!$Q$13)^A55),9))) -> 0.448902774 | G55: 35.50403783
A56: 53 | B56: 53 | C56: 2028-10-01 | D56: 10 | E56: =IF(ISERROR(MATCH(D56,Simulador!$H$16:$H$17,0))=FALSE,"C",IF(ISERROR(MATCH(D56,Simulador!$H$18:$H$19,0))=FALSE,"D","")) ->  | F56: =IF(E56="C",0,IF(E56 ="D",ROUND(1/((1+Simulador!$Q$13)^A56),9) * 2,ROUND(1/((1+Simulador!$Q$13)^A56),9))) -> 0.442041364 | G56: 35.9460792
A57: 54 | B57: 54 | C57: 2028-11-01 | D57: 11 | E57: =IF(ISERROR(MATCH(D57,Simulador!$H$16:$H$17,0))=FALSE,"C",IF(ISERROR(MATCH(D57,Simulador!$H$18:$H$19,0))=FALSE,"D","")) ->  | F57: =IF(E57="C",0,IF(E57 ="D",ROUND(1/((1+Simulador!$Q$13)^A57),9) * 2,ROUND(1/((1+Simulador!$Q$13)^A57),9))) -> 0.435284829 | G57: 36.38136403
A58: 55 | B58: 55 | C58: 2028-12-01 | D58: 12 | E58: =IF(ISERROR(MATCH(D58,Simulador!$H$16:$H$17,0))=FALSE,"C",IF(ISERROR(MATCH(D58,Simulador!$H$18:$H$19,0))=FALSE,"D","")) ->  | F58: =IF(E58="C",0,IF(E58 ="D",ROUND(1/((1+Simulador!$Q$13)^A58),9) * 2,ROUND(1/((1+Simulador!$Q$13)^A58),9))) -> 0.428631567 | G58: 36.80999559
A59: 56 | B59: 56 | C59: 2029-01-01 | D59: 1 | E59: =IF(ISERROR(MATCH(D59,Simulador!$H$16:$H$17,0))=FALSE,"C",IF(ISERROR(MATCH(D59,Simulador!$H$18:$H$19,0))=FALSE,"D","")) ->  | F59: =IF(E59="C",0,IF(E59 ="D",ROUND(1/((1+Simulador!$Q$13)^A59),9) * 2,ROUND(1/((1+Simulador!$Q$13)^A59),9))) -> 0.422079999 | G59: 37.23207559
A60: 57 | B60: 57 | C60: 2029-02-01 | D60: 2 | E60: =IF(ISERROR(MATCH(D60,Simulador!$H$16:$H$17,0))=FALSE,"C",IF(ISERROR(MATCH(D60,Simulador!$H$18:$H$19,0))=FALSE,"D","")) ->  | F60: =IF(E60="C",0,IF(E60 ="D",ROUND(1/((1+Simulador!$Q$13)^A60),9) * 2,ROUND(1/((1+Simulador!$Q$13)^A60),9))) -> 0.415628571 | G60: 37.64770416
A61: 58 | B61: 58 | C61: 2029-03-01 | D61: 3 | E61: =IF(ISERROR(MATCH(D61,Simulador!$H$16:$H$17,0))=FALSE,"C",IF(ISERROR(MATCH(D61,Simulador!$H$18:$H$19,0))=FALSE,"D","")) ->  | F61: =IF(E61="C",0,IF(E61 ="D",ROUND(1/((1+Simulador!$Q$13)^A61),9) * 2,ROUND(1/((1+Simulador!$Q$13)^A61),9))) -> 0.409275752 | G61: 38.05697992
A62: 59 | B62: 59 | C62: 2029-04-01 | D62: 4 | E62: =IF(ISERROR(MATCH(D62,Simulador!$H$16:$H$17,0))=FALSE,"C",IF(ISERROR(MATCH(D62,Simulador!$H$18:$H$19,0))=FALSE,"D","")) ->  | F62: =IF(E62="C",0,IF(E62 ="D",ROUND(1/((1+Simulador!$Q$13)^A62),9) * 2,ROUND(1/((1+Simulador!$Q$13)^A62),9))) -> 0.403020035 | G62: 38.45999995
A63: 60 | B63: 60 | C63: 2029-05-01 | D63: 5 | E63: =IF(ISERROR(MATCH(D63,Simulador!$H$16:$H$17,0))=FALSE,"C",IF(ISERROR(MATCH(D63,Simulador!$H$18:$H$19,0))=FALSE,"D","")) ->  | F63: =IF(E63="C",0,IF(E63 ="D",ROUND(1/((1+Simulador!$Q$13)^A63),9) * 2,ROUND(1/((1+Simulador!$Q$13)^A63),9))) -> 0.396859935 | G63: 38.85685989
A64: 61 | B64: 61 | C64: 2029-06-01 | D64: 6 | E64: =IF(ISERROR(MATCH(D64,Simulador!$H$16:$H$17,0))=FALSE,"C",IF(ISERROR(MATCH(D64,Simulador!$H$18:$H$19,0))=FALSE,"D","")) ->  | F64: =IF(E64="C",0,IF(E64 ="D",ROUND(1/((1+Simulador!$Q$13)^A64),9) * 2,ROUND(1/((1+Simulador!$Q$13)^A64),9))) -> 0.390793992 | G64: 39.24765388
A65: 62 | B65: 62 | C65: 2029-07-01 | D65: 7 | E65: =IF(ISERROR(MATCH(D65,Simulador!$H$16:$H$17,0))=FALSE,"C",IF(ISERROR(MATCH(D65,Simulador!$H$18:$H$19,0))=FALSE,"D","")) ->  | F65: =IF(E65="C",0,IF(E65 ="D",ROUND(1/((1+Simulador!$Q$13)^A65),9) * 2,ROUND(1/((1+Simulador!$Q$13)^A65),9))) -> 0.384820765 | G65: 39.63247464
A66: 63 | B66: 63 | C66: 2029-08-01 | D66: 8 | E66: =IF(ISERROR(MATCH(D66,Simulador!$H$16:$H$17,0))=FALSE,"C",IF(ISERROR(MATCH(D66,Simulador!$H$18:$H$19,0))=FALSE,"D","")) ->  | F66: =IF(E66="C",0,IF(E66 ="D",ROUND(1/((1+Simulador!$Q$13)^A66),9) * 2,ROUND(1/((1+Simulador!$Q$13)^A66),9))) -> 0.378938839 | G66: 40.01141348
A67: 64 | B67: 64 | C67: 2029-09-01 | D67: 9 | E67: =IF(ISERROR(MATCH(D67,Simulador!$H$16:$H$17,0))=FALSE,"C",IF(ISERROR(MATCH(D67,Simulador!$H$18:$H$19,0))=FALSE,"D","")) ->  | F67: =IF(E67="C",0,IF(E67 ="D",ROUND(1/((1+Simulador!$Q$13)^A67),9) * 2,ROUND(1/((1+Simulador!$Q$13)^A67),9))) -> 0.373146817 | G67: 40.3845603
A68: 65 | B68: 65 | C68: 2029-10-01 | D68: =MONTH(C68) -> 10 | E68: =IF(ISERROR(MATCH(D68,Simulador!$H$16:$H$17,0))=FALSE,"C",IF(ISERROR(MATCH(D68,Simulador!$H$18:$H$19,0))=FALSE,"D","")) ->  | F68: =IF(E68="C",0,IF(E68 ="D",ROUND(1/((1+Simulador!$Q$13)^A68),9) * 2,ROUND(1/((1+Simulador!$Q$13)^A68),9))) -> 0.367443325 | G68: 40.75200362
A69: =A68+1 -> 66 | B69: =IF(E69<>"C",IF(ISERROR(1+B68)=TRUE,1,1+B68),IF(ISNUMBER(B68),B68,1)) -> 66 | C69: =DATE(YEAR(C68) + 1/12,MONTH(C68)+1,DAY(C68)) -> 2029-11-01 | D69: 11 | E69: =IF(ISERROR(MATCH(D69,Simulador!$H$16:$H$17,0))=FALSE,"C",IF(ISERROR(MATCH(D69,Simulador!$H$18:$H$19,0))=FALSE,"D","")) ->  | F69: =IF(E69="C",0,IF(E69 ="D",ROUND(1/((1+Simulador!$Q$13)^A69),9) * 2,ROUND(1/((1+Simulador!$Q$13)^A69),9))) -> 0.36182701 | G69: 41.11383063
A70: 67 | B70: 67 | C70: 2029-12-01 | D70: 12 | E70: =IF(ISERROR(MATCH(D70,Simulador!$H$16:$H$17,0))=FALSE,"C",IF(ISERROR(MATCH(D70,Simulador!$H$18:$H$19,0))=FALSE,"D","")) ->  | F70: =IF(E70="C",0,IF(E70 ="D",ROUND(1/((1+Simulador!$Q$13)^A70),9) * 2,ROUND(1/((1+Simulador!$Q$13)^A70),9))) -> 0.356296539 | G70: =G69+ROUND(F70,9) -> 41.47012717
A71: 68 | B71: 68 | C71: 2030-01-01 | D71: 1 | E71: =IF(ISERROR(MATCH(D71,Simulador!$H$16:$H$17,0))=FALSE,"C",IF(ISERROR(MATCH(D71,Simulador!$H$18:$H$19,0))=FALSE,"D","")) ->  | F71: =IF(E71="C",0,IF(E71 ="D",ROUND(1/((1+Simulador!$Q$13)^A71),9) * 2,ROUND(1/((1+Simulador!$Q$13)^A71),9))) -> 0.350850601 | G71: 41.82097777
A72: 69 | B72: 69 | C72: 2030-02-01 | D72: 2 | E72: =IF(ISERROR(MATCH(D72,Simulador!$H$16:$H$17,0))=FALSE,"C",IF(ISERROR(MATCH(D72,Simulador!$H$18:$H$19,0))=FALSE,"D","")) ->  | F72: =IF(E72="C",0,IF(E72 ="D",ROUND(1/((1+Simulador!$Q$13)^A72),9) * 2,ROUND(1/((1+Simulador!$Q$13)^A72),9))) -> 0.345487903 | G72: 42.16646568
A73: 70 | B73: 70 | C73: 2030-03-01 | D73: 3 | E73: =IF(ISERROR(MATCH(D73,Simulador!$H$16:$H$17,0))=FALSE,"C",IF(ISERROR(MATCH(D73,Simulador!$H$18:$H$19,0))=FALSE,"D","")) ->  | F73: =IF(E73="C",0,IF(E73 ="D",ROUND(1/((1+Simulador!$Q$13)^A73),9) * 2,ROUND(1/((1+Simulador!$Q$13)^A73),9))) -> 0.340207173 | G73: 42.50667285
A74: 71 | B74: 71 | C74: 2030-04-01 | D74: 4 | E74: =IF(ISERROR(MATCH(D74,Simulador!$H$16:$H$17,0))=FALSE,"C",IF(ISERROR(MATCH(D74,Simulador!$H$18:$H$19,0))=FALSE,"D","")) ->  | F74: =IF(E74="C",0,IF(E74 ="D",ROUND(1/((1+Simulador!$Q$13)^A74),9) * 2,ROUND(1/((1+Simulador!$Q$13)^A74),9))) -> 0.335007159 | G74: 42.84168001
A75: 72 | B75: 72 | C75: 2030-05-01 | D75: 5 | E75: =IF(ISERROR(MATCH(D75,Simulador!$H$16:$H$17,0))=FALSE,"C",IF(ISERROR(MATCH(D75,Simulador!$H$18:$H$19,0))=FALSE,"D","")) ->  | F75: =IF(E75="C",0,IF(E75 ="D",ROUND(1/((1+Simulador!$Q$13)^A75),9) * 2,ROUND(1/((1+Simulador!$Q$13)^A75),9))) -> 0.329886626 | G75: 43.17156664
A76: 73 | B76: 73 | C76: 2030-06-01 | D76: 6 | E76: =IF(ISERROR(MATCH(D76,Simulador!$H$16:$H$17,0))=FALSE,"C",IF(ISERROR(MATCH(D76,Simulador!$H$18:$H$19,0))=FALSE,"D","")) ->  | F76: =IF(E76="C",0,IF(E76 ="D",ROUND(1/((1+Simulador!$Q$13)^A76),9) * 2,ROUND(1/((1+Simulador!$Q$13)^A76),9))) -> 0.324844359 | G76: 43.49641099
A77: 74 | B77: 74 | C77: 2030-07-01 | D77: 7 | E77: =IF(ISERROR(MATCH(D77,Simulador!$H$16:$H$17,0))=FALSE,"C",IF(ISERROR(MATCH(D77,Simulador!$H$18:$H$19,0))=FALSE,"D","")) ->  | F77: =IF(E77="C",0,IF(E77 ="D",ROUND(1/((1+Simulador!$Q$13)^A77),9) * 2,ROUND(1/((1+Simulador!$Q$13)^A77),9))) -> 0.319879163 | G77: 43.81629016
A78: 75 | B78: 75 | C78: 2030-08-01 | D78: 8 | E78: =IF(ISERROR(MATCH(D78,Simulador!$H$16:$H$17,0))=FALSE,"C",IF(ISERROR(MATCH(D78,Simulador!$H$18:$H$19,0))=FALSE,"D","")) ->  | F78: =IF(E78="C",0,IF(E78 ="D",ROUND(1/((1+Simulador!$Q$13)^A78),9) * 2,ROUND(1/((1+Simulador!$Q$13)^A78),9))) -> 0.314989858 | G78: 44.13128002
A79: 76 | B79: 76 | C79: 2030-09-01 | D79: 9 | E79: =IF(ISERROR(MATCH(D79,Simulador!$H$16:$H$17,0))=FALSE,"C",IF(ISERROR(MATCH(D79,Simulador!$H$18:$H$19,0))=FALSE,"D","")) ->  | F79: =IF(E79="C",0,IF(E79 ="D",ROUND(1/((1+Simulador!$Q$13)^A79),9) * 2,ROUND(1/((1+Simulador!$Q$13)^A79),9))) -> 0.310175287 | G79: 44.4414553
A80: 77 | B80: 77 | C80: 2030-10-01 | D80: 10 | E80: =IF(ISERROR(MATCH(D80,Simulador!$H$16:$H$17,0))=FALSE,"C",IF(ISERROR(MATCH(D80,Simulador!$H$18:$H$19,0))=FALSE,"D","")) ->  | F80: =IF(E80="C",0,IF(E80 ="D",ROUND(1/((1+Simulador!$Q$13)^A80),9) * 2,ROUND(1/((1+Simulador!$Q$13)^A80),9))) -> 0.305434305 | G80: 44.74688961
A81: 78 | B81: 78 | C81: 2030-11-01 | D81: 11 | E81: =IF(ISERROR(MATCH(D81,Simulador!$H$16:$H$17,0))=FALSE,"C",IF(ISERROR(MATCH(D81,Simulador!$H$18:$H$19,0))=FALSE,"D","")) ->  | F81: =IF(E81="C",0,IF(E81 ="D",ROUND(1/((1+Simulador!$Q$13)^A81),9) * 2,ROUND(1/((1+Simulador!$Q$13)^A81),9))) -> 0.300765788 | G81: 45.0476554
A82: 79 | B82: 79 | C82: 2030-12-01 | D82: 12 | E82: =IF(ISERROR(MATCH(D82,Simulador!$H$16:$H$17,0))=FALSE,"C",IF(ISERROR(MATCH(D82,Simulador!$H$18:$H$19,0))=FALSE,"D","")) ->  | F82: =IF(E82="C",0,IF(E82 ="D",ROUND(1/((1+Simulador!$Q$13)^A82),9) * 2,ROUND(1/((1+Simulador!$Q$13)^A82),9))) -> 0.296168629 | G82: 45.34382402
A83: 80 | B83: 80 | C83: 2031-01-01 | D83: 1 | E83: =IF(ISERROR(MATCH(D83,Simulador!$H$16:$H$17,0))=FALSE,"C",IF(ISERROR(MATCH(D83,Simulador!$H$18:$H$19,0))=FALSE,"D","")) ->  | F83: =IF(E83="C",0,IF(E83 ="D",ROUND(1/((1+Simulador!$Q$13)^A83),9) * 2,ROUND(1/((1+Simulador!$Q$13)^A83),9))) -> 0.291641737 | G83: 45.63546576
A84: 81 | B84: 81 | C84: 2031-02-01 | D84: 2 | E84: =IF(ISERROR(MATCH(D84,Simulador!$H$16:$H$17,0))=FALSE,"C",IF(ISERROR(MATCH(D84,Simulador!$H$18:$H$19,0))=FALSE,"D","")) ->  | F84: =IF(E84="C",0,IF(E84 ="D",ROUND(1/((1+Simulador!$Q$13)^A84),9) * 2,ROUND(1/((1+Simulador!$Q$13)^A84),9))) -> 0.287184038 | G84: 45.9226498
A85: 82 | B85: 82 | C85: 2031-03-01 | D85: 3 | E85: =IF(ISERROR(MATCH(D85,Simulador!$H$16:$H$17,0))=FALSE,"C",IF(ISERROR(MATCH(D85,Simulador!$H$18:$H$19,0))=FALSE,"D","")) ->  | F85: =IF(E85="C",0,IF(E85 ="D",ROUND(1/((1+Simulador!$Q$13)^A85),9) * 2,ROUND(1/((1+Simulador!$Q$13)^A85),9))) -> 0.282794473 | G85: 46.20544427
A86: 83 | B86: 83 | C86: 2031-04-01 | D86: 4 | E86: =IF(ISERROR(MATCH(D86,Simulador!$H$16:$H$17,0))=FALSE,"C",IF(ISERROR(MATCH(D86,Simulador!$H$18:$H$19,0))=FALSE,"D","")) ->  | F86: =IF(E86="C",0,IF(E86 ="D",ROUND(1/((1+Simulador!$Q$13)^A86),9) * 2,ROUND(1/((1+Simulador!$Q$13)^A86),9))) -> 0.278472003 | G86: 46.48391628
A87: 84 | B87: 84 | C87: 2031-05-01 | D87: 5 | E87: =IF(ISERROR(MATCH(D87,Simulador!$H$16:$H$17,0))=FALSE,"C",IF(ISERROR(MATCH(D87,Simulador!$H$18:$H$19,0))=FALSE,"D","")) ->  | F87: =IF(E87="C",0,IF(E87 ="D",ROUND(1/((1+Simulador!$Q$13)^A87),9) * 2,ROUND(1/((1+Simulador!$Q$13)^A87),9))) -> 0.274215601 | G87: 46.75813188
A88: 85 | B88: 85 | C88: 2031-06-01 | D88: 6 | E88: =IF(ISERROR(MATCH(D88,Simulador!$H$16:$H$17,0))=FALSE,"C",IF(ISERROR(MATCH(D88,Simulador!$H$18:$H$19,0))=FALSE,"D","")) ->  | F88: =IF(E88="C",0,IF(E88 ="D",ROUND(1/((1+Simulador!$Q$13)^A88),9) * 2,ROUND(1/((1+Simulador!$Q$13)^A88),9))) -> 0.270024258 | G88: 47.02815613
A89: 86 | B89: 86 | C89: 2031-07-01 | D89: 7 | E89: =IF(ISERROR(MATCH(D89,Simulador!$H$16:$H$17,0))=FALSE,"C",IF(ISERROR(MATCH(D89,Simulador!$H$18:$H$19,0))=FALSE,"D","")) ->  | F89: =IF(E89="C",0,IF(E89 ="D",ROUND(1/((1+Simulador!$Q$13)^A89),9) * 2,ROUND(1/((1+Simulador!$Q$13)^A89),9))) -> 0.265896978 | G89: 47.29405311
A90: 87 | B90: 87 | C90: 2031-08-01 | D90: 8 | E90: =IF(ISERROR(MATCH(D90,Simulador!$H$16:$H$17,0))=FALSE,"C",IF(ISERROR(MATCH(D90,Simulador!$H$18:$H$19,0))=FALSE,"D","")) ->  | F90: =IF(E90="C",0,IF(E90 ="D",ROUND(1/((1+Simulador!$Q$13)^A90),9) * 2,ROUND(1/((1+Simulador!$Q$13)^A90),9))) -> 0.261832784 | G90: 47.5558859
A91: 88 | B91: 88 | C91: 2031-09-01 | D91: 9 | E91: =IF(ISERROR(MATCH(D91,Simulador!$H$16:$H$17,0))=FALSE,"C",IF(ISERROR(MATCH(D91,Simulador!$H$18:$H$19,0))=FALSE,"D","")) ->  | F91: =IF(E91="C",0,IF(E91 ="D",ROUND(1/((1+Simulador!$Q$13)^A91),9) * 2,ROUND(1/((1+Simulador!$Q$13)^A91),9))) -> 0.257830709 | G91: 47.81371661
A92: 89 | B92: 89 | C92: 2031-10-01 | D92: 10 | E92: =IF(ISERROR(MATCH(D92,Simulador!$H$16:$H$17,0))=FALSE,"C",IF(ISERROR(MATCH(D92,Simulador!$H$18:$H$19,0))=FALSE,"D","")) ->  | F92: =IF(E92="C",0,IF(E92 ="D",ROUND(1/((1+Simulador!$Q$13)^A92),9) * 2,ROUND(1/((1+Simulador!$Q$13)^A92),9))) -> 0.253889807 | G92: 48.06760641
A93: 90 | B93: 90 | C93: 2031-11-01 | D93: 11 | E93: =IF(ISERROR(MATCH(D93,Simulador!$H$16:$H$17,0))=FALSE,"C",IF(ISERROR(MATCH(D93,Simulador!$H$18:$H$19,0))=FALSE,"D","")) ->  | F93: =IF(E93="C",0,IF(E93 ="D",ROUND(1/((1+Simulador!$Q$13)^A93),9) * 2,ROUND(1/((1+Simulador!$Q$13)^A93),9))) -> 0.25000914 | G93: 48.31761555
A94: 91 | B94: 91 | C94: 2031-12-01 | D94: 12 | E94: =IF(ISERROR(MATCH(D94,Simulador!$H$16:$H$17,0))=FALSE,"C",IF(ISERROR(MATCH(D94,Simulador!$H$18:$H$19,0))=FALSE,"D","")) ->  | F94: =IF(E94="C",0,IF(E94 ="D",ROUND(1/((1+Simulador!$Q$13)^A94),9) * 2,ROUND(1/((1+Simulador!$Q$13)^A94),9))) -> 0.246187788 | G94: 48.56380334
A95: 92 | B95: 92 | C95: 2032-01-01 | D95: 1 | E95: =IF(ISERROR(MATCH(D95,Simulador!$H$16:$H$17,0))=FALSE,"C",IF(ISERROR(MATCH(D95,Simulador!$H$18:$H$19,0))=FALSE,"D","")) ->  | F95: =IF(E95="C",0,IF(E95 ="D",ROUND(1/((1+Simulador!$Q$13)^A95),9) * 2,ROUND(1/((1+Simulador!$Q$13)^A95),9))) -> 0.242424845 | G95: 48.80622819
A96: 93 | B96: 93 | C96: 2032-02-01 | D96: 2 | E96: =IF(ISERROR(MATCH(D96,Simulador!$H$16:$H$17,0))=FALSE,"C",IF(ISERROR(MATCH(D96,Simulador!$H$18:$H$19,0))=FALSE,"D","")) ->  | F96: =IF(E96="C",0,IF(E96 ="D",ROUND(1/((1+Simulador!$Q$13)^A96),9) * 2,ROUND(1/((1+Simulador!$Q$13)^A96),9))) -> 0.238719419 | G96: 49.0449476
A97: 94 | B97: 94 | C97: 2032-03-01 | D97: 3 | E97: =IF(ISERROR(MATCH(D97,Simulador!$H$16:$H$17,0))=FALSE,"C",IF(ISERROR(MATCH(D97,Simulador!$H$18:$H$19,0))=FALSE,"D","")) ->  | F97: =IF(E97="C",0,IF(E97 ="D",ROUND(1/((1+Simulador!$Q$13)^A97),9) * 2,ROUND(1/((1+Simulador!$Q$13)^A97),9))) -> 0.235070629 | G97: 49.28001823
A98: 95 | B98: 95 | C98: 2032-04-01 | D98: 4 | E98: =IF(ISERROR(MATCH(D98,Simulador!$H$16:$H$17,0))=FALSE,"C",IF(ISERROR(MATCH(D98,Simulador!$H$18:$H$19,0))=FALSE,"D","")) ->  | F98: =IF(E98="C",0,IF(E98 ="D",ROUND(1/((1+Simulador!$Q$13)^A98),9) * 2,ROUND(1/((1+Simulador!$Q$13)^A98),9))) -> 0.23147761 | G98: 49.51149584
A99: 96 | B99: 96 | C99: 2032-05-01 | D99: 5 | E99: =IF(ISERROR(MATCH(D99,Simulador!$H$16:$H$17,0))=FALSE,"C",IF(ISERROR(MATCH(D99,Simulador!$H$18:$H$19,0))=FALSE,"D","")) ->  | F99: =IF(E99="C",0,IF(E99 ="D",ROUND(1/((1+Simulador!$Q$13)^A99),9) * 2,ROUND(1/((1+Simulador!$Q$13)^A99),9))) -> 0.22793951 | G99: 49.73943535
A100: 97 | B100: 97 | C100: 2032-06-01 | D100: 6 | E100: =IF(ISERROR(MATCH(D100,Simulador!$H$16:$H$17,0))=FALSE,"C",IF(ISERROR(MATCH(D100,Simulador!$H$18:$H$19,0))=FALSE,"D","")) ->  | F100: =IF(E100="C",0,IF(E100 ="D",ROUND(1/((1+Simulador!$Q$13)^A100),9) * 2,ROUND(1/((1+Simulador!$Q$13)^A100),9))) -> 0.22445549 | G100: 49.96389084
A101: 98 | B101: 98 | C101: 2032-07-01 | D101: 7 | E101: =IF(ISERROR(MATCH(D101,Simulador!$H$16:$H$17,0))=FALSE,"C",IF(ISERROR(MATCH(D101,Simulador!$H$18:$H$19,0))=FALSE,"D","")) ->  | F101: =IF(E101="C",0,IF(E101 ="D",ROUND(1/((1+Simulador!$Q$13)^A101),9) * 2,ROUND(1/((1+Simulador!$Q$13)^A101),9))) -> 0.221024722 | G101: 50.18491557
A102: 99 | B102: 99 | C102: 2032-08-01 | D102: 8 | E102: =IF(ISERROR(MATCH(D102,Simulador!$H$16:$H$17,0))=FALSE,"C",IF(ISERROR(MATCH(D102,Simulador!$H$18:$H$19,0))=FALSE,"D","")) ->  | F102: =IF(E102="C",0,IF(E102 ="D",ROUND(1/((1+Simulador!$Q$13)^A102),9) * 2,ROUND(1/((1+Simulador!$Q$13)^A102),9))) -> 0.217646393 | G102: 50.40256196
A103: 100 | B103: 100 | C103: 2032-09-01 | D103: 9 | E103: =IF(ISERROR(MATCH(D103,Simulador!$H$16:$H$17,0))=FALSE,"C",IF(ISERROR(MATCH(D103,Simulador!$H$18:$H$19,0))=FALSE,"D","")) ->  | F103: =IF(E103="C",0,IF(E103 ="D",ROUND(1/((1+Simulador!$Q$13)^A103),9) * 2,ROUND(1/((1+Simulador!$Q$13)^A103),9))) -> 0.214319701 | G103: 50.61688166
A104: 101 | B104: 101 | C104: 2032-10-01 | D104: 10 | E104: =IF(ISERROR(MATCH(D104,Simulador!$H$16:$H$17,0))=FALSE,"C",IF(ISERROR(MATCH(D104,Simulador!$H$18:$H$19,0))=FALSE,"D","")) ->  | F104: =IF(E104="C",0,IF(E104 ="D",ROUND(1/((1+Simulador!$Q$13)^A104),9) * 2,ROUND(1/((1+Simulador!$Q$13)^A104),9))) -> 0.211043857 | G104: 50.82792552
A105: 102 | B105: 102 | C105: 2032-11-01 | D105: 11 | E105: =IF(ISERROR(MATCH(D105,Simulador!$H$16:$H$17,0))=FALSE,"C",IF(ISERROR(MATCH(D105,Simulador!$H$18:$H$19,0))=FALSE,"D","")) ->  | F105: =IF(E105="C",0,IF(E105 ="D",ROUND(1/((1+Simulador!$Q$13)^A105),9) * 2,ROUND(1/((1+Simulador!$Q$13)^A105),9))) -> 0.207818084 | G105: 51.0357436
A106: 103 | B106: 103 | C106: 2032-12-01 | D106: 12 | E106: =IF(ISERROR(MATCH(D106,Simulador!$H$16:$H$17,0))=FALSE,"C",IF(ISERROR(MATCH(D106,Simulador!$H$18:$H$19,0))=FALSE,"D","")) ->  | F106: =IF(E106="C",0,IF(E106 ="D",ROUND(1/((1+Simulador!$Q$13)^A106),9) * 2,ROUND(1/((1+Simulador!$Q$13)^A106),9))) -> 0.204641617 | G106: 51.24038522
A107: 104 | B107: 104 | C107: 2033-01-01 | D107: 1 | E107: =IF(ISERROR(MATCH(D107,Simulador!$H$16:$H$17,0))=FALSE,"C",IF(ISERROR(MATCH(D107,Simulador!$H$18:$H$19,0))=FALSE,"D","")) ->  | F107: =IF(E107="C",0,IF(E107 ="D",ROUND(1/((1+Simulador!$Q$13)^A107),9) * 2,ROUND(1/((1+Simulador!$Q$13)^A107),9))) -> 0.201513701 | G107: 51.44189892
A108: 105 | B108: 105 | C108: 2033-02-01 | D108: 2 | E108: =IF(ISERROR(MATCH(D108,Simulador!$H$16:$H$17,0))=FALSE,"C",IF(ISERROR(MATCH(D108,Simulador!$H$18:$H$19,0))=FALSE,"D","")) ->  | F108: =IF(E108="C",0,IF(E108 ="D",ROUND(1/((1+Simulador!$Q$13)^A108),9) * 2,ROUND(1/((1+Simulador!$Q$13)^A108),9))) -> 0.198433595 | G108: 51.64033251
A109: 106 | B109: 106 | C109: 2033-03-01 | D109: 3 | E109: =IF(ISERROR(MATCH(D109,Simulador!$H$16:$H$17,0))=FALSE,"C",IF(ISERROR(MATCH(D109,Simulador!$H$18:$H$19,0))=FALSE,"D","")) ->  | F109: =IF(E109="C",0,IF(E109 ="D",ROUND(1/((1+Simulador!$Q$13)^A109),9) * 2,ROUND(1/((1+Simulador!$Q$13)^A109),9))) -> 0.195400568 | G109: 51.83573308
A110: 107 | B110: 107 | C110: 2033-04-01 | D110: 4 | E110: =IF(ISERROR(MATCH(D110,Simulador!$H$16:$H$17,0))=FALSE,"C",IF(ISERROR(MATCH(D110,Simulador!$H$18:$H$19,0))=FALSE,"D","")) ->  | F110: =IF(E110="C",0,IF(E110 ="D",ROUND(1/((1+Simulador!$Q$13)^A110),9) * 2,ROUND(1/((1+Simulador!$Q$13)^A110),9))) -> 0.1924139 | G110: 52.02814698
A111: 108 | B111: 108 | C111: 2033-05-01 | D111: 5 | E111: =IF(ISERROR(MATCH(D111,Simulador!$H$16:$H$17,0))=FALSE,"C",IF(ISERROR(MATCH(D111,Simulador!$H$18:$H$19,0))=FALSE,"D","")) ->  | F111: =IF(E111="C",0,IF(E111 ="D",ROUND(1/((1+Simulador!$Q$13)^A111),9) * 2,ROUND(1/((1+Simulador!$Q$13)^A111),9))) -> 0.189472883 | G111: 52.21761986
A112: 109 | B112: 109 | C112: 2033-06-01 | D112: 6 | E112: =IF(ISERROR(MATCH(D112,Simulador!$H$16:$H$17,0))=FALSE,"C",IF(ISERROR(MATCH(D112,Simulador!$H$18:$H$19,0))=FALSE,"D","")) ->  | F112: =IF(E112="C",0,IF(E112 ="D",ROUND(1/((1+Simulador!$Q$13)^A112),9) * 2,ROUND(1/((1+Simulador!$Q$13)^A112),9))) -> 0.186576819 | G112: 52.40419668
A113: 110 | B113: 110 | C113: 2033-07-01 | D113: 7 | E113: =IF(ISERROR(MATCH(D113,Simulador!$H$16:$H$17,0))=FALSE,"C",IF(ISERROR(MATCH(D113,Simulador!$H$18:$H$19,0))=FALSE,"D","")) ->  | F113: =IF(E113="C",0,IF(E113 ="D",ROUND(1/((1+Simulador!$Q$13)^A113),9) * 2,ROUND(1/((1+Simulador!$Q$13)^A113),9))) -> 0.183725021 | G113: 52.5879217
A114: 111 | B114: 111 | C114: 2033-08-01 | D114: 8 | E114: =IF(ISERROR(MATCH(D114,Simulador!$H$16:$H$17,0))=FALSE,"C",IF(ISERROR(MATCH(D114,Simulador!$H$18:$H$19,0))=FALSE,"D","")) ->  | F114: =IF(E114="C",0,IF(E114 ="D",ROUND(1/((1+Simulador!$Q$13)^A114),9) * 2,ROUND(1/((1+Simulador!$Q$13)^A114),9))) -> 0.180916812 | G114: 52.76883852
A115: 112 | B115: 112 | C115: 2033-09-01 | D115: 9 | E115: =IF(ISERROR(MATCH(D115,Simulador!$H$16:$H$17,0))=FALSE,"C",IF(ISERROR(MATCH(D115,Simulador!$H$18:$H$19,0))=FALSE,"D","")) ->  | F115: =IF(E115="C",0,IF(E115 ="D",ROUND(1/((1+Simulador!$Q$13)^A115),9) * 2,ROUND(1/((1+Simulador!$Q$13)^A115),9))) -> 0.178151526 | G115: 52.94699004
A116: 113 | B116: 113 | C116: 2033-10-01 | D116: 10 | E116: =IF(ISERROR(MATCH(D116,Simulador!$H$16:$H$17,0))=FALSE,"C",IF(ISERROR(MATCH(D116,Simulador!$H$18:$H$19,0))=FALSE,"D","")) ->  | F116: =IF(E116="C",0,IF(E116 ="D",ROUND(1/((1+Simulador!$Q$13)^A116),9) * 2,ROUND(1/((1+Simulador!$Q$13)^A116),9))) -> 0.175428507 | G116: 53.12241855
A117: 114 | B117: 114 | C117: 2033-11-01 | D117: 11 | E117: =IF(ISERROR(MATCH(D117,Simulador!$H$16:$H$17,0))=FALSE,"C",IF(ISERROR(MATCH(D117,Simulador!$H$18:$H$19,0))=FALSE,"D","")) ->  | F117: =IF(E117="C",0,IF(E117 ="D",ROUND(1/((1+Simulador!$Q$13)^A117),9) * 2,ROUND(1/((1+Simulador!$Q$13)^A117),9))) -> 0.172747109 | G117: 53.29516566
A118: 115 | B118: 115 | C118: 2033-12-01 | D118: 12 | E118: =IF(ISERROR(MATCH(D118,Simulador!$H$16:$H$17,0))=FALSE,"C",IF(ISERROR(MATCH(D118,Simulador!$H$18:$H$19,0))=FALSE,"D","")) ->  | F118: =IF(E118="C",0,IF(E118 ="D",ROUND(1/((1+Simulador!$Q$13)^A118),9) * 2,ROUND(1/((1+Simulador!$Q$13)^A118),9))) -> 0.170106696 | G118: 53.46527235
A119: 116 | B119: 116 | C119: 2034-01-01 | D119: 1 | E119: =IF(ISERROR(MATCH(D119,Simulador!$H$16:$H$17,0))=FALSE,"C",IF(ISERROR(MATCH(D119,Simulador!$H$18:$H$19,0))=FALSE,"D","")) ->  | F119: =IF(E119="C",0,IF(E119 ="D",ROUND(1/((1+Simulador!$Q$13)^A119),9) * 2,ROUND(1/((1+Simulador!$Q$13)^A119),9))) -> 0.167506641 | G119: 53.632779
A120: 117 | B120: 117 | C120: 2034-02-01 | D120: 2 | E120: =IF(ISERROR(MATCH(D120,Simulador!$H$16:$H$17,0))=FALSE,"C",IF(ISERROR(MATCH(D120,Simulador!$H$18:$H$19,0))=FALSE,"D","")) ->  | F120: =IF(E120="C",0,IF(E120 ="D",ROUND(1/((1+Simulador!$Q$13)^A120),9) * 2,ROUND(1/((1+Simulador!$Q$13)^A120),9))) -> 0.164946328 | G120: 53.79772532
A121: 118 | B121: 118 | C121: 2034-03-01 | D121: 3 | E121: =IF(ISERROR(MATCH(D121,Simulador!$H$16:$H$17,0))=FALSE,"C",IF(ISERROR(MATCH(D121,Simulador!$H$18:$H$19,0))=FALSE,"D","")) ->  | F121: =IF(E121="C",0,IF(E121 ="D",ROUND(1/((1+Simulador!$Q$13)^A121),9) * 2,ROUND(1/((1+Simulador!$Q$13)^A121),9))) -> 0.162425148 | G121: 53.96015047
A122: 119 | B122: 119 | C122: 2034-04-01 | D122: 4 | E122: =IF(ISERROR(MATCH(D122,Simulador!$H$16:$H$17,0))=FALSE,"C",IF(ISERROR(MATCH(D122,Simulador!$H$18:$H$19,0))=FALSE,"D","")) ->  | F122: =IF(E122="C",0,IF(E122 ="D",ROUND(1/((1+Simulador!$Q$13)^A122),9) * 2,ROUND(1/((1+Simulador!$Q$13)^A122),9))) -> 0.159942505 | G122: 54.12009298
A123: 120 | B123: 120 | C123: 2034-05-01 | D123: 5 | E123: =IF(ISERROR(MATCH(D123,Simulador!$H$16:$H$17,0))=FALSE,"C",IF(ISERROR(MATCH(D123,Simulador!$H$18:$H$19,0))=FALSE,"D","")) ->  | F123: =IF(E123="C",0,IF(E123 ="D",ROUND(1/((1+Simulador!$Q$13)^A123),9) * 2,ROUND(1/((1+Simulador!$Q$13)^A123),9))) -> 0.157497808 | G123: 54.27759078
A124: 121 | B124: 121 | C124: 2034-06-01 | D124: 6 | E124: =IF(ISERROR(MATCH(D124,Simulador!$H$16:$H$17,0))=FALSE,"C",IF(ISERROR(MATCH(D124,Simulador!$H$18:$H$19,0))=FALSE,"D","")) ->  | F124: =IF(E124="C",0,IF(E124 ="D",ROUND(1/((1+Simulador!$Q$13)^A124),9) * 2,ROUND(1/((1+Simulador!$Q$13)^A124),9))) -> 0.155090478 | G124: 54.43268126
A125: 122 | B125: 122 | C125: 2034-07-01 | D125: 7 | E125: =IF(ISERROR(MATCH(D125,Simulador!$H$16:$H$17,0))=FALSE,"C",IF(ISERROR(MATCH(D125,Simulador!$H$18:$H$19,0))=FALSE,"D","")) ->  | F125: =IF(E125="C",0,IF(E125 ="D",ROUND(1/((1+Simulador!$Q$13)^A125),9) * 2,ROUND(1/((1+Simulador!$Q$13)^A125),9))) -> 0.152719944 | G125: 54.58540121
A126: 123 | B126: 123 | C126: 2034-08-01 | D126: 8 | E126: =IF(ISERROR(MATCH(D126,Simulador!$H$16:$H$17,0))=FALSE,"C",IF(ISERROR(MATCH(D126,Simulador!$H$18:$H$19,0))=FALSE,"D","")) ->  | F126: =IF(E126="C",0,IF(E126 ="D",ROUND(1/((1+Simulador!$Q$13)^A126),9) * 2,ROUND(1/((1+Simulador!$Q$13)^A126),9))) -> 0.150385643 | G126: 54.73578685
A127: 124 | B127: 124 | C127: 2034-09-01 | D127: 9 | E127: =IF(ISERROR(MATCH(D127,Simulador!$H$16:$H$17,0))=FALSE,"C",IF(ISERROR(MATCH(D127,Simulador!$H$18:$H$19,0))=FALSE,"D","")) ->  | F127: =IF(E127="C",0,IF(E127 ="D",ROUND(1/((1+Simulador!$Q$13)^A127),9) * 2,ROUND(1/((1+Simulador!$Q$13)^A127),9))) -> 0.148087021 | G127: 54.88387387
A128: 125 | B128: 125 | C128: 2034-10-01 | D128: 10 | E128: =IF(ISERROR(MATCH(D128,Simulador!$H$16:$H$17,0))=FALSE,"C",IF(ISERROR(MATCH(D128,Simulador!$H$18:$H$19,0))=FALSE,"D","")) ->  | F128: =IF(E128="C",0,IF(E128 ="D",ROUND(1/((1+Simulador!$Q$13)^A128),9) * 2,ROUND(1/((1+Simulador!$Q$13)^A128),9))) -> 0.145823534 | G128: 55.0296974
A129: 126 | B129: 126 | C129: 2034-11-01 | D129: 11 | E129: =IF(ISERROR(MATCH(D129,Simulador!$H$16:$H$17,0))=FALSE,"C",IF(ISERROR(MATCH(D129,Simulador!$H$18:$H$19,0))=FALSE,"D","")) ->  | F129: =IF(E129="C",0,IF(E129 ="D",ROUND(1/((1+Simulador!$Q$13)^A129),9) * 2,ROUND(1/((1+Simulador!$Q$13)^A129),9))) -> 0.143594644 | G129: 55.17329205
A130: 127 | B130: 127 | C130: 2034-12-01 | D130: 12 | E130: =IF(ISERROR(MATCH(D130,Simulador!$H$16:$H$17,0))=FALSE,"C",IF(ISERROR(MATCH(D130,Simulador!$H$18:$H$19,0))=FALSE,"D","")) ->  | F130: =IF(E130="C",0,IF(E130 ="D",ROUND(1/((1+Simulador!$Q$13)^A130),9) * 2,ROUND(1/((1+Simulador!$Q$13)^A130),9))) -> 0.141399821 | G130: 55.31469187
A131: 128 | B131: 128 | C131: 2035-01-01 | D131: 1 | E131: =IF(ISERROR(MATCH(D131,Simulador!$H$16:$H$17,0))=FALSE,"C",IF(ISERROR(MATCH(D131,Simulador!$H$18:$H$19,0))=FALSE,"D","")) ->  | F131: =IF(E131="C",0,IF(E131 ="D",ROUND(1/((1+Simulador!$Q$13)^A131),9) * 2,ROUND(1/((1+Simulador!$Q$13)^A131),9))) -> 0.139238547 | G131: 55.45393042
A132: 129 | B132: 129 | C132: 2035-02-01 | D132: =MONTH(C132) -> 2 | E132: =IF(ISERROR(MATCH(D132,Simulador!$H$16:$H$17,0))=FALSE,"C",IF(ISERROR(MATCH(D132,Simulador!$H$18:$H$19,0))=FALSE,"D","")) ->  | F132: =IF(E132="C",0,IF(E132 ="D",ROUND(1/((1+Simulador!$Q$13)^A132),9) * 2,ROUND(1/((1+Simulador!$Q$13)^A132),9))) -> 0.137110307 | G132: 55.59104072
A133: =A132+1 -> 130 | B133: =IF(E133<>"C",IF(ISERROR(1+B132)=TRUE,1,1+B132),IF(ISNUMBER(B132),B132,1)) -> 130 | C133: =DATE(YEAR(C132) + 1/12,MONTH(C132)+1,DAY(C132)) -> 2035-03-01 | D133: 3 | E133: =IF(ISERROR(MATCH(D133,Simulador!$H$16:$H$17,0))=FALSE,"C",IF(ISERROR(MATCH(D133,Simulador!$H$18:$H$19,0))=FALSE,"D","")) ->  | F133: =IF(E133="C",0,IF(E133 ="D",ROUND(1/((1+Simulador!$Q$13)^A133),9) * 2,ROUND(1/((1+Simulador!$Q$13)^A133),9))) -> 0.135014597 | G133: 55.72605532
A134: 131 | B134: 131 | C134: 2035-04-01 | D134: 4 | E134: =IF(ISERROR(MATCH(D134,Simulador!$H$16:$H$17,0))=FALSE,"C",IF(ISERROR(MATCH(D134,Simulador!$H$18:$H$19,0))=FALSE,"D","")) ->  | F134: =IF(E134="C",0,IF(E134 ="D",ROUND(1/((1+Simulador!$Q$13)^A134),9) * 2,ROUND(1/((1+Simulador!$Q$13)^A134),9))) -> 0.132950919 | G134: =G133+ROUND(F134,9) -> 55.85900624
A135: 132 | B135: 132 | C135: 2035-05-01 | D135: 5 | E135: =IF(ISERROR(MATCH(D135,Simulador!$H$16:$H$17,0))=FALSE,"C",IF(ISERROR(MATCH(D135,Simulador!$H$18:$H$19,0))=FALSE,"D","")) ->  | F135: =IF(E135="C",0,IF(E135 ="D",ROUND(1/((1+Simulador!$Q$13)^A135),9) * 2,ROUND(1/((1+Simulador!$Q$13)^A135),9))) -> 0.130918785 | G135: 55.98992502
A136: 133 | B136: 133 | C136: 2035-06-01 | D136: 6 | E136: =IF(ISERROR(MATCH(D136,Simulador!$H$16:$H$17,0))=FALSE,"C",IF(ISERROR(MATCH(D136,Simulador!$H$18:$H$19,0))=FALSE,"D","")) ->  | F136: =IF(E136="C",0,IF(E136 ="D",ROUND(1/((1+Simulador!$Q$13)^A136),9) * 2,ROUND(1/((1+Simulador!$Q$13)^A136),9))) -> 0.128917711 | G136: 56.11884274
A137: 134 | B137: 134 | C137: 2035-07-01 | D137: 7 | E137: =IF(ISERROR(MATCH(D137,Simulador!$H$16:$H$17,0))=FALSE,"C",IF(ISERROR(MATCH(D137,Simulador!$H$18:$H$19,0))=FALSE,"D","")) ->  | F137: =IF(E137="C",0,IF(E137 ="D",ROUND(1/((1+Simulador!$Q$13)^A137),9) * 2,ROUND(1/((1+Simulador!$Q$13)^A137),9))) -> 0.126947224 | G137: 56.24578996
A138: 135 | B138: 135 | C138: 2035-08-01 | D138: 8 | E138: =IF(ISERROR(MATCH(D138,Simulador!$H$16:$H$17,0))=FALSE,"C",IF(ISERROR(MATCH(D138,Simulador!$H$18:$H$19,0))=FALSE,"D","")) ->  | F138: =IF(E138="C",0,IF(E138 ="D",ROUND(1/((1+Simulador!$Q$13)^A138),9) * 2,ROUND(1/((1+Simulador!$Q$13)^A138),9))) -> 0.125006855 | G138: 56.37079681
A139: 136 | B139: 136 | C139: 2035-09-01 | D139: 9 | E139: =IF(ISERROR(MATCH(D139,Simulador!$H$16:$H$17,0))=FALSE,"C",IF(ISERROR(MATCH(D139,Simulador!$H$18:$H$19,0))=FALSE,"D","")) ->  | F139: =IF(E139="C",0,IF(E139 ="D",ROUND(1/((1+Simulador!$Q$13)^A139),9) * 2,ROUND(1/((1+Simulador!$Q$13)^A139),9))) -> 0.123096144 | G139: 56.49389296
A140: 137 | B140: 137 | C140: 2035-10-01 | D140: 10 | E140: =IF(ISERROR(MATCH(D140,Simulador!$H$16:$H$17,0))=FALSE,"C",IF(ISERROR(MATCH(D140,Simulador!$H$18:$H$19,0))=FALSE,"D","")) ->  | F140: =IF(E140="C",0,IF(E140 ="D",ROUND(1/((1+Simulador!$Q$13)^A140),9) * 2,ROUND(1/((1+Simulador!$Q$13)^A140),9))) -> 0.121214638 | G140: 56.6151076
A141: 138 | B141: 138 | C141: 2035-11-01 | D141: 11 | E141: =IF(ISERROR(MATCH(D141,Simulador!$H$16:$H$17,0))=FALSE,"C",IF(ISERROR(MATCH(D141,Simulador!$H$18:$H$19,0))=FALSE,"D","")) ->  | F141: =IF(E141="C",0,IF(E141 ="D",ROUND(1/((1+Simulador!$Q$13)^A141),9) * 2,ROUND(1/((1+Simulador!$Q$13)^A141),9))) -> 0.119361891 | G141: 56.73446949
A142: 139 | B142: 139 | C142: 2035-12-01 | D142: 12 | E142: =IF(ISERROR(MATCH(D142,Simulador!$H$16:$H$17,0))=FALSE,"C",IF(ISERROR(MATCH(D142,Simulador!$H$18:$H$19,0))=FALSE,"D","")) ->  | F142: =IF(E142="C",0,IF(E142 ="D",ROUND(1/((1+Simulador!$Q$13)^A142),9) * 2,ROUND(1/((1+Simulador!$Q$13)^A142),9))) -> 0.117537463 | G142: 56.85200695
A143: 140 | B143: 140 | C143: 2036-01-01 | D143: 1 | E143: =IF(ISERROR(MATCH(D143,Simulador!$H$16:$H$17,0))=FALSE,"C",IF(ISERROR(MATCH(D143,Simulador!$H$18:$H$19,0))=FALSE,"D","")) ->  | F143: =IF(E143="C",0,IF(E143 ="D",ROUND(1/((1+Simulador!$Q$13)^A143),9) * 2,ROUND(1/((1+Simulador!$Q$13)^A143),9))) -> 0.115740921 | G143: 56.96774787
A144: 141 | B144: 141 | C144: 2036-02-01 | D144: 2 | E144: =IF(ISERROR(MATCH(D144,Simulador!$H$16:$H$17,0))=FALSE,"C",IF(ISERROR(MATCH(D144,Simulador!$H$18:$H$19,0))=FALSE,"D","")) ->  | F144: =IF(E144="C",0,IF(E144 ="D",ROUND(1/((1+Simulador!$Q$13)^A144),9) * 2,ROUND(1/((1+Simulador!$Q$13)^A144),9))) -> 0.113971839 | G144: 57.08171971
A145: 142 | B145: 142 | C145: 2036-03-01 | D145: 3 | E145: =IF(ISERROR(MATCH(D145,Simulador!$H$16:$H$17,0))=FALSE,"C",IF(ISERROR(MATCH(D145,Simulador!$H$18:$H$19,0))=FALSE,"D","")) ->  | F145: =IF(E145="C",0,IF(E145 ="D",ROUND(1/((1+Simulador!$Q$13)^A145),9) * 2,ROUND(1/((1+Simulador!$Q$13)^A145),9))) -> 0.112229796 | G145: 57.19394951
A146: 143 | B146: 143 | C146: 2036-04-01 | D146: 4 | E146: =IF(ISERROR(MATCH(D146,Simulador!$H$16:$H$17,0))=FALSE,"C",IF(ISERROR(MATCH(D146,Simulador!$H$18:$H$19,0))=FALSE,"D","")) ->  | F146: =IF(E146="C",0,IF(E146 ="D",ROUND(1/((1+Simulador!$Q$13)^A146),9) * 2,ROUND(1/((1+Simulador!$Q$13)^A146),9))) -> 0.110514381 | G146: 57.30446389
A147: 144 | B147: 144 | C147: 2036-05-01 | D147: 5 | E147: =IF(ISERROR(MATCH(D147,Simulador!$H$16:$H$17,0))=FALSE,"C",IF(ISERROR(MATCH(D147,Simulador!$H$18:$H$19,0))=FALSE,"D","")) ->  | F147: =IF(E147="C",0,IF(E147 ="D",ROUND(1/((1+Simulador!$Q$13)^A147),9) * 2,ROUND(1/((1+Simulador!$Q$13)^A147),9))) -> 0.108825186 | G147: 57.41328907
A148: 145 | B148: 145 | C148: 2036-06-01 | D148: 6 | E148: =IF(ISERROR(MATCH(D148,Simulador!$H$16:$H$17,0))=FALSE,"C",IF(ISERROR(MATCH(D148,Simulador!$H$18:$H$19,0))=FALSE,"D","")) ->  | F148: =IF(E148="C",0,IF(E148 ="D",ROUND(1/((1+Simulador!$Q$13)^A148),9) * 2,ROUND(1/((1+Simulador!$Q$13)^A148),9))) -> 0.107161809 | G148: 57.52045088
A149: 146 | B149: 146 | C149: 2036-07-01 | D149: 7 | E149: =IF(ISERROR(MATCH(D149,Simulador!$H$16:$H$17,0))=FALSE,"C",IF(ISERROR(MATCH(D149,Simulador!$H$18:$H$19,0))=FALSE,"D","")) ->  | F149: =IF(E149="C",0,IF(E149 ="D",ROUND(1/((1+Simulador!$Q$13)^A149),9) * 2,ROUND(1/((1+Simulador!$Q$13)^A149),9))) -> 0.105523858 | G149: 57.62597474
A150: 147 | B150: 147 | C150: 2036-08-01 | D150: 8 | E150: =IF(ISERROR(MATCH(D150,Simulador!$H$16:$H$17,0))=FALSE,"C",IF(ISERROR(MATCH(D150,Simulador!$H$18:$H$19,0))=FALSE,"D","")) ->  | F150: =IF(E150="C",0,IF(E150 ="D",ROUND(1/((1+Simulador!$Q$13)^A150),9) * 2,ROUND(1/((1+Simulador!$Q$13)^A150),9))) -> 0.103910941 | G150: 57.72988568
A151: 148 | B151: 148 | C151: 2036-09-01 | D151: 9 | E151: =IF(ISERROR(MATCH(D151,Simulador!$H$16:$H$17,0))=FALSE,"C",IF(ISERROR(MATCH(D151,Simulador!$H$18:$H$19,0))=FALSE,"D","")) ->  | F151: =IF(E151="C",0,IF(E151 ="D",ROUND(1/((1+Simulador!$Q$13)^A151),9) * 2,ROUND(1/((1+Simulador!$Q$13)^A151),9))) -> 0.102322679 | G151: 57.83220836
A152: 149 | B152: 149 | C152: 2036-10-01 | D152: 10 | E152: =IF(ISERROR(MATCH(D152,Simulador!$H$16:$H$17,0))=FALSE,"C",IF(ISERROR(MATCH(D152,Simulador!$H$18:$H$19,0))=FALSE,"D","")) ->  | F152: =IF(E152="C",0,IF(E152 ="D",ROUND(1/((1+Simulador!$Q$13)^A152),9) * 2,ROUND(1/((1+Simulador!$Q$13)^A152),9))) -> 0.100758692 | G152: 57.93296705
A153: 150 | B153: 150 | C153: 2036-11-01 | D153: 11 | E153: =IF(ISERROR(MATCH(D153,Simulador!$H$16:$H$17,0))=FALSE,"C",IF(ISERROR(MATCH(D153,Simulador!$H$18:$H$19,0))=FALSE,"D","")) ->  | F153: =IF(E153="C",0,IF(E153 ="D",ROUND(1/((1+Simulador!$Q$13)^A153),9) * 2,ROUND(1/((1+Simulador!$Q$13)^A153),9))) -> 0.099218611 | G153: 58.03218566
A154: 151 | B154: 151 | C154: 2036-12-01 | D154: 12 | E154: =IF(ISERROR(MATCH(D154,Simulador!$H$16:$H$17,0))=FALSE,"C",IF(ISERROR(MATCH(D154,Simulador!$H$18:$H$19,0))=FALSE,"D","")) ->  | F154: =IF(E154="C",0,IF(E154 ="D",ROUND(1/((1+Simulador!$Q$13)^A154),9) * 2,ROUND(1/((1+Simulador!$Q$13)^A154),9))) -> 0.09770207 | G154: 58.12988773
A155: 152 | B155: 152 | C155: 2037-01-01 | D155: 1 | E155: =IF(ISERROR(MATCH(D155,Simulador!$H$16:$H$17,0))=FALSE,"C",IF(ISERROR(MATCH(D155,Simulador!$H$18:$H$19,0))=FALSE,"D","")) ->  | F155: =IF(E155="C",0,IF(E155 ="D",ROUND(1/((1+Simulador!$Q$13)^A155),9) * 2,ROUND(1/((1+Simulador!$Q$13)^A155),9))) -> 0.096208708 | G155: 58.22609644
A156: 153 | B156: 153 | C156: 2037-02-01 | D156: 2 | E156: =IF(ISERROR(MATCH(D156,Simulador!$H$16:$H$17,0))=FALSE,"C",IF(ISERROR(MATCH(D156,Simulador!$H$18:$H$19,0))=FALSE,"D","")) ->  | F156: =IF(E156="C",0,IF(E156 ="D",ROUND(1/((1+Simulador!$Q$13)^A156),9) * 2,ROUND(1/((1+Simulador!$Q$13)^A156),9))) -> 0.094738173 | G156: 58.32083461
A157: 154 | B157: 154 | C157: 2037-03-01 | D157: 3 | E157: =IF(ISERROR(MATCH(D157,Simulador!$H$16:$H$17,0))=FALSE,"C",IF(ISERROR(MATCH(D157,Simulador!$H$18:$H$19,0))=FALSE,"D","")) ->  | F157: =IF(E157="C",0,IF(E157 ="D",ROUND(1/((1+Simulador!$Q$13)^A157),9) * 2,ROUND(1/((1+Simulador!$Q$13)^A157),9))) -> 0.093290115 | G157: 58.41412473
A158: 155 | B158: 155 | C158: 2037-04-01 | D158: 4 | E158: =IF(ISERROR(MATCH(D158,Simulador!$H$16:$H$17,0))=FALSE,"C",IF(ISERROR(MATCH(D158,Simulador!$H$18:$H$19,0))=FALSE,"D","")) ->  | F158: =IF(E158="C",0,IF(E158 ="D",ROUND(1/((1+Simulador!$Q$13)^A158),9) * 2,ROUND(1/((1+Simulador!$Q$13)^A158),9))) -> 0.091864189 | G158: 58.50598892
A159: 156 | B159: 156 | C159: 2037-05-01 | D159: 5 | E159: =IF(ISERROR(MATCH(D159,Simulador!$H$16:$H$17,0))=FALSE,"C",IF(ISERROR(MATCH(D159,Simulador!$H$18:$H$19,0))=FALSE,"D","")) ->  | F159: =IF(E159="C",0,IF(E159 ="D",ROUND(1/((1+Simulador!$Q$13)^A159),9) * 2,ROUND(1/((1+Simulador!$Q$13)^A159),9))) -> 0.090460059 | G159: 58.59644898
A160: 157 | B160: 157 | C160: 2037-06-01 | D160: 6 | E160: =IF(ISERROR(MATCH(D160,Simulador!$H$16:$H$17,0))=FALSE,"C",IF(ISERROR(MATCH(D160,Simulador!$H$18:$H$19,0))=FALSE,"D","")) ->  | F160: =IF(E160="C",0,IF(E160 ="D",ROUND(1/((1+Simulador!$Q$13)^A160),9) * 2,ROUND(1/((1+Simulador!$Q$13)^A160),9))) -> 0.089077391 | G160: 58.68552637
A161: 158 | B161: 158 | C161: 2037-07-01 | D161: 7 | E161: =IF(ISERROR(MATCH(D161,Simulador!$H$16:$H$17,0))=FALSE,"C",IF(ISERROR(MATCH(D161,Simulador!$H$18:$H$19,0))=FALSE,"D","")) ->  | F161: =IF(E161="C",0,IF(E161 ="D",ROUND(1/((1+Simulador!$Q$13)^A161),9) * 2,ROUND(1/((1+Simulador!$Q$13)^A161),9))) -> 0.087715857 | G161: 58.77324223
A162: 159 | B162: 159 | C162: 2037-08-01 | D162: 8 | E162: =IF(ISERROR(MATCH(D162,Simulador!$H$16:$H$17,0))=FALSE,"C",IF(ISERROR(MATCH(D162,Simulador!$H$18:$H$19,0))=FALSE,"D","")) ->  | F162: =IF(E162="C",0,IF(E162 ="D",ROUND(1/((1+Simulador!$Q$13)^A162),9) * 2,ROUND(1/((1+Simulador!$Q$13)^A162),9))) -> 0.086375133 | G162: 58.85961736
A163: 160 | B163: 160 | C163: 2037-09-01 | D163: 9 | E163: =IF(ISERROR(MATCH(D163,Simulador!$H$16:$H$17,0))=FALSE,"C",IF(ISERROR(MATCH(D163,Simulador!$H$18:$H$19,0))=FALSE,"D","")) ->  | F163: =IF(E163="C",0,IF(E163 ="D",ROUND(1/((1+Simulador!$Q$13)^A163),9) * 2,ROUND(1/((1+Simulador!$Q$13)^A163),9))) -> 0.085054903 | G163: 58.94467226
A164: 161 | B164: 161 | C164: 2037-10-01 | D164: 10 | E164: =IF(ISERROR(MATCH(D164,Simulador!$H$16:$H$17,0))=FALSE,"C",IF(ISERROR(MATCH(D164,Simulador!$H$18:$H$19,0))=FALSE,"D","")) ->  | F164: =IF(E164="C",0,IF(E164 ="D",ROUND(1/((1+Simulador!$Q$13)^A164),9) * 2,ROUND(1/((1+Simulador!$Q$13)^A164),9))) -> 0.083754852 | G164: 59.02842711
A165: 162 | B165: 162 | C165: 2037-11-01 | D165: 11 | E165: =IF(ISERROR(MATCH(D165,Simulador!$H$16:$H$17,0))=FALSE,"C",IF(ISERROR(MATCH(D165,Simulador!$H$18:$H$19,0))=FALSE,"D","")) ->  | F165: =IF(E165="C",0,IF(E165 ="D",ROUND(1/((1+Simulador!$Q$13)^A165),9) * 2,ROUND(1/((1+Simulador!$Q$13)^A165),9))) -> 0.082474671 | G165: 59.11090178
A166: 163 | B166: 163 | C166: 2037-12-01 | D166: 12 | E166: =IF(ISERROR(MATCH(D166,Simulador!$H$16:$H$17,0))=FALSE,"C",IF(ISERROR(MATCH(D166,Simulador!$H$18:$H$19,0))=FALSE,"D","")) ->  | F166: =IF(E166="C",0,IF(E166 ="D",ROUND(1/((1+Simulador!$Q$13)^A166),9) * 2,ROUND(1/((1+Simulador!$Q$13)^A166),9))) -> 0.081214059 | G166: 59.19211584
A167: 164 | B167: 164 | C167: 2038-01-01 | D167: 1 | E167: =IF(ISERROR(MATCH(D167,Simulador!$H$16:$H$17,0))=FALSE,"C",IF(ISERROR(MATCH(D167,Simulador!$H$18:$H$19,0))=FALSE,"D","")) ->  | F167: =IF(E167="C",0,IF(E167 ="D",ROUND(1/((1+Simulador!$Q$13)^A167),9) * 2,ROUND(1/((1+Simulador!$Q$13)^A167),9))) -> 0.079972714 | G167: 59.27208856
A168: 165 | B168: 165 | C168: 2038-02-01 | D168: 2 | E168: =IF(ISERROR(MATCH(D168,Simulador!$H$16:$H$17,0))=FALSE,"C",IF(ISERROR(MATCH(D168,Simulador!$H$18:$H$19,0))=FALSE,"D","")) ->  | F168: =IF(E168="C",0,IF(E168 ="D",ROUND(1/((1+Simulador!$Q$13)^A168),9) * 2,ROUND(1/((1+Simulador!$Q$13)^A168),9))) -> 0.078750344 | G168: 59.3508389
A169: 166 | B169: 166 | C169: 2038-03-01 | D169: 3 | E169: =IF(ISERROR(MATCH(D169,Simulador!$H$16:$H$17,0))=FALSE,"C",IF(ISERROR(MATCH(D169,Simulador!$H$18:$H$19,0))=FALSE,"D","")) ->  | F169: =IF(E169="C",0,IF(E169 ="D",ROUND(1/((1+Simulador!$Q$13)^A169),9) * 2,ROUND(1/((1+Simulador!$Q$13)^A169),9))) -> 0.077546657 | G169: 59.42838556
A170: 167 | B170: 167 | C170: 2038-04-01 | D170: 4 | E170: =IF(ISERROR(MATCH(D170,Simulador!$H$16:$H$17,0))=FALSE,"C",IF(ISERROR(MATCH(D170,Simulador!$H$18:$H$19,0))=FALSE,"D","")) ->  | F170: =IF(E170="C",0,IF(E170 ="D",ROUND(1/((1+Simulador!$Q$13)^A170),9) * 2,ROUND(1/((1+Simulador!$Q$13)^A170),9))) -> 0.076361368 | G170: 59.50474693
A171: 168 | B171: 168 | C171: 2038-05-01 | D171: 5 | E171: =IF(ISERROR(MATCH(D171,Simulador!$H$16:$H$17,0))=FALSE,"C",IF(ISERROR(MATCH(D171,Simulador!$H$18:$H$19,0))=FALSE,"D","")) ->  | F171: =IF(E171="C",0,IF(E171 ="D",ROUND(1/((1+Simulador!$Q$13)^A171),9) * 2,ROUND(1/((1+Simulador!$Q$13)^A171),9))) -> 0.075194196 | G171: 59.57994112
A172: 169 | B172: 169 | C172: 2038-06-01 | D172: 6 | E172: =IF(ISERROR(MATCH(D172,Simulador!$H$16:$H$17,0))=FALSE,"C",IF(ISERROR(MATCH(D172,Simulador!$H$18:$H$19,0))=FALSE,"D","")) ->  | F172: =IF(E172="C",0,IF(E172 ="D",ROUND(1/((1+Simulador!$Q$13)^A172),9) * 2,ROUND(1/((1+Simulador!$Q$13)^A172),9))) -> 0.074044864 | G172: 59.65398599
A173: 170 | B173: 170 | C173: 2038-07-01 | D173: 7 | E173: =IF(ISERROR(MATCH(D173,Simulador!$H$16:$H$17,0))=FALSE,"C",IF(ISERROR(MATCH(D173,Simulador!$H$18:$H$19,0))=FALSE,"D","")) ->  | F173: =IF(E173="C",0,IF(E173 ="D",ROUND(1/((1+Simulador!$Q$13)^A173),9) * 2,ROUND(1/((1+Simulador!$Q$13)^A173),9))) -> 0.0729131 | G173: 59.72689909
A174: 171 | B174: 171 | C174: 2038-08-01 | D174: 8 | E174: =IF(ISERROR(MATCH(D174,Simulador!$H$16:$H$17,0))=FALSE,"C",IF(ISERROR(MATCH(D174,Simulador!$H$18:$H$19,0))=FALSE,"D","")) ->  | F174: =IF(E174="C",0,IF(E174 ="D",ROUND(1/((1+Simulador!$Q$13)^A174),9) * 2,ROUND(1/((1+Simulador!$Q$13)^A174),9))) -> 0.071798634 | G174: 59.79869772
A175: 172 | B175: 172 | C175: 2038-09-01 | D175: 9 | E175: =IF(ISERROR(MATCH(D175,Simulador!$H$16:$H$17,0))=FALSE,"C",IF(ISERROR(MATCH(D175,Simulador!$H$18:$H$19,0))=FALSE,"D","")) ->  | F175: =IF(E175="C",0,IF(E175 ="D",ROUND(1/((1+Simulador!$Q$13)^A175),9) * 2,ROUND(1/((1+Simulador!$Q$13)^A175),9))) -> 0.070701203 | G175: 59.86939892
A176: 173 | B176: 173 | C176: 2038-10-01 | D176: 10 | E176: =IF(ISERROR(MATCH(D176,Simulador!$H$16:$H$17,0))=FALSE,"C",IF(ISERROR(MATCH(D176,Simulador!$H$18:$H$19,0))=FALSE,"D","")) ->  | F176: =IF(E176="C",0,IF(E176 ="D",ROUND(1/((1+Simulador!$Q$13)^A176),9) * 2,ROUND(1/((1+Simulador!$Q$13)^A176),9))) -> 0.069620546 | G176: 59.93901947
A177: 174 | B177: 174 | C177: 2038-11-01 | D177: 11 | E177: =IF(ISERROR(MATCH(D177,Simulador!$H$16:$H$17,0))=FALSE,"C",IF(ISERROR(MATCH(D177,Simulador!$H$18:$H$19,0))=FALSE,"D","")) ->  | F177: =IF(E177="C",0,IF(E177 ="D",ROUND(1/((1+Simulador!$Q$13)^A177),9) * 2,ROUND(1/((1+Simulador!$Q$13)^A177),9))) -> 0.068556407 | G177: 60.00757588
A178: 175 | B178: 175 | C178: 2038-12-01 | D178: 12 | E178: =IF(ISERROR(MATCH(D178,Simulador!$H$16:$H$17,0))=FALSE,"C",IF(ISERROR(MATCH(D178,Simulador!$H$18:$H$19,0))=FALSE,"D","")) ->  | F178: =IF(E178="C",0,IF(E178 ="D",ROUND(1/((1+Simulador!$Q$13)^A178),9) * 2,ROUND(1/((1+Simulador!$Q$13)^A178),9))) -> 0.067508532 | G178: 60.07508441
A179: 176 | B179: 176 | C179: 2039-01-01 | D179: 1 | E179: =IF(ISERROR(MATCH(D179,Simulador!$H$16:$H$17,0))=FALSE,"C",IF(ISERROR(MATCH(D179,Simulador!$H$18:$H$19,0))=FALSE,"D","")) ->  | F179: =IF(E179="C",0,IF(E179 ="D",ROUND(1/((1+Simulador!$Q$13)^A179),9) * 2,ROUND(1/((1+Simulador!$Q$13)^A179),9))) -> 0.066476675 | G179: 60.14156108
A180: 177 | B180: 177 | C180: 2039-02-01 | D180: 2 | E180: =IF(ISERROR(MATCH(D180,Simulador!$H$16:$H$17,0))=FALSE,"C",IF(ISERROR(MATCH(D180,Simulador!$H$18:$H$19,0))=FALSE,"D","")) ->  | F180: =IF(E180="C",0,IF(E180 ="D",ROUND(1/((1+Simulador!$Q$13)^A180),9) * 2,ROUND(1/((1+Simulador!$Q$13)^A180),9))) -> 0.065460589 | G180: 60.20702167
A181: 178 | B181: 178 | C181: 2039-03-01 | D181: 3 | E181: =IF(ISERROR(MATCH(D181,Simulador!$H$16:$H$17,0))=FALSE,"C",IF(ISERROR(MATCH(D181,Simulador!$H$18:$H$19,0))=FALSE,"D","")) ->  | F181: =IF(E181="C",0,IF(E181 ="D",ROUND(1/((1+Simulador!$Q$13)^A181),9) * 2,ROUND(1/((1+Simulador!$Q$13)^A181),9))) -> 0.064460034 | G181: 60.27148171
A182: 179 | B182: 179 | C182: 2039-04-01 | D182: 4 | E182: =IF(ISERROR(MATCH(D182,Simulador!$H$16:$H$17,0))=FALSE,"C",IF(ISERROR(MATCH(D182,Simulador!$H$18:$H$19,0))=FALSE,"D","")) ->  | F182: =IF(E182="C",0,IF(E182 ="D",ROUND(1/((1+Simulador!$Q$13)^A182),9) * 2,ROUND(1/((1+Simulador!$Q$13)^A182),9))) -> 0.063474772 | G182: 60.33495648
A183: 180 | B183: 180 | C183: 2039-05-01 | D183: 5 | E183: =IF(ISERROR(MATCH(D183,Simulador!$H$16:$H$17,0))=FALSE,"C",IF(ISERROR(MATCH(D183,Simulador!$H$18:$H$19,0))=FALSE,"D","")) ->  | F183: =IF(E183="C",0,IF(E183 ="D",ROUND(1/((1+Simulador!$Q$13)^A183),9) * 2,ROUND(1/((1+Simulador!$Q$13)^A183),9))) -> 0.06250457 | G183: 60.39746105
A184: 181 | B184: 181 | C184: 2039-06-01 | D184: 6 | E184: =IF(ISERROR(MATCH(D184,Simulador!$H$16:$H$17,0))=FALSE,"C",IF(ISERROR(MATCH(D184,Simulador!$H$18:$H$19,0))=FALSE,"D","")) ->  | F184: =IF(E184="C",0,IF(E184 ="D",ROUND(1/((1+Simulador!$Q$13)^A184),9) * 2,ROUND(1/((1+Simulador!$Q$13)^A184),9))) -> 0.061549197 | G184: 60.45901025
A185: 182 | B185: 182 | C185: 2039-07-01 | D185: 7 | E185: =IF(ISERROR(MATCH(D185,Simulador!$H$16:$H$17,0))=FALSE,"C",IF(ISERROR(MATCH(D185,Simulador!$H$18:$H$19,0))=FALSE,"D","")) ->  | F185: =IF(E185="C",0,IF(E185 ="D",ROUND(1/((1+Simulador!$Q$13)^A185),9) * 2,ROUND(1/((1+Simulador!$Q$13)^A185),9))) -> 0.060608427 | G185: 60.51961867
A186: 183 | B186: 183 | C186: 2039-08-01 | D186: 8 | E186: =IF(ISERROR(MATCH(D186,Simulador!$H$16:$H$17,0))=FALSE,"C",IF(ISERROR(MATCH(D186,Simulador!$H$18:$H$19,0))=FALSE,"D","")) ->  | F186: =IF(E186="C",0,IF(E186 ="D",ROUND(1/((1+Simulador!$Q$13)^A186),9) * 2,ROUND(1/((1+Simulador!$Q$13)^A186),9))) -> 0.059682037 | G186: 60.57930071
A187: 184 | B187: 184 | C187: 2039-09-01 | D187: 9 | E187: =IF(ISERROR(MATCH(D187,Simulador!$H$16:$H$17,0))=FALSE,"C",IF(ISERROR(MATCH(D187,Simulador!$H$18:$H$19,0))=FALSE,"D","")) ->  | F187: =IF(E187="C",0,IF(E187 ="D",ROUND(1/((1+Simulador!$Q$13)^A187),9) * 2,ROUND(1/((1+Simulador!$Q$13)^A187),9))) -> 0.058769806 | G187: 60.63807052
A188: 185 | B188: 185 | C188: 2039-10-01 | D188: 10 | E188: =IF(ISERROR(MATCH(D188,Simulador!$H$16:$H$17,0))=FALSE,"C",IF(ISERROR(MATCH(D188,Simulador!$H$18:$H$19,0))=FALSE,"D","")) ->  | F188: =IF(E188="C",0,IF(E188 ="D",ROUND(1/((1+Simulador!$Q$13)^A188),9) * 2,ROUND(1/((1+Simulador!$Q$13)^A188),9))) -> 0.057871518 | G188: 60.69594203
A189: 186 | B189: 186 | C189: 2039-11-01 | D189: 11 | E189: =IF(ISERROR(MATCH(D189,Simulador!$H$16:$H$17,0))=FALSE,"C",IF(ISERROR(MATCH(D189,Simulador!$H$18:$H$19,0))=FALSE,"D","")) ->  | F189: =IF(E189="C",0,IF(E189 ="D",ROUND(1/((1+Simulador!$Q$13)^A189),9) * 2,ROUND(1/((1+Simulador!$Q$13)^A189),9))) -> 0.056986961 | G189: 60.75292899
A190: 187 | B190: 187 | C190: 2039-12-01 | D190: 12 | E190: =IF(ISERROR(MATCH(D190,Simulador!$H$16:$H$17,0))=FALSE,"C",IF(ISERROR(MATCH(D190,Simulador!$H$18:$H$19,0))=FALSE,"D","")) ->  | F190: =IF(E190="C",0,IF(E190 ="D",ROUND(1/((1+Simulador!$Q$13)^A190),9) * 2,ROUND(1/((1+Simulador!$Q$13)^A190),9))) -> 0.056115924 | G190: 60.80904492
A191: 188 | B191: 188 | C191: 2040-01-01 | D191: 1 | E191: =IF(ISERROR(MATCH(D191,Simulador!$H$16:$H$17,0))=FALSE,"C",IF(ISERROR(MATCH(D191,Simulador!$H$18:$H$19,0))=FALSE,"D","")) ->  | F191: =IF(E191="C",0,IF(E191 ="D",ROUND(1/((1+Simulador!$Q$13)^A191),9) * 2,ROUND(1/((1+Simulador!$Q$13)^A191),9))) -> 0.055258201 | G191: 60.86430312
A192: 189 | B192: 189 | C192: 2040-02-01 | D192: 2 | E192: =IF(ISERROR(MATCH(D192,Simulador!$H$16:$H$17,0))=FALSE,"C",IF(ISERROR(MATCH(D192,Simulador!$H$18:$H$19,0))=FALSE,"D","")) ->  | F192: =IF(E192="C",0,IF(E192 ="D",ROUND(1/((1+Simulador!$Q$13)^A192),9) * 2,ROUND(1/((1+Simulador!$Q$13)^A192),9))) -> 0.054413587 | G192: 60.91871671
A193: 190 | B193: 190 | C193: 2040-03-01 | D193: 3 | E193: =IF(ISERROR(MATCH(D193,Simulador!$H$16:$H$17,0))=FALSE,"C",IF(ISERROR(MATCH(D193,Simulador!$H$18:$H$19,0))=FALSE,"D","")) ->  | F193: =IF(E193="C",0,IF(E193 ="D",ROUND(1/((1+Simulador!$Q$13)^A193),9) * 2,ROUND(1/((1+Simulador!$Q$13)^A193),9))) -> 0.053581884 | G193: 60.97229859
A194: 191 | B194: 191 | C194: 2040-04-01 | D194: 4 | E194: =IF(ISERROR(MATCH(D194,Simulador!$H$16:$H$17,0))=FALSE,"C",IF(ISERROR(MATCH(D194,Simulador!$H$18:$H$19,0))=FALSE,"D","")) ->  | F194: =IF(E194="C",0,IF(E194 ="D",ROUND(1/((1+Simulador!$Q$13)^A194),9) * 2,ROUND(1/((1+Simulador!$Q$13)^A194),9))) -> 0.052762893 | G194: 61.02506148
A195: 192 | B195: 192 | C195: 2040-05-01 | D195: 5 | E195: =IF(ISERROR(MATCH(D195,Simulador!$H$16:$H$17,0))=FALSE,"C",IF(ISERROR(MATCH(D195,Simulador!$H$18:$H$19,0))=FALSE,"D","")) ->  | F195: =IF(E195="C",0,IF(E195 ="D",ROUND(1/((1+Simulador!$Q$13)^A195),9) * 2,ROUND(1/((1+Simulador!$Q$13)^A195),9))) -> 0.05195642 | G195: 61.0770179
A196: 193 | B196: 193 | C196: 2040-06-01 | D196: =MONTH(C196) -> 6 | E196: =IF(ISERROR(MATCH(D196,Simulador!$H$16:$H$17,0))=FALSE,"C",IF(ISERROR(MATCH(D196,Simulador!$H$18:$H$19,0))=FALSE,"D","")) ->  | F196: =IF(E196="C",0,IF(E196 ="D",ROUND(1/((1+Simulador!$Q$13)^A196),9) * 2,ROUND(1/((1+Simulador!$Q$13)^A196),9))) -> 0.051162275 | G196: 61.12818018
A197: =A196+1 -> 194 | B197: =IF(E197<>"C",IF(ISERROR(1+B196)=TRUE,1,1+B196),IF(ISNUMBER(B196),B196,1)) -> 194 | C197: =DATE(YEAR(C196) + 1/12,MONTH(C196)+1,DAY(C196)) -> 2040-07-01 | D197: 7 | E197: =IF(ISERROR(MATCH(D197,Simulador!$H$16:$H$17,0))=FALSE,"C",IF(ISERROR(MATCH(D197,Simulador!$H$18:$H$19,0))=FALSE,"D","")) ->  | F197: =IF(E197="C",0,IF(E197 ="D",ROUND(1/((1+Simulador!$Q$13)^A197),9) * 2,ROUND(1/((1+Simulador!$Q$13)^A197),9))) -> 0.050380267 | G197: 61.17856045
A198: 195 | B198: 195 | C198: 2040-08-01 | D198: 8 | E198: =IF(ISERROR(MATCH(D198,Simulador!$H$16:$H$17,0))=FALSE,"C",IF(ISERROR(MATCH(D198,Simulador!$H$18:$H$19,0))=FALSE,"D","")) ->  | F198: =IF(E198="C",0,IF(E198 ="D",ROUND(1/((1+Simulador!$Q$13)^A198),9) * 2,ROUND(1/((1+Simulador!$Q$13)^A198),9))) -> 0.049610212 | G198: =G197+ROUND(F198,9) -> 61.22817066
A199: 196 | B199: 196 | C199: 2040-09-01 | D199: 9 | E199: =IF(ISERROR(MATCH(D199,Simulador!$H$16:$H$17,0))=FALSE,"C",IF(ISERROR(MATCH(D199,Simulador!$H$18:$H$19,0))=FALSE,"D","")) ->  | F199: =IF(E199="C",0,IF(E199 ="D",ROUND(1/((1+Simulador!$Q$13)^A199),9) * 2,ROUND(1/((1+Simulador!$Q$13)^A199),9))) -> 0.048851928 | G199: 61.27702259
A200: 197 | B200: 197 | C200: 2040-10-01 | D200: 10 | E200: =IF(ISERROR(MATCH(D200,Simulador!$H$16:$H$17,0))=FALSE,"C",IF(ISERROR(MATCH(D200,Simulador!$H$18:$H$19,0))=FALSE,"D","")) ->  | F200: =IF(E200="C",0,IF(E200 ="D",ROUND(1/((1+Simulador!$Q$13)^A200),9) * 2,ROUND(1/((1+Simulador!$Q$13)^A200),9))) -> 0.048105234 | G200: 61.32512782
A201: 198 | B201: 198 | C201: 2040-11-01 | D201: 11 | E201: =IF(ISERROR(MATCH(D201,Simulador!$H$16:$H$17,0))=FALSE,"C",IF(ISERROR(MATCH(D201,Simulador!$H$18:$H$19,0))=FALSE,"D","")) ->  | F201: =IF(E201="C",0,IF(E201 ="D",ROUND(1/((1+Simulador!$Q$13)^A201),9) * 2,ROUND(1/((1+Simulador!$Q$13)^A201),9))) -> 0.047369952 | G201: 61.37249777
... 185 more rows
